Organisation Code,Organisation Label,Effective Date,Organisational Unit,Service Division Label,Category Internal Name,Purpose,Detailed Expenditure Code,Payment Date,Transaction Number,Irrecoverable VAT Amount,Amount,Capital Or Revenue,Beneficiary Name,Procurement Card
Http://opendatacommunities.org/id/metropolitan-district-council/leeds,Leeds City Council,31/12/2022,Adults and Health,Services For Adults Under 65 Mental/Dis,Agency Payments,Sheltered Accommodation,569,07/12/2022,2212-00001,0.00,70419.51,R,(Mill Residence) Amethyst,No
Http://opendatacommunities.org/id/metropolitan-district-council/leeds,Leeds City Council,31/12/2022,Adults and Health,Services For Adults Under 65 Mental/Dis,Agency Payments,Sheltered Accommodation,569,28/12/2022,2212-00002,0.00,15691.12,R,(Mill Residence) Amethyst,No
Http://opendatacommunities.org/id/metropolitan-district-council/leeds,Leeds City Council,31/12/2022,Children and Families,Social Care,Supplies and Services,Consultancy Services,259,01/12/2022,2212-00003,0.00,7362.50,R,A & F Lloyd Training Limited,No
Http://opendatacommunities.org/id/metropolitan-district-council/leeds,Leeds City Council,31/12/2022,Children and Families,Social Care,Supplies and Services,Consultancy Services,259,01/12/2022,2212-00004,0.00,2612.50,R,A & F Lloyd Training Limited,No
Http://opendatacommunities.org/id/metropolitan-district-council/leeds,Leeds City Council,31/12/2022,Children and Families,Social Care,Supplies and Services,Consultancy Services,259,01/12/2022,2212-00005,0.00,6650.00,R,A & F Lloyd Training Limited,No
Http://opendatacommunities.org/id/metropolitan-district-council/leeds,Leeds City Council,31/12/2022,Adults and Health,Services For Older People Under 65 P/Dis,Agency Payments,Sheltered Accommodation,569,07/12/2022,2212-00006,0.00,5400.00,R,A & V TRANSITIONAL HOMES,No
Http://opendatacommunities.org/id/metropolitan-district-council/leeds,Leeds City Council,31/12/2022,Adults and Health,Services For Older People Under 65 P/Dis,Agency Payments,Sheltered Accommodation,569,28/12/2022,2212-00007,0.00,5400.00,R,A & V TRANSITIONAL HOMES,No
Http://opendatacommunities.org/id/metropolitan-district-council/leeds,Leeds City Council,31/12/2022,City Development,Libraries Arts & Heritage,Transport,External Hire -Downtime,302,14/12/2022,2212-00008,0.00,232.80,R,A C Entertainment Technologies Ltd,No
Http://opendatacommunities.org/id/metropolitan-district-council/leeds,Leeds City Council,31/12/2022,City Development,Libraries Arts & Heritage,Transport,External Hire -Downtime,302,23/12/2022,2212-00009,0.00,252.00,R,A C Entertainment Technologies Ltd,No
Http://opendatacommunities.org/id/metropolitan-district-council/leeds,Leeds City Council,31/12/2022,Children and Families,Social Care,Agency Payments,Placement Support,550,20/12/2022,2212-00010,0.00,100.00,R,REDACTED PERSONAL DATA,No
Http://opendatacommunities.org/id/metropolitan-district-council/leeds,Leeds City Council,31/12/2022,Resources,Leeds Building Services,Supplies and Services,Other Hired And Contracted Services,265,08/12/2022,2212-00011,0.00,270.00,R,A Coole Electrical Ltd,No
Http://opendatacommunities.org/id/metropolitan-district-council/leeds,Leeds City Council,31/12/2022,Resources,Leeds Building Services,Supplies and Services,Other Hired And Contracted Services,265,08/12/2022,2212-00012,0.00,7468.52,R,A Coole Electrical Ltd,No
Http://opendatacommunities.org/id/metropolitan-district-council/leeds,Leeds City Council,31/12/2022,Resources,Leeds Building Services,Supplies and Services,Other Hired And Contracted Services,265,16/12/2022,2212-00013,0.00,4583.86,R,A Coole Electrical Ltd,No
Http://opendatacommunities.org/id/metropolitan-district-council/leeds,Leeds City Council,31/12/2022,Resources,Leeds Building Services,Supplies and Services,Other Hired And Contracted Services,265,23/12/2022,2212-00014,0.00,14857.62,R,A Coole Electrical Ltd,No
Http://opendatacommunities.org/id/metropolitan-district-council/leeds,Leeds City Council,31/12/2022,Resources,Leeds Building Services,Supplies and Services,Other Hired And Contracted Services,265,23/12/2022,2212-00015,0.00,5876.97,R,A Coole Electrical Ltd,No
Http://opendatacommunities.org/id/metropolitan-district-council/leeds,Leeds City Council,31/12/2022,Communities Housing and Environment,Customer Access,Supplies and Services,Bought In Professional Services,277,07/12/2022,2212-00016,0.00,18.00,R,REDACTED COMMERCIAL CONFIDENTIALITY,No
Http://opendatacommunities.org/id/metropolitan-district-council/leeds,Leeds City Council,31/12/2022,Communities Housing and Environment,Customer Access,Supplies and Services,Bought In Professional Services,277,07/12/2022,2212-00017,0.00,24.00,R,REDACTED COMMERCIAL CONFIDENTIALITY,No
Http://opendatacommunities.org/id/metropolitan-district-council/leeds,Leeds City Council,31/12/2022,Communities Housing and Environment,Customer Access,Supplies and Services,Bought In Professional Services,277,14/12/2022,2212-00018,0.00,18.00,R,REDACTED COMMERCIAL CONFIDENTIALITY,No
Http://opendatacommunities.org/id/metropolitan-district-council/leeds,Leeds City Council,31/12/2022,Communities Housing and Environment,Customer Access,Supplies and Services,Bought In Professional Services,277,14/12/2022,2212-00019,0.00,27.00,R,REDACTED COMMERCIAL CONFIDENTIALITY,No
Http://opendatacommunities.org/id/metropolitan-district-council/leeds,Leeds City Council,31/12/2022,Communities Housing and Environment,Customer Access,Supplies and Services,Bought In Professional Services,277,14/12/2022,2212-00020,0.00,18.00,R,REDACTED COMMERCIAL CONFIDENTIALITY,No
Http://opendatacommunities.org/id/metropolitan-district-council/leeds,Leeds City Council,31/12/2022,Communities Housing and Environment,Customer Access,Supplies and Services,Bought In Professional Services,277,14/12/2022,2212-00021,0.00,13.50,R,REDACTED COMMERCIAL CONFIDENTIALITY,No
Http://opendatacommunities.org/id/metropolitan-district-council/leeds,Leeds City Council,31/12/2022,Communities Housing and Environment,Customer Access,Supplies and Services,Bought In Professional Services,277,14/12/2022,2212-00022,0.00,9.00,R,REDACTED COMMERCIAL CONFIDENTIALITY,No
Http://opendatacommunities.org/id/metropolitan-district-council/leeds,Leeds City Council,31/12/2022,Communities Housing and Environment,Customer Access,Supplies and Services,Bought In Professional Services,277,21/12/2022,2212-00023,0.00,18.00,R,REDACTED COMMERCIAL CONFIDENTIALITY,No
Http://opendatacommunities.org/id/metropolitan-district-council/leeds,Leeds City Council,31/12/2022,Communities Housing and Environment,Customer Access,Supplies and Services,Bought In Professional Services,277,21/12/2022,2212-00024,0.00,81.00,R,REDACTED COMMERCIAL CONFIDENTIALITY,No
Http://opendatacommunities.org/id/metropolitan-district-council/leeds,Leeds City Council,31/12/2022,Communities Housing and Environment,Customer Access,Supplies and Services,Bought In Professional Services,277,21/12/2022,2212-00025,0.00,45.00,R,REDACTED COMMERCIAL CONFIDENTIALITY,No
Http://opendatacommunities.org/id/metropolitan-district-council/leeds,Leeds City Council,31/12/2022,Communities Housing and Environment,Customer Access,Supplies and Services,Bought In Professional Services,277,21/12/2022,2212-00026,0.00,18.00,R,REDACTED COMMERCIAL CONFIDENTIALITY,No
Http://opendatacommunities.org/id/metropolitan-district-council/leeds,Leeds City Council,31/12/2022,Children and Families,Social Care,Agency Payments,Services Rendered By Voluntary Sector,505,02/12/2022,2212-00027,0.00,3681.79,R,REDACTED PERSONAL DATA,No
Http://opendatacommunities.org/id/metropolitan-district-council/leeds,Leeds City Council,31/12/2022,Children and Families,Social Care,Agency Payments,Services Rendered By Voluntary Sector,505,02/12/2022,2212-00028,0.00,1600.00,R,REDACTED PERSONAL DATA,No
Http://opendatacommunities.org/id/metropolitan-district-council/leeds,Leeds City Council,31/12/2022,Children and Families,Social Care,Agency Payments,Services Rendered By Voluntary Sector,505,02/12/2022,2212-00029,0.00,109.20,R,REDACTED PERSONAL DATA,No
Http://opendatacommunities.org/id/metropolitan-district-council/leeds,Leeds City Council,31/12/2022,Children and Families,Social Care,Agency Payments,Services Rendered By Voluntary Sector,505,07/12/2022,2212-00030,0.00,2986.91,R,REDACTED PERSONAL DATA,No
Http://opendatacommunities.org/id/metropolitan-district-council/leeds,Leeds City Council,31/12/2022,Children and Families,Social Care,Agency Payments,Services Rendered By Voluntary Sector,505,16/12/2022,2212-00031,0.00,73.33,R,REDACTED PERSONAL DATA,No
Http://opendatacommunities.org/id/metropolitan-district-council/leeds,Leeds City Council,31/12/2022,Children and Families,Social Care,Agency Payments,Services Rendered By Voluntary Sector,505,28/12/2022,2212-00032,0.00,3238.67,R,REDACTED PERSONAL DATA,No
Http://opendatacommunities.org/id/metropolitan-district-council/leeds,Leeds City Council,31/12/2022,City Development,Libraries Arts & Heritage,Supplies and Services,Bought In Professional Services,277,30/12/2022,2212-00033,0.00,1300.00,R,A F Miller,No
Http://opendatacommunities.org/id/metropolitan-district-council/leeds,Leeds City Council,31/12/2022,Strategic Landlord,HRA Housing Leeds,Capital,OTHER COSTS,7,29/12/2022,2212-00034,0.00,94.17,C,REDACTED PERSONAL DATA,No
Http://opendatacommunities.org/id/metropolitan-district-council/leeds,Leeds City Council,31/12/2022,Children and Families,Social Care,Agency Payments,Contact,548,09/12/2022,2212-00035,0.00,7.90,R,REDACTED PERSONAL DATA,No
Http://opendatacommunities.org/id/metropolitan-district-council/leeds,Leeds City Council,31/12/2022,Children and Families,Social Care,Agency Payments,Services Rendered By Other Organisations,511,02/12/2022,2212-00036,0.00,559.26,R,REDACTED PERSONAL DATA,No
Http://opendatacommunities.org/id/metropolitan-district-council/leeds,Leeds City Council,31/12/2022,Resources,Commercial Services,Supplies and Services,Other Hired And Contracted Services,265,19/12/2022,2212-00037,0.00,165.00,R,REDACTED PERSONAL DATA,No
Http://opendatacommunities.org/id/metropolitan-district-council/leeds,Leeds City Council,31/12/2022,Adults and Health,Other Generic Services,Agency Payments,Fees To Carers,563,02/12/2022,2212-00038,0.00,125.31,R,REDACTED PERSONAL DATA,No
Http://opendatacommunities.org/id/metropolitan-district-council/leeds,Leeds City Council,31/12/2022,Adults and Health,Other Generic Services,Agency Payments,Fees To Carers,563,16/12/2022,2212-00039,0.00,576.00,R,REDACTED PERSONAL DATA,No
Http://opendatacommunities.org/id/metropolitan-district-council/leeds,Leeds City Council,31/12/2022,Adults and Health,Other Generic Services,Agency Payments,Fees To Carers,563,16/12/2022,2212-00040,0.00,63.00,R,REDACTED PERSONAL DATA,No
Http://opendatacommunities.org/id/metropolitan-district-council/leeds,Leeds City Council,31/12/2022,Adults and Health,Other Generic Services,Agency Payments,Fees To Carers,563,16/12/2022,2212-00041,0.00,2.70,R,REDACTED PERSONAL DATA,No
Http://opendatacommunities.org/id/metropolitan-district-council/leeds,Leeds City Council,31/12/2022,Adults and Health,Other Generic Services,Agency Payments,Fees To Carers,563,23/12/2022,2212-00042,0.00,125.31,R,REDACTED PERSONAL DATA,No
Http://opendatacommunities.org/id/metropolitan-district-council/leeds,Leeds City Council,31/12/2022,Resources,Leeds Building Services,Supplies and Services,Operational Materials,205,09/12/2022,2212-00043,0.00,850.00,R,A J H  Pump Supply & Repair Ltd,No
Http://opendatacommunities.org/id/metropolitan-district-council/leeds,Leeds City Council,31/12/2022,Resources,Leeds Building Services,Supplies and Services,Operational Materials,205,16/12/2022,2212-00044,0.00,580.00,R,A J H  Pump Supply & Repair Ltd,No
Http://opendatacommunities.org/id/metropolitan-district-council/leeds,Leeds City Council,31/12/2022,Resources,Leeds Building Services,Supplies and Services,Operational Materials,205,16/12/2022,2212-00045,0.00,280.00,R,A J H  Pump Supply & Repair Ltd,No
Http://opendatacommunities.org/id/metropolitan-district-council/leeds,Leeds City Council,31/12/2022,Communities Housing and Environment,Parks and Countryside,Supplies and Services,Resaleable Materials,204,05/12/2022,2212-00046,0.00,1497.84,R,A J PROMOTIONS,No
Http://opendatacommunities.org/id/metropolitan-district-council/leeds,Leeds City Council,31/12/2022,Communities Housing and Environment,Parks and Countryside,Supplies and Services,Resaleable Materials,204,08/12/2022,2212-00047,0.00,481.60,R,A J PROMOTIONS,No
Http://opendatacommunities.org/id/metropolitan-district-council/leeds,Leeds City Council,31/12/2022,City Development,Libraries Arts & Heritage,Supplies and Services,Resaleable Materials,204,16/12/2022,2212-00048,0.00,2710.74,R,A J PROMOTIONS,No
Http://opendatacommunities.org/id/metropolitan-district-council/leeds,Leeds City Council,31/12/2022,Children and Families,Social Care,Employees,Agency Staff,8,23/12/2022,2212-00049,0.00,602.62,R,A Little Something Extra Ltd,No
Http://opendatacommunities.org/id/metropolitan-district-council/leeds,Leeds City Council,31/12/2022,Strategic Landlord,Housing Management,Supplies and Services,Compensation Claims,200,15/12/2022,2212-00050,0.00,100.00,R,REDACTED PERSONAL DATA,No
Http://opendatacommunities.org/id/metropolitan-district-council/leeds,Leeds City Council,31/12/2022,Strategic Landlord,HRA Housing Leeds,Capital,OTHER COSTS,7,29/12/2022,2212-00051,0.00,94.17,C,REDACTED PERSONAL DATA,No
Http://opendatacommunities.org/id/metropolitan-district-council/leeds,Leeds City Council,31/12/2022,Communities Housing and Environment,Customer Access,Supplies and Services,Bought In Professional Services,277,07/12/2022,2212-00052,0.00,126.00,R,A MOHAMMED,No
Http://opendatacommunities.org/id/metropolitan-district-council/leeds,Leeds City Council,31/12/2022,Communities Housing and Environment,Customer Access,Supplies and Services,Bought In Professional Services,277,07/12/2022,2212-00053,0.00,18.00,R,A MOHAMMED,No
Http://opendatacommunities.org/id/metropolitan-district-council/leeds,Leeds City Council,31/12/2022,Communities Housing and Environment,Customer Access,Supplies and Services,Bought In Professional Services,277,07/12/2022,2212-00054,0.00,108.00,R,A MOHAMMED,No
Http://opendatacommunities.org/id/metropolitan-district-council/leeds,Leeds City Council,31/12/2022,Communities Housing and Environment,Customer Access,Supplies and Services,Bought In Professional Services,277,07/12/2022,2212-00055,0.00,18.00,R,A MOHAMMED,No
Http://opendatacommunities.org/id/metropolitan-district-council/leeds,Leeds City Council,31/12/2022,Communities Housing and Environment,Customer Access,Supplies and Services,Bought In Professional Services,277,07/12/2022,2212-00056,0.00,138.00,R,A MOHAMMED,No
Http://opendatacommunities.org/id/metropolitan-district-council/leeds,Leeds City Council,31/12/2022,Communities Housing and Environment,Customer Access,Supplies and Services,Bought In Professional Services,277,07/12/2022,2212-00057,0.00,40.50,R,A MOHAMMED,No
Http://opendatacommunities.org/id/metropolitan-district-council/leeds,Leeds City Council,31/12/2022,Communities Housing and Environment,Customer Access,Supplies and Services,Bought In Professional Services,277,07/12/2022,2212-00058,0.00,135.00,R,A MOHAMMED,No
Http://opendatacommunities.org/id/metropolitan-district-council/leeds,Leeds City Council,31/12/2022,Communities Housing and Environment,Customer Access,Supplies and Services,Bought In Professional Services,277,07/12/2022,2212-00059,0.00,18.00,R,A MOHAMMED,No
Http://opendatacommunities.org/id/metropolitan-district-council/leeds,Leeds City Council,31/12/2022,Communities Housing and Environment,Customer Access,Supplies and Services,Bought In Professional Services,277,07/12/2022,2212-00060,0.00,126.00,R,A MOHAMMED,No
Http://opendatacommunities.org/id/metropolitan-district-council/leeds,Leeds City Council,31/12/2022,Communities Housing and Environment,Customer Access,Supplies and Services,Bought In Professional Services,277,14/12/2022,2212-00061,0.00,126.00,R,A MOHAMMED,No
Http://opendatacommunities.org/id/metropolitan-district-council/leeds,Leeds City Council,31/12/2022,Communities Housing and Environment,Customer Access,Supplies and Services,Bought In Professional Services,277,14/12/2022,2212-00062,0.00,18.00,R,A MOHAMMED,No
Http://opendatacommunities.org/id/metropolitan-district-council/leeds,Leeds City Council,31/12/2022,Communities Housing and Environment,Customer Access,Supplies and Services,Bought In Professional Services,277,14/12/2022,2212-00063,0.00,9.00,R,A MOHAMMED,No
Http://opendatacommunities.org/id/metropolitan-district-council/leeds,Leeds City Council,31/12/2022,Communities Housing and Environment,Customer Access,Supplies and Services,Bought In Professional Services,277,14/12/2022,2212-00064,0.00,18.00,R,A MOHAMMED,No
Http://opendatacommunities.org/id/metropolitan-district-council/leeds,Leeds City Council,31/12/2022,Communities Housing and Environment,Customer Access,Supplies and Services,Bought In Professional Services,277,14/12/2022,2212-00065,0.00,18.00,R,A MOHAMMED,No
Http://opendatacommunities.org/id/metropolitan-district-council/leeds,Leeds City Council,31/12/2022,Communities Housing and Environment,Customer Access,Supplies and Services,Bought In Professional Services,277,14/12/2022,2212-00066,0.00,18.00,R,A MOHAMMED,No
Http://opendatacommunities.org/id/metropolitan-district-council/leeds,Leeds City Council,31/12/2022,Communities Housing and Environment,Customer Access,Supplies and Services,Bought In Professional Services,277,14/12/2022,2212-00067,0.00,18.00,R,A MOHAMMED,No
Http://opendatacommunities.org/id/metropolitan-district-council/leeds,Leeds City Council,31/12/2022,Communities Housing and Environment,Customer Access,Supplies and Services,Bought In Professional Services,277,14/12/2022,2212-00068,0.00,126.00,R,A MOHAMMED,No
Http://opendatacommunities.org/id/metropolitan-district-council/leeds,Leeds City Council,31/12/2022,Communities Housing and Environment,Customer Access,Supplies and Services,Bought In Professional Services,277,14/12/2022,2212-00069,0.00,40.50,R,A MOHAMMED,No
Http://opendatacommunities.org/id/metropolitan-district-council/leeds,Leeds City Council,31/12/2022,Communities Housing and Environment,Customer Access,Supplies and Services,Bought In Professional Services,277,14/12/2022,2212-00070,0.00,135.00,R,A MOHAMMED,No
Http://opendatacommunities.org/id/metropolitan-district-council/leeds,Leeds City Council,31/12/2022,Communities Housing and Environment,Customer Access,Supplies and Services,Bought In Professional Services,277,14/12/2022,2212-00071,0.00,18.00,R,A MOHAMMED,No
Http://opendatacommunities.org/id/metropolitan-district-council/leeds,Leeds City Council,31/12/2022,Communities Housing and Environment,Customer Access,Supplies and Services,Bought In Professional Services,277,14/12/2022,2212-00072,0.00,126.00,R,A MOHAMMED,No
Http://opendatacommunities.org/id/metropolitan-district-council/leeds,Leeds City Council,31/12/2022,Communities Housing and Environment,Customer Access,Supplies and Services,Bought In Professional Services,277,21/12/2022,2212-00073,0.00,117.00,R,A MOHAMMED,No
Http://opendatacommunities.org/id/metropolitan-district-council/leeds,Leeds City Council,31/12/2022,Communities Housing and Environment,Customer Access,Supplies and Services,Bought In Professional Services,277,21/12/2022,2212-00074,0.00,18.00,R,A MOHAMMED,No
Http://opendatacommunities.org/id/metropolitan-district-council/leeds,Leeds City Council,31/12/2022,Communities Housing and Environment,Customer Access,Supplies and Services,Bought In Professional Services,277,21/12/2022,2212-00075,0.00,36.00,R,A MOHAMMED,No
Http://opendatacommunities.org/id/metropolitan-district-council/leeds,Leeds City Council,31/12/2022,Communities Housing and Environment,Customer Access,Supplies and Services,Bought In Professional Services,277,21/12/2022,2212-00076,0.00,18.00,R,A MOHAMMED,No
Http://opendatacommunities.org/id/metropolitan-district-council/leeds,Leeds City Council,31/12/2022,Communities Housing and Environment,Customer Access,Supplies and Services,Bought In Professional Services,277,21/12/2022,2212-00077,0.00,130.50,R,A MOHAMMED,No
Http://opendatacommunities.org/id/metropolitan-district-council/leeds,Leeds City Council,31/12/2022,Communities Housing and Environment,Customer Access,Supplies and Services,Bought In Professional Services,277,21/12/2022,2212-00078,0.00,40.50,R,A MOHAMMED,No
Http://opendatacommunities.org/id/metropolitan-district-council/leeds,Leeds City Council,31/12/2022,Communities Housing and Environment,Customer Access,Supplies and Services,Bought In Professional Services,277,21/12/2022,2212-00079,0.00,18.00,R,A MOHAMMED,No
Http://opendatacommunities.org/id/metropolitan-district-council/leeds,Leeds City Council,31/12/2022,Communities Housing and Environment,Customer Access,Supplies and Services,Bought In Professional Services,277,21/12/2022,2212-00080,0.00,18.00,R,A MOHAMMED,No
Http://opendatacommunities.org/id/metropolitan-district-council/leeds,Leeds City Council,31/12/2022,Communities Housing and Environment,Customer Access,Supplies and Services,Bought In Professional Services,277,21/12/2022,2212-00081,0.00,126.00,R,A MOHAMMED,No
Http://opendatacommunities.org/id/metropolitan-district-council/leeds,Leeds City Council,31/12/2022,Children and Families,Social Care,Agency Payments,Services Rendered By Other Organisations,511,02/12/2022,2212-00082,0.00,2563.27,R,REDACTED PERSONAL DATA,No
Http://opendatacommunities.org/id/metropolitan-district-council/leeds,Leeds City Council,31/12/2022,Children and Families,Social Care,Agency Payments,Services Rendered By Other Organisations,511,02/12/2022,2212-00083,0.00,865.80,R,REDACTED PERSONAL DATA,No
Http://opendatacommunities.org/id/metropolitan-district-council/leeds,Leeds City Council,31/12/2022,Children and Families,Social Care,Agency Payments,Services Rendered By Other Organisations,511,02/12/2022,2212-00084,0.00,234.00,R,REDACTED PERSONAL DATA,No
Http://opendatacommunities.org/id/metropolitan-district-council/leeds,Leeds City Council,31/12/2022,Children and Families,Social Care,Agency Payments,Services Rendered By Other Organisations,511,07/12/2022,2212-00085,0.00,543.07,R,REDACTED PERSONAL DATA,No
Http://opendatacommunities.org/id/metropolitan-district-council/leeds,Leeds City Council,31/12/2022,Children and Families,Social Care,Agency Payments,Services Rendered By Voluntary Sector,505,16/12/2022,2212-00086,0.00,146.67,R,REDACTED PERSONAL DATA,No
Http://opendatacommunities.org/id/metropolitan-district-council/leeds,Leeds City Council,31/12/2022,Children and Families,Social Care,Agency Payments,Services Rendered By Voluntary Sector,505,28/12/2022,2212-00087,0.00,900.00,R,REDACTED PERSONAL DATA,No
Http://opendatacommunities.org/id/metropolitan-district-council/leeds,Leeds City Council,31/12/2022,Communities Housing and Environment,Customer Access,Supplies and Services,Bought In Professional Services,277,07/12/2022,2212-00088,0.00,99.00,R,A NAMAKI,No
Http://opendatacommunities.org/id/metropolitan-district-council/leeds,Leeds City Council,31/12/2022,Communities Housing and Environment,Customer Access,Supplies and Services,Bought In Professional Services,277,07/12/2022,2212-00089,0.00,81.00,R,A NAMAKI,No
Http://opendatacommunities.org/id/metropolitan-district-council/leeds,Leeds City Council,31/12/2022,Communities Housing and Environment,Customer Access,Supplies and Services,Bought In Professional Services,277,07/12/2022,2212-00090,0.00,108.00,R,A NAMAKI,No
Http://opendatacommunities.org/id/metropolitan-district-council/leeds,Leeds City Council,31/12/2022,Communities Housing and Environment,Customer Access,Supplies and Services,Bought In Professional Services,277,07/12/2022,2212-00091,0.00,108.00,R,A NAMAKI,No
Http://opendatacommunities.org/id/metropolitan-district-council/leeds,Leeds City Council,31/12/2022,Communities Housing and Environment,Customer Access,Supplies and Services,Bought In Professional Services,277,07/12/2022,2212-00092,0.00,108.00,R,A NAMAKI,No
Http://opendatacommunities.org/id/metropolitan-district-council/leeds,Leeds City Council,31/12/2022,Communities Housing and Environment,Customer Access,Supplies and Services,Bought In Professional Services,277,14/12/2022,2212-00093,0.00,108.00,R,A NAMAKI,No
Http://opendatacommunities.org/id/metropolitan-district-council/leeds,Leeds City Council,31/12/2022,Communities Housing and Environment,Customer Access,Supplies and Services,Bought In Professional Services,277,14/12/2022,2212-00094,0.00,108.00,R,A NAMAKI,No
Http://opendatacommunities.org/id/metropolitan-district-council/leeds,Leeds City Council,31/12/2022,Communities Housing and Environment,Customer Access,Supplies and Services,Bought In Professional Services,277,14/12/2022,2212-00095,0.00,18.00,R,A NAMAKI,No
Http://opendatacommunities.org/id/metropolitan-district-council/leeds,Leeds City Council,31/12/2022,Communities Housing and Environment,Customer Access,Supplies and Services,Bought In Professional Services,277,14/12/2022,2212-00096,0.00,27.00,R,A NAMAKI,No
Http://opendatacommunities.org/id/metropolitan-district-council/leeds,Leeds City Council,31/12/2022,Communities Housing and Environment,Customer Access,Supplies and Services,Bought In Professional Services,277,14/12/2022,2212-00097,0.00,18.00,R,A NAMAKI,No
Http://opendatacommunities.org/id/metropolitan-district-council/leeds,Leeds City Council,31/12/2022,Communities Housing and Environment,Customer Access,Supplies and Services,Bought In Professional Services,277,14/12/2022,2212-00098,0.00,108.00,R,A NAMAKI,No
Http://opendatacommunities.org/id/metropolitan-district-council/leeds,Leeds City Council,31/12/2022,Communities Housing and Environment,Customer Access,Supplies and Services,Bought In Professional Services,277,21/12/2022,2212-00099,0.00,108.00,R,A NAMAKI,No
Http://opendatacommunities.org/id/metropolitan-district-council/leeds,Leeds City Council,31/12/2022,Communities Housing and Environment,Customer Access,Supplies and Services,Bought In Professional Services,277,21/12/2022,2212-00100,0.00,18.00,R,A NAMAKI,No
Http://opendatacommunities.org/id/metropolitan-district-council/leeds,Leeds City Council,31/12/2022,Communities Housing and Environment,Customer Access,Supplies and Services,Bought In Professional Services,277,21/12/2022,2212-00101,0.00,108.00,R,A NAMAKI,No
Http://opendatacommunities.org/id/metropolitan-district-council/leeds,Leeds City Council,31/12/2022,Communities Housing and Environment,Customer Access,Supplies and Services,Bought In Professional Services,277,21/12/2022,2212-00102,0.00,18.00,R,A NAMAKI,No
Http://opendatacommunities.org/id/metropolitan-district-council/leeds,Leeds City Council,31/12/2022,Children and Families,Social Care,Agency Payments,Services Rendered By Other Organisations,511,02/12/2022,2212-00103,0.00,233.02,R,REDACTED PERSONAL DATA,No
Http://opendatacommunities.org/id/metropolitan-district-council/leeds,Leeds City Council,31/12/2022,Communities Housing and Environment,Parks and Countryside,Supplies and Services,Resaleable Materials,204,21/12/2022,2212-00104,0.00,1086.00,R,A NEWTON,No
Http://opendatacommunities.org/id/metropolitan-district-council/leeds,Leeds City Council,31/12/2022,Strategic Landlord,HRA Housing Leeds,Capital,OTHER COSTS,7,22/12/2022,2212-00105,0.00,80.00,C,REDACTED PERSONAL DATA,No
Http://opendatacommunities.org/id/metropolitan-district-council/leeds,Leeds City Council,31/12/2022,City Development,Libraries Arts & Heritage,Supplies and Services,Resaleable Materials,204,15/12/2022,2212-00106,0.00,374.25,R,A Oppenheimer & Co Ltd,No
Http://opendatacommunities.org/id/metropolitan-district-council/leeds,Leeds City Council,31/12/2022,Communities Housing and Environment,Waste Management,Employees,Training & Development,70,09/12/2022,2212-00107,0.00,275.80,R,A T Nerac Ltd,No
Http://opendatacommunities.org/id/metropolitan-district-council/leeds,Leeds City Council,31/12/2022,Communities Housing and Environment,Waste Management,Employees,Training & Development,70,14/12/2022,2212-00108,0.00,339.80,R,A T Nerac Ltd,No
Http://opendatacommunities.org/id/metropolitan-district-council/leeds,Leeds City Council,31/12/2022,Children and Families,Social Care,Agency Payments,Services Rendered By Other Organisations,511,07/12/2022,2212-00109,0.00,334.20,R,REDACTED PERSONAL DATA,No
Http://opendatacommunities.org/id/metropolitan-district-council/leeds,Leeds City Council,31/12/2022,Children and Families,Social Care,Agency Payments,Services Rendered By Other Organisations,511,02/12/2022,2212-00110,0.00,543.72,R,REDACTED PERSONAL DATA,No
Http://opendatacommunities.org/id/metropolitan-district-council/leeds,Leeds City Council,31/12/2022,Children and Families,Social Care,Agency Payments,Services Rendered By Other Organisations,511,02/12/2022,2212-00111,0.00,109.20,R,REDACTED PERSONAL DATA,No
Http://opendatacommunities.org/id/metropolitan-district-council/leeds,Leeds City Council,31/12/2022,Children and Families,Social Care,Agency Payments,Services Rendered By Other Organisations,511,02/12/2022,2212-00112,0.00,117.00,R,REDACTED PERSONAL DATA,No
Http://opendatacommunities.org/id/metropolitan-district-council/leeds,Leeds City Council,31/12/2022,Communities Housing and Environment,Waste Management,Capital,FURNITURE AND EQUIPMENT,5,23/12/2022,2212-00113,0.00,15210.00,C,A&C Weber Uk Ltd,No
Http://opendatacommunities.org/id/metropolitan-district-council/leeds,Leeds City Council,31/12/2022,Communities Housing and Environment,Waste Management,Capital,FURNITURE AND EQUIPMENT,5,23/12/2022,2212-00114,0.00,10250.00,C,A&C Weber Uk Ltd,No
Http://opendatacommunities.org/id/metropolitan-district-council/leeds,Leeds City Council,31/12/2022,Resources,Leeds Building Services,Supplies and Services,Operational Materials,205,09/12/2022,2212-00115,0.00,195.00,R,A1 STAIR LIFT SERVICES,No
Http://opendatacommunities.org/id/metropolitan-district-council/leeds,Leeds City Council,31/12/2022,Resources,Leeds Building Services,Supplies and Services,Other Hired And Contracted Services,265,09/12/2022,2212-00116,0.00,2663.56,R,A1 STAIR LIFT SERVICES,No
Http://opendatacommunities.org/id/metropolitan-district-council/leeds,Leeds City Council,31/12/2022,Resources,Leeds Building Services,Supplies and Services,Other Hired And Contracted Services,265,09/12/2022,2212-00117,0.00,192.00,R,A1 STAIR LIFT SERVICES,No
Http://opendatacommunities.org/id/metropolitan-district-council/leeds,Leeds City Council,31/12/2022,Resources,Leeds Building Services,Supplies and Services,Other Hired And Contracted Services,265,16/12/2022,2212-00118,0.00,1913.50,R,A1 STAIR LIFT SERVICES,No
Http://opendatacommunities.org/id/metropolitan-district-council/leeds,Leeds City Council,31/12/2022,Resources,Leeds Building Services,Supplies and Services,Other Hired And Contracted Services,265,16/12/2022,2212-00119,0.00,1703.00,R,A1 STAIR LIFT SERVICES,No
Http://opendatacommunities.org/id/metropolitan-district-council/leeds,Leeds City Council,31/12/2022,Resources,Leeds Building Services,Supplies and Services,Other Hired And Contracted Services,265,23/12/2022,2212-00120,0.00,472.50,R,A1 STAIR LIFT SERVICES,No
Http://opendatacommunities.org/id/metropolitan-district-council/leeds,Leeds City Council,31/12/2022,Resources,Leeds Building Services,Supplies and Services,Other Hired And Contracted Services,265,23/12/2022,2212-00121,0.00,861.50,R,A1 STAIR LIFT SERVICES,No
Http://opendatacommunities.org/id/metropolitan-district-council/leeds,Leeds City Council,31/12/2022,Resources,Leeds Building Services,Supplies and Services,Other Hired And Contracted Services,265,30/12/2022,2212-00122,0.00,45.00,R,A1 STAIR LIFT SERVICES,No
Http://opendatacommunities.org/id/metropolitan-district-council/leeds,Leeds City Council,31/12/2022,Resources,Leeds Building Services,Supplies and Services,Other Hired And Contracted Services,265,30/12/2022,2212-00123,0.00,1255.50,R,A1 STAIR LIFT SERVICES,No
Http://opendatacommunities.org/id/metropolitan-district-council/leeds,Leeds City Council,31/12/2022,Resources,Leeds Building Services,Supplies and Services,Other Hired And Contracted Services,265,30/12/2022,2212-00124,0.00,993.00,R,A1 STAIR LIFT SERVICES,No
Http://opendatacommunities.org/id/metropolitan-district-council/leeds,Leeds City Council,31/12/2022,Communities Housing and Environment,Parks and Countryside ,Supplies and Services,Operational Furniture And Equipment,203,01/11/2022,2212-00125,0.00,37.33,R,A1mobile.Co.Uk,Yes
Http://opendatacommunities.org/id/metropolitan-district-council/leeds,Leeds City Council,31/12/2022,Adults and Health,Services For Older People - 65 And Over,Agency Payments,Residential Care Dementia,571,07/12/2022,2212-00126,0.00,2177.12,R,Aaron Court Care Home,No
Http://opendatacommunities.org/id/metropolitan-district-council/leeds,Leeds City Council,31/12/2022,Adults and Health,Services For Older People - 65 And Over,Agency Payments,Residential Care Dementia,571,28/12/2022,2212-00127,0.00,2177.12,R,Aaron Court Care Home,No
Http://opendatacommunities.org/id/metropolitan-district-council/leeds,Leeds City Council as Accountable Body,31/12/2022,Social Services Pooled Budgets,Jcs For People With Learning Disabilitie,Supplies and Services,Other Equipment,203,08/12/2022,2212-00128,0.00,2142.00,R,AAT (GB) LTD,No
Http://opendatacommunities.org/id/metropolitan-district-council/leeds,Leeds City Council as Accountable Body,31/12/2022,Social Services Pooled Budgets,Jcs For People With Learning Disabilitie,Supplies and Services,Other Equipment,203,08/12/2022,2212-00129,0.00,1902.00,R,AAT (GB) LTD,No
Http://opendatacommunities.org/id/metropolitan-district-council/leeds,Leeds City Council,31/12/2022,City Development,Libraries Arts & Heritage,Supplies and Services,Other Hired And Contracted Services,265,09/12/2022,2212-00130,0.00,279.00,R,AAT (GB) LTD,No
Http://opendatacommunities.org/id/metropolitan-district-council/leeds,Leeds City Council as Accountable Body,31/12/2022,Social Services Pooled Budgets,Leeds Community Equip Store Pooled Budgt,Supplies and Services,Other Equipment,203,09/12/2022,2212-00131,0.00,1451.00,R,AAT (GB) LTD,No
Http://opendatacommunities.org/id/metropolitan-district-council/leeds,Leeds City Council as Accountable Body,31/12/2022,Social Services Pooled Budgets,Leeds Community Equip Store Pooled Budgt,Supplies and Services,Other Equipment,203,09/12/2022,2212-00132,0.00,345.00,R,AAT (GB) LTD,No
Http://opendatacommunities.org/id/metropolitan-district-council/leeds,Leeds City Council as Accountable Body,31/12/2022,Social Services Pooled Budgets,Leeds Community Equip Store Pooled Budgt,Supplies and Services,Other Equipment,203,14/12/2022,2212-00133,0.00,160.00,R,AAT (GB) LTD,No
Http://opendatacommunities.org/id/metropolitan-district-council/leeds,Leeds City Council as Accountable Body,31/12/2022,Social Services Pooled Budgets,Jcs For People With Learning Disabilitie,Supplies and Services,Other Equipment,203,14/12/2022,2212-00134,0.00,1095.00,R,AAT (GB) LTD,No
Http://opendatacommunities.org/id/metropolitan-district-council/leeds,Leeds City Council as Accountable Body,31/12/2022,Social Services Pooled Budgets,Jcs For People With Learning Disabilitie,Supplies and Services,Other Equipment,203,14/12/2022,2212-00135,0.00,350.00,R,AAT (GB) LTD,No
Http://opendatacommunities.org/id/metropolitan-district-council/leeds,Leeds City Council as Accountable Body,31/12/2022,Social Services Pooled Budgets,Leeds Community Equip Store Pooled Budgt,Supplies and Services,Other Equipment,203,16/12/2022,2212-00136,0.00,1034.00,R,AAT (GB) LTD,No
Http://opendatacommunities.org/id/metropolitan-district-council/leeds,Leeds City Council as Accountable Body,31/12/2022,Social Services Pooled Budgets,Leeds Community Equip Store Pooled Budgt,Supplies and Services,Other Equipment,203,16/12/2022,2212-00137,0.00,195.00,R,AAT (GB) LTD,No
Http://opendatacommunities.org/id/metropolitan-district-council/leeds,Leeds City Council,31/12/2022,Strategic Landlord,HRA Housing Leeds,Capital,OTHER COSTS,7,01/12/2022,2212-00138,0.00,94.17,C,REDACTED PERSONAL DATA,No
Http://opendatacommunities.org/id/metropolitan-district-council/leeds,Leeds City Council as Accountable Body,31/12/2022,Social Services Pooled Budgets,Jcs For People With Learning Disabilitie,Agency Payments,Residential,580,07/12/2022,2212-00139,0.00,11720.20,R,Abbey Care And Education,No
Http://opendatacommunities.org/id/metropolitan-district-council/leeds,Leeds City Council as Accountable Body,31/12/2022,Social Services Pooled Budgets,Jcs For People With Learning Disabilitie,Agency Payments,Residential,580,28/12/2022,2212-00140,0.00,11720.20,R,Abbey Care And Education,No
Http://opendatacommunities.org/id/metropolitan-district-council/leeds,Leeds City Council,31/12/2022,Children and Families,Social Care,Supplies and Services,Other Hired And Contracted Services,265,29/12/2022,2212-00141,0.00,24.29,R,Abbey Grange Medical Practice,No
Http://opendatacommunities.org/id/metropolitan-district-council/leeds,Leeds City Council,31/12/2022,Children and Families,Social Care,Agency Payments,Services Rendered By Other Organisations,511,02/12/2022,2212-00142,0.00,33541.26,R,Abbey Multi Academy Trust,No
Http://opendatacommunities.org/id/metropolitan-district-council/leeds,Leeds City Council,31/12/2022,Children and Families,Social Care,Agency Payments,Services Rendered By Other Organisations,511,02/12/2022,2212-00143,0.00,820.05,R,Abbey Multi Academy Trust,No
Http://opendatacommunities.org/id/metropolitan-district-council/leeds,Leeds City Council,31/12/2022,Children and Families,Social Care,Agency Payments,Services Rendered By Other Organisations,511,02/12/2022,2212-00144,0.00,234.00,R,Abbey Multi Academy Trust,No
Http://opendatacommunities.org/id/metropolitan-district-council/leeds,Leeds City Council,31/12/2022,Children and Families,Learning,Supplies and Services,Other Hired And Contracted Services,265,22/12/2022,2212-00145,0.00,2874.00,R,Abbey Multi Academy Trust,No
Http://opendatacommunities.org/id/metropolitan-district-council/leeds,Leeds City Council,31/12/2022,Children and Families,Social Care,Supplies and Services,Food & Drink,231,28/12/2022,2212-00146,0.00,34.00,R,Abbey Multi Academy Trust,No
Http://opendatacommunities.org/id/metropolitan-district-council/leeds,Leeds City Council,31/12/2022,Adults and Health,Services For Adults Under 65 Mental/Dis,Agency Payments,Home Care,568,01/12/2022,2212-00147,0.00,564.38,R,Abbeyfield The Dales Limited,No
Http://opendatacommunities.org/id/metropolitan-district-council/leeds,Leeds City Council,31/12/2022,Adults and Health,Services For Adults Under 65 Mental/Dis,Agency Payments,Home Care,568,29/12/2022,2212-00148,0.00,451.50,R,Abbeyfield The Dales Limited,No
Http://opendatacommunities.org/id/metropolitan-district-council/leeds,Leeds City Council,31/12/2022,Children and Families,Social Care,Agency Payments,Allowances,546,19/12/2022,2212-00149,0.00,1114.83,R,ABBIE O MAHONY,No
Http://opendatacommunities.org/id/metropolitan-district-council/leeds,Leeds City Council,31/12/2022,Children and Families,Social Care,Agency Payments,Services Rendered By Other Organisations,511,02/12/2022,2212-00150,0.00,1993.86,R,REDACTED PERSONAL DATA,No
Http://opendatacommunities.org/id/metropolitan-district-council/leeds,Leeds City Council,31/12/2022,Children and Families,Social Care,Agency Payments,Services Rendered By Other Organisations,511,02/12/2022,2212-00151,0.00,542.43,R,REDACTED PERSONAL DATA,No
Http://opendatacommunities.org/id/metropolitan-district-council/leeds,Leeds City Council,31/12/2022,Children and Families,Social Care,Internal Recharges,Legal Disbursements,411,01/12/2022,2212-00152,0.00,64.00,R,Abbott Toxicology Ltd.,No
Http://opendatacommunities.org/id/metropolitan-district-council/leeds,Leeds City Council,31/12/2022,Communities Housing and Environment,Parks and Countryside ,Supplies and Services,Other Hired And Contracted Services,265,02/11/2022,2212-00153,0.00,600.00,R,Abbotts Memorial Compa,Yes
Http://opendatacommunities.org/id/metropolitan-district-council/leeds,Leeds City Council,31/12/2022,Communities Housing and Environment,Parks and Countryside ,Supplies and Services,Other Hired And Contracted Services,265,03/11/2022,2212-00154,0.00,2800.00,R,Abbotts Memorial Compa,Yes
Http://opendatacommunities.org/id/metropolitan-district-council/leeds,Leeds City Council,31/12/2022,Communities Housing and Environment,Parks and Countryside ,Supplies and Services,Other Hired And Contracted Services,265,23/11/2022,2212-00155,0.00,2100.00,R,Abbotts Memorial Compa,Yes
Http://opendatacommunities.org/id/metropolitan-district-council/leeds,Leeds City Council,31/12/2022,Communities Housing and Environment,Parks and Countryside,Supplies and Services,Other Hired And Contracted Services,265,16/12/2022,2212-00156,0.00,600.00,R,Abbotts Memorials,No
Http://opendatacommunities.org/id/metropolitan-district-council/leeds,Leeds City Council,31/12/2022,Children and Families,Social Care,Agency Payments,General External Residential Placements,507,13/12/2022,2212-00157,0.00,15274.41,R,Abc Care And Education Ltd,No
Http://opendatacommunities.org/id/metropolitan-district-council/leeds,Leeds City Council,31/12/2022,Children and Families,Social Care,Agency Payments,Services Rendered By Other Organisations,511,02/12/2022,2212-00158,0.00,4562.40,R,ABC NURSERY AT LUFC,No
Http://opendatacommunities.org/id/metropolitan-district-council/leeds,Leeds City Council,31/12/2022,Children and Families,Social Care,Agency Payments,Services Rendered By Other Organisations,511,02/12/2022,2212-00159,0.00,1532.10,R,ABC NURSERY AT LUFC,No
Http://opendatacommunities.org/id/metropolitan-district-council/leeds,Leeds City Council,31/12/2022,Children and Families,Social Care,Agency Payments,Services Rendered By Other Organisations,511,02/12/2022,2212-00160,0.00,585.00,R,ABC NURSERY AT LUFC,No
Http://opendatacommunities.org/id/metropolitan-district-council/leeds,Leeds City Council,31/12/2022,Children and Families,Social Care,Agency Payments,Services Rendered By Other Organisations,511,07/12/2022,2212-00161,0.00,6245.36,R,ABC NURSERY AT LUFC,No
Http://opendatacommunities.org/id/metropolitan-district-council/leeds,Leeds City Council,31/12/2022,Children and Families,Social Care,Agency Payments,Services Rendered By Voluntary Sector,505,16/12/2022,2212-00162,0.00,73.33,R,ABC NURSERY AT LUFC,No
Http://opendatacommunities.org/id/metropolitan-district-council/leeds,Leeds City Council,31/12/2022,Children and Families,Social Care,Agency Payments,Services Rendered By Voluntary Sector,505,28/12/2022,2212-00163,0.00,91.67,R,ABC NURSERY AT LUFC,No
Http://opendatacommunities.org/id/metropolitan-district-council/leeds,Leeds City Council,31/12/2022,Children and Families,Social Care,Agency Payments,Services Rendered By Other Organisations,511,02/12/2022,2212-00164,0.00,4033.12,R,Abc@D'S Childcare,No
Http://opendatacommunities.org/id/metropolitan-district-council/leeds,Leeds City Council,31/12/2022,Children and Families,Social Care,Agency Payments,Services Rendered By Other Organisations,511,02/12/2022,2212-00165,0.00,452.40,R,Abc@D'S Childcare,No
Http://opendatacommunities.org/id/metropolitan-district-council/leeds,Leeds City Council,31/12/2022,Children and Families,Social Care,Agency Payments,Services Rendered By Other Organisations,511,02/12/2022,2212-00166,0.00,9.00,R,Abc@D'S Childcare,No
Http://opendatacommunities.org/id/metropolitan-district-council/leeds,Leeds City Council,31/12/2022,Children and Families,Social Care,Agency Payments,Services Rendered By Other Organisations,511,07/12/2022,2212-00167,0.00,1629.22,R,Abc@D'S Childcare,No
Http://opendatacommunities.org/id/metropolitan-district-council/leeds,Leeds City Council,31/12/2022,Communities Housing and Environment,Customer Access,Supplies and Services,Bought In Professional Services,277,07/12/2022,2212-00168,0.00,18.00,R,Abdiqafar Abdullahi,No
Http://opendatacommunities.org/id/metropolitan-district-council/leeds,Leeds City Council,31/12/2022,Communities Housing and Environment,Customer Access,Supplies and Services,Bought In Professional Services,277,14/12/2022,2212-00169,0.00,9.00,R,Abdiqafar Abdullahi,No
Http://opendatacommunities.org/id/metropolitan-district-council/leeds,Leeds City Council,31/12/2022,Communities Housing and Environment,Customer Access,Supplies and Services,Bought In Professional Services,277,07/12/2022,2212-00170,0.00,18.00,R,Abdul Kalam,No
Http://opendatacommunities.org/id/metropolitan-district-council/leeds,Leeds City Council,31/12/2022,Communities Housing and Environment,Customer Access,Supplies and Services,Bought In Professional Services,277,07/12/2022,2212-00171,0.00,27.00,R,Abdul Kalam,No
Http://opendatacommunities.org/id/metropolitan-district-council/leeds,Leeds City Council,31/12/2022,Communities Housing and Environment,Customer Access,Supplies and Services,Bought In Professional Services,277,14/12/2022,2212-00172,0.00,18.00,R,Abdul Kalam,No
Http://opendatacommunities.org/id/metropolitan-district-council/leeds,Leeds City Council,31/12/2022,Communities Housing and Environment,Car Parking Services,External Income,Penalties Fines & Car Parking Charges,934,02/12/2022,2212-00173,0.00,70.00,R,REDACTED PERSONAL DATA,No
Http://opendatacommunities.org/id/metropolitan-district-council/leeds,Leeds City Council,31/12/2022,Communities Housing and Environment,Benefits Wlefare and Poverty,Supplies and Services,Grant Related Expenditure,290,19/12/2022,2212-00174,0.00,50.00,R,REDACTED PERSONAL DATA,No
Http://opendatacommunities.org/id/metropolitan-district-council/leeds,Leeds City Council,31/12/2022,Communities Housing and Environment,Customer Access,Supplies and Services,Bought In Professional Services,277,07/12/2022,2212-00175,0.00,18.00,R,Abdulahad Denha,No
Http://opendatacommunities.org/id/metropolitan-district-council/leeds,Leeds City Council,31/12/2022,Communities Housing and Environment,Customer Access,Supplies and Services,Bought In Professional Services,277,07/12/2022,2212-00176,0.00,18.00,R,Abdulahad Denha,No
Http://opendatacommunities.org/id/metropolitan-district-council/leeds,Leeds City Council,31/12/2022,Communities Housing and Environment,Customer Access,Supplies and Services,Bought In Professional Services,277,07/12/2022,2212-00177,0.00,18.00,R,Abdulahad Denha,No
Http://opendatacommunities.org/id/metropolitan-district-council/leeds,Leeds City Council,31/12/2022,Communities Housing and Environment,Customer Access,Supplies and Services,Bought In Professional Services,277,07/12/2022,2212-00178,0.00,18.00,R,Abdulahad Denha,No
Http://opendatacommunities.org/id/metropolitan-district-council/leeds,Leeds City Council,31/12/2022,Communities Housing and Environment,Customer Access,Supplies and Services,Bought In Professional Services,277,14/12/2022,2212-00179,0.00,9.00,R,Abdulahad Denha,No
Http://opendatacommunities.org/id/metropolitan-district-council/leeds,Leeds City Council,31/12/2022,Communities Housing and Environment,Customer Access,Supplies and Services,Bought In Professional Services,277,14/12/2022,2212-00180,0.00,27.00,R,Abdulahad Denha,No
Http://opendatacommunities.org/id/metropolitan-district-council/leeds,Leeds City Council,31/12/2022,Communities Housing and Environment,Customer Access,Supplies and Services,Bought In Professional Services,277,14/12/2022,2212-00181,0.00,18.00,R,Abdulahad Denha,No
Http://opendatacommunities.org/id/metropolitan-district-council/leeds,Leeds City Council,31/12/2022,Communities Housing and Environment,Customer Access,Supplies and Services,Bought In Professional Services,277,21/12/2022,2212-00182,0.00,27.00,R,Abdulahad Denha,No
Http://opendatacommunities.org/id/metropolitan-district-council/leeds,Leeds City Council,31/12/2022,Communities Housing and Environment,Customer Access,Supplies and Services,Bought In Professional Services,277,21/12/2022,2212-00183,0.00,18.00,R,Abdulahad Denha,No
Http://opendatacommunities.org/id/metropolitan-district-council/leeds,Leeds City Council,31/12/2022,Communities Housing and Environment,Customer Access,Supplies and Services,Bought In Professional Services,277,21/12/2022,2212-00184,0.00,18.00,R,Abdulahad Denha,No
Http://opendatacommunities.org/id/metropolitan-district-council/leeds,Leeds City Council,31/12/2022,Communities Housing and Environment,Customer Access,Supplies and Services,Bought In Professional Services,277,14/12/2022,2212-00185,0.00,27.00,R,Abdulrahim Dastyar,No
Http://opendatacommunities.org/id/metropolitan-district-council/leeds,Leeds City Council,31/12/2022,Communities Housing and Environment,Customer Access,Supplies and Services,Bought In Professional Services,277,14/12/2022,2212-00186,0.00,18.00,R,Abdulrahim Dastyar,No
Http://opendatacommunities.org/id/metropolitan-district-council/leeds,Leeds City Council,31/12/2022,Communities Housing and Environment,Customer Access,Supplies and Services,Bought In Professional Services,277,21/12/2022,2212-00187,0.00,9.00,R,Abdulrahim Dastyar,No
Http://opendatacommunities.org/id/metropolitan-district-council/leeds,Leeds City Council,31/12/2022,Communities Housing and Environment,Communities,Supplies and Services,Other Hired And Contracted Services,265,09/12/2022,2212-00188,0.00,375.00,R,Abdulrahman Al Ganad,No
Http://opendatacommunities.org/id/metropolitan-district-council/leeds,Leeds City Council,31/12/2022,Children and Families,Social Care,Agency Payments,Placement Support,550,21/12/2022,2212-00189,0.00,400.00,R,Aberford Childcare Services,No
Http://opendatacommunities.org/id/metropolitan-district-council/leeds,Leeds City Council,31/12/2022,Adults and Health,Services For Older People - 65 And Over,Agency Payments,Nursing Home,570,07/12/2022,2212-00190,0.00,26006.34,R,Aberford Hall,No
Http://opendatacommunities.org/id/metropolitan-district-council/leeds,Leeds City Council,31/12/2022,Adults and Health,Services For Older People - 65 And Over,Agency Payments,Nursing Care Dementia,574,07/12/2022,2212-00191,0.00,1982.00,R,Aberford Hall,No
Http://opendatacommunities.org/id/metropolitan-district-council/leeds,Leeds City Council,31/12/2022,Adults and Health,Services For Older People - 65 And Over,Agency Payments,Residential,580,07/12/2022,2212-00192,0.00,888.10,R,Aberford Hall,No
Http://opendatacommunities.org/id/metropolitan-district-council/leeds,Leeds City Council,31/12/2022,Adults and Health,Services For Older People Under 65 P/Dis,Agency Payments,Nursing Home,570,07/12/2022,2212-00193,0.00,2636.00,R,Aberford Hall,No
Http://opendatacommunities.org/id/metropolitan-district-council/leeds,Leeds City Council,31/12/2022,Adults and Health,Services For Older People - 65 And Over,Agency Payments,Nursing Home,570,28/12/2022,2212-00194,0.00,58803.66,R,Aberford Hall,No
Http://opendatacommunities.org/id/metropolitan-district-council/leeds,Leeds City Council,31/12/2022,Adults and Health,Services For Older People - 65 And Over,Agency Payments,Nursing Care Dementia,574,28/12/2022,2212-00195,0.00,4094.86,R,Aberford Hall,No
Http://opendatacommunities.org/id/metropolitan-district-council/leeds,Leeds City Council,31/12/2022,Adults and Health,Services For Older People Under 65 P/Dis,Agency Payments,Nursing Home,570,28/12/2022,2212-00196,0.00,3908.86,R,Aberford Hall,No
Http://opendatacommunities.org/id/metropolitan-district-council/leeds,Leeds City Council,31/12/2022,Resources,Leeds Building Services,Supplies and Services,Operational Materials,205,02/12/2022,2212-00197,0.00,437.20,R,ABI GARAGE DOORS LTD,No
Http://opendatacommunities.org/id/metropolitan-district-council/leeds,Leeds City Council,31/12/2022,Resources,Leeds Building Services,Supplies and Services,Operational Materials,205,09/12/2022,2212-00198,0.00,437.20,R,ABI GARAGE DOORS LTD,No
Http://opendatacommunities.org/id/metropolitan-district-council/leeds,Leeds City Council,31/12/2022,Resources,Leeds Building Services,Supplies and Services,Operational Materials,205,09/12/2022,2212-00199,0.00,3127.04,R,ABI GARAGE DOORS LTD,No
Http://opendatacommunities.org/id/metropolitan-district-council/leeds,Leeds City Council,31/12/2022,Resources,Leeds Building Services,Supplies and Services,Operational Materials,205,16/12/2022,2212-00200,0.00,390.88,R,ABI GARAGE DOORS LTD,No
Http://opendatacommunities.org/id/metropolitan-district-council/leeds,Leeds City Council,31/12/2022,Resources,Leeds Building Services,Supplies and Services,Operational Materials,205,16/12/2022,2212-00201,0.00,391.85,R,ABI GARAGE DOORS LTD,No
Http://opendatacommunities.org/id/metropolitan-district-council/leeds,Leeds City Council,31/12/2022,Resources,Leeds Building Services,Supplies and Services,Operational Materials,205,30/12/2022,2212-00202,0.00,390.88,R,ABI GARAGE DOORS LTD,No
Http://opendatacommunities.org/id/metropolitan-district-council/leeds,Leeds City Council,31/12/2022,Children and Families,Social Care,Agency Payments,Section 17,551,13/12/2022,2212-00203,0.00,10.00,R,REDACTED PERSONAL DATA,No
Http://opendatacommunities.org/id/metropolitan-district-council/leeds,Leeds City Council,31/12/2022,Children and Families,Social Care,Agency Payments,Section 17,551,06/12/2022,2212-00204,0.00,49.20,R,REDACTED PERSONAL DATA,No
Http://opendatacommunities.org/id/metropolitan-district-council/leeds,Leeds City Council,31/12/2022,Adults and Health,Services For Older People Under 65 P/Dis,Appropriations,Direct Payments,626,01/12/2022,2212-00205,0.00,2766.00,R,REDACTED PERSONAL DATA,No
Http://opendatacommunities.org/id/metropolitan-district-council/leeds,Leeds City Council,31/12/2022,Children and Families,Social Care,Agency Payments,General External Residential Placements,507,30/12/2022,2212-00206,0.00,17121.30,R,Absolute Children's Services Ltd,No
Http://opendatacommunities.org/id/metropolitan-district-council/leeds,Leeds City Council,31/12/2022,Adults and Health,Services For Adults Under 65 Mental/Dis,Agency Payments,Fees - Level 4,520,07/12/2022,2212-00207,0.00,810.08,R,Abubaker Denja Mohammed,No
Http://opendatacommunities.org/id/metropolitan-district-council/leeds,Leeds City Council,31/12/2022,Adults and Health,Services For Adults Under 65 Mental/Dis,Agency Payments,Fees - Level 4,520,07/12/2022,2212-00208,0.00,786.00,R,Abubaker Denja Mohammed,No
Http://opendatacommunities.org/id/metropolitan-district-council/leeds,Leeds City Council,31/12/2022,Children and Families,Social Care,Agency Payments,Services Rendered By Other Organisations,511,02/12/2022,2212-00209,0.00,2655.75,R,Academies Enterprise Trust (AET),No
Http://opendatacommunities.org/id/metropolitan-district-council/leeds,Leeds City Council,31/12/2022,Children and Families,Social Care,Agency Payments,Services Rendered By Other Organisations,511,02/12/2022,2212-00210,0.00,34631.10,R,Academies Enterprise Trust (AET),No
Http://opendatacommunities.org/id/metropolitan-district-council/leeds,Leeds City Council,31/12/2022,Children and Families,Social Care,Agency Payments,Services Rendered By Other Organisations,511,02/12/2022,2212-00211,0.00,99.00,R,Academies Enterprise Trust (AET),No
Http://opendatacommunities.org/id/metropolitan-district-council/leeds,Leeds City Council,31/12/2022,Children and Families,Social Care,Agency Payments,Services Rendered By Other Organisations,511,07/12/2022,2212-00212,0.00,9858.90,R,Academies Enterprise Trust (AET),No
Http://opendatacommunities.org/id/metropolitan-district-council/leeds,Leeds City Council,31/12/2022,Children and Families,Learning,Supplies and Services,Other Hired And Contracted Services,265,22/12/2022,2212-00213,0.00,3912.00,R,Academies Enterprise Trust (AET),No
Http://opendatacommunities.org/id/metropolitan-district-council/leeds,Leeds City Council,31/12/2022,Adults and Health,Social Services Support Services,Employees,Training & Development,70,02/12/2022,2212-00214,0.00,5695.00,R,ACAS,No
Http://opendatacommunities.org/id/metropolitan-district-council/leeds,Leeds City Council,31/12/2022,Resources,Leeds Building Services,Supplies and Services,Operational Materials,205,07/12/2022,2212-00215,0.00,52.76,R,ACCESS LOCKSMITHS (LEEDS) LIMITED,No
Http://opendatacommunities.org/id/metropolitan-district-council/leeds,Leeds City Council,31/12/2022,Resources,Leeds Building Services,Supplies and Services,Operational Materials,205,07/12/2022,2212-00216,0.00,38.75,R,ACCESS LOCKSMITHS (LEEDS) LIMITED,No
Http://opendatacommunities.org/id/metropolitan-district-council/leeds,Leeds City Council,31/12/2022,Resources,Leeds Building Services,Supplies and Services,Operational Materials,205,07/12/2022,2212-00217,0.00,90.87,R,ACCESS LOCKSMITHS (LEEDS) LIMITED,No
Http://opendatacommunities.org/id/metropolitan-district-council/leeds,Leeds City Council,31/12/2022,Resources,Leeds Building Services,Supplies and Services,Operational Materials,205,07/12/2022,2212-00218,0.00,26.15,R,ACCESS LOCKSMITHS (LEEDS) LIMITED,No
Http://opendatacommunities.org/id/metropolitan-district-council/leeds,Leeds City Council,31/12/2022,Resources,Leeds Building Services,Supplies and Services,Operational Materials,205,07/12/2022,2212-00219,0.00,105.00,R,ACCESS LOCKSMITHS (LEEDS) LIMITED,No
Http://opendatacommunities.org/id/metropolitan-district-council/leeds,Leeds City Council,31/12/2022,Resources,Leeds Building Services,Supplies and Services,Operational Materials,205,07/12/2022,2212-00220,0.00,210.84,R,ACCESS LOCKSMITHS (LEEDS) LIMITED,No
Http://opendatacommunities.org/id/metropolitan-district-council/leeds,Leeds City Council,31/12/2022,Resources,Leeds Building Services,Supplies and Services,Operational Materials,205,07/12/2022,2212-00221,0.00,133.92,R,ACCESS LOCKSMITHS (LEEDS) LIMITED,No
Http://opendatacommunities.org/id/metropolitan-district-council/leeds,Leeds City Council,31/12/2022,Resources,Leeds Building Services,Supplies and Services,Operational Materials,205,07/12/2022,2212-00222,0.00,15.00,R,ACCESS LOCKSMITHS (LEEDS) LIMITED,No
Http://opendatacommunities.org/id/metropolitan-district-council/leeds,Leeds City Council,31/12/2022,Resources,Leeds Building Services,Premises,Cleaning Maintenance & Toiletries,127,07/12/2022,2212-00223,0.00,87.85,R,ACCESS LOCKSMITHS (LEEDS) LIMITED,No
Http://opendatacommunities.org/id/metropolitan-district-council/leeds,Leeds City Council,31/12/2022,Resources,Leeds Building Services,Supplies and Services,Operational Materials,205,07/12/2022,2212-00224,0.00,45.83,R,ACCESS LOCKSMITHS (LEEDS) LIMITED,No
Http://opendatacommunities.org/id/metropolitan-district-council/leeds,Leeds City Council,31/12/2022,Resources,Leeds Building Services,Supplies and Services,Operational Materials,205,07/12/2022,2212-00225,0.00,141.31,R,ACCESS LOCKSMITHS (LEEDS) LIMITED,No
Http://opendatacommunities.org/id/metropolitan-district-council/leeds,Leeds City Council,31/12/2022,Resources,Leeds Building Services,Supplies and Services,Operational Materials,205,07/12/2022,2212-00226,0.00,141.31,R,ACCESS LOCKSMITHS (LEEDS) LIMITED,No
Http://opendatacommunities.org/id/metropolitan-district-council/leeds,Leeds City Council,31/12/2022,Resources,Leeds Building Services,Supplies and Services,Operational Materials,205,07/12/2022,2212-00227,0.00,141.31,R,ACCESS LOCKSMITHS (LEEDS) LIMITED,No
Http://opendatacommunities.org/id/metropolitan-district-council/leeds,Leeds City Council,31/12/2022,Resources,Leeds Building Services,Supplies and Services,Operational Materials,205,07/12/2022,2212-00228,0.00,112.89,R,ACCESS LOCKSMITHS (LEEDS) LIMITED,No
Http://opendatacommunities.org/id/metropolitan-district-council/leeds,Leeds City Council,31/12/2022,Resources,Leeds Building Services,Supplies and Services,Operational Materials,205,07/12/2022,2212-00229,0.00,113.46,R,ACCESS LOCKSMITHS (LEEDS) LIMITED,No
Http://opendatacommunities.org/id/metropolitan-district-council/leeds,Leeds City Council,31/12/2022,City Development,Libraries Arts & Heritage,Supplies and Services,Bought In Professional Services,277,21/12/2022,2212-00230,0.00,1000.00,R,ACCESS MOVING IMAGE LTD,No
Http://opendatacommunities.org/id/metropolitan-district-council/leeds,Leeds City Council,31/12/2022,Adults and Health,Social Services Support Services,Supplies and Services,Computer Software & Equipment,214,16/12/2022,2212-00231,0.00,17460.00,R,Access Uk Ltd,No
Http://opendatacommunities.org/id/metropolitan-district-council/leeds,Leeds City Council,31/12/2022,Insurance,Insurance,Supplies and Services,Insurance Claims,248,23/12/2022,2212-00232,0.00,3492.16,R,Accident Exchange Ltd,No
Http://opendatacommunities.org/id/metropolitan-district-council/leeds,Leeds City Council,31/12/2022,City Development,Recreation ,Supplies and Services,Operational Furniture And Equipment,203,01/11/2022,2212-00233,0.00,7.59,R,Accu.Co.Uk,Yes
Http://opendatacommunities.org/id/metropolitan-district-council/leeds,Leeds City Council,31/12/2022,City Development,Recreation,Transport,External Hire -Occasional,304,01/12/2022,2212-00234,0.00,124.50,R,ACE CONTAINER SERVICES LIMITED,No
Http://opendatacommunities.org/id/metropolitan-district-council/leeds,Leeds City Council,31/12/2022,City Development,Recreation,Transport,External Hire -Occasional,304,30/12/2022,2212-00235,0.00,128.65,R,ACE CONTAINER SERVICES LIMITED,No
Http://opendatacommunities.org/id/metropolitan-district-council/leeds,Leeds City Council,31/12/2022,Resources,Leeds Building Services,Supplies and Services,Other Hired And Contracted Services,265,23/12/2022,2212-00236,0.00,1120.00,R,Ace Elevators Limited,No
Http://opendatacommunities.org/id/metropolitan-district-council/leeds,Leeds City Council,31/12/2022,City Development,Asset Management Services ,Supplies and Services,Licences,266,02/11/2022,2212-00237,0.00,125.00,R,Aces.Org.Uk,Yes
Http://opendatacommunities.org/id/metropolitan-district-council/leeds,Leeds City Council,31/12/2022,Strategic Landlord,HRA Council Housing Growth Programme,Capital,LAND,1,20/12/2022,2212-00238,0.00,118302.06,C,Ackroyd Legal (London) LLP,No
Http://opendatacommunities.org/id/metropolitan-district-council/leeds,Leeds City Council,31/12/2022,Communities Housing and Environment,Parks and Countryside ,Supplies and Services,Other Hired And Contracted Services,265,02/11/2022,2212-00239,0.00,1381.57,R,Acme Facilities Group,Yes
Http://opendatacommunities.org/id/metropolitan-district-council/leeds,Leeds City Council,31/12/2022,Communities Housing and Environment,Parks and Countryside ,Supplies and Services,Other Hired And Contracted Services,265,09/11/2022,2212-00240,0.00,180.00,R,Acme Facilities Group,Yes
Http://opendatacommunities.org/id/metropolitan-district-council/leeds,Leeds City Council,31/12/2022,Children and Families,Social Care,Agency Payments,General External Residential Placements,507,02/12/2022,2212-00241,0.00,13387.57,R,Acorn Care & Education Ltd (Sales),No
Http://opendatacommunities.org/id/metropolitan-district-council/leeds,Leeds City Council,31/12/2022,Children and Families,Social Care,Agency Payments,General External Residential Placements,507,02/12/2022,2212-00242,0.00,5077.63,R,Acorn Care & Education Ltd (Sales),No
Http://opendatacommunities.org/id/metropolitan-district-council/leeds,Leeds City Council,31/12/2022,Children and Families,Social Care,Agency Payments,General External Residential Placements,507,02/12/2022,2212-00243,0.00,4720.30,R,Acorn Care & Education Ltd (Sales),No
Http://opendatacommunities.org/id/metropolitan-district-council/leeds,Leeds City Council,31/12/2022,Children and Families,Social Care,Agency Payments,General External Residential Placements,507,02/12/2022,2212-00244,0.00,19048.75,R,Acorn Care & Education Ltd (Sales),No
Http://opendatacommunities.org/id/metropolitan-district-council/leeds,Leeds City Council,31/12/2022,Children and Families,Social Care,Agency Payments,General External Residential Placements,507,02/12/2022,2212-00245,0.00,18635.34,R,Acorn Care & Education Ltd (Sales),No
Http://opendatacommunities.org/id/metropolitan-district-council/leeds,Leeds City Council,31/12/2022,Children and Families,Social Care,Agency Payments,General External Residential Placements,507,02/12/2022,2212-00246,0.00,18635.34,R,Acorn Care & Education Ltd (Sales),No
Http://opendatacommunities.org/id/metropolitan-district-council/leeds,Leeds City Council,31/12/2022,Children and Families,Social Care,Agency Payments,General External Residential Placements,507,07/12/2022,2212-00247,0.00,9517.00,R,Acorn Care & Education Ltd (Sales),No
Http://opendatacommunities.org/id/metropolitan-district-council/leeds,Leeds City Council,31/12/2022,Children and Families,Social Care,Agency Payments,General External Residential Placements,507,29/12/2022,2212-00248,0.00,16692.86,R,Acorn Care & Education Ltd (Sales),No
Http://opendatacommunities.org/id/metropolitan-district-council/leeds,Leeds City Council,31/12/2022,Children and Families,Social Care,Agency Payments,General External Residential Placements,507,29/12/2022,2212-00249,0.00,-3991.05,R,Acorn Care & Education Ltd (Sales),No
Http://opendatacommunities.org/id/metropolitan-district-council/leeds,Leeds City Council,31/12/2022,Adults and Health,Services For Older People Under 65 P/Dis,Agency Payments,Nursing Home,570,07/12/2022,2212-00250,0.00,3500.00,R,Acorn Care Home,No
Http://opendatacommunities.org/id/metropolitan-district-council/leeds,Leeds City Council,31/12/2022,Adults and Health,Services For Older People Under 65 P/Dis,Agency Payments,Nursing Home,570,28/12/2022,2212-00251,0.00,3500.00,R,Acorn Care Home,No
Http://opendatacommunities.org/id/metropolitan-district-council/leeds,Leeds City Council,31/12/2022,Children and Families,Social Care,Agency Payments,Services Rendered By Other Organisations,511,02/12/2022,2212-00252,0.00,617.10,R,ACORNS NURSERY,No
Http://opendatacommunities.org/id/metropolitan-district-council/leeds,Leeds City Council,31/12/2022,Children and Families,Social Care,Agency Payments,Services Rendered By Other Organisations,511,02/12/2022,2212-00253,0.00,800.00,R,ACORNS NURSERY,No
Http://opendatacommunities.org/id/metropolitan-district-council/leeds,Leeds City Council,31/12/2022,Children and Families,Social Care,Agency Payments,Services Rendered By Other Organisations,511,02/12/2022,2212-00254,0.00,163.80,R,ACORNS NURSERY,No
Http://opendatacommunities.org/id/metropolitan-district-council/leeds,Leeds City Council,31/12/2022,Children and Families,Social Care,Agency Payments,Services Rendered By Other Organisations,511,02/12/2022,2212-00255,0.00,234.00,R,ACORNS NURSERY,No
Http://opendatacommunities.org/id/metropolitan-district-council/leeds,Leeds City Council,31/12/2022,Children and Families,Social Care,Agency Payments,Services Rendered By Other Organisations,511,07/12/2022,2212-00256,0.00,1357.68,R,ACORNS NURSERY,No
Http://opendatacommunities.org/id/metropolitan-district-council/leeds,Leeds City Council,31/12/2022,Communities Housing and Environment,Environmental Health,Supplies and Services,Other Hired And Contracted Services,265,15/12/2022,2212-00257,0.00,1371.00,R,Acoustic Calibration Services Limited,No
Http://opendatacommunities.org/id/metropolitan-district-council/leeds,Leeds City Council,31/12/2022,Communities Housing and Environment,Environmental Health,Supplies and Services,Other Hired And Contracted Services,265,15/12/2022,2212-00258,0.00,150.00,R,Acoustic Calibration Services Limited,No
Http://opendatacommunities.org/id/metropolitan-district-council/leeds,Leeds City Council,31/12/2022,Adults and Health,Services For Older People - 65 And Over,Agency Payments,Nursing Home,570,07/12/2022,2212-00259,0.00,36691.45,R,Acre Green,No
Http://opendatacommunities.org/id/metropolitan-district-council/leeds,Leeds City Council,31/12/2022,Adults and Health,Services For Older People - 65 And Over,Agency Payments,Residential,580,07/12/2022,2212-00260,0.00,4180.20,R,Acre Green,No
Http://opendatacommunities.org/id/metropolitan-district-council/leeds,Leeds City Council,31/12/2022,Adults and Health,Services For Older People Under 65 P/Dis,Agency Payments,Residential,580,07/12/2022,2212-00261,0.00,1892.20,R,Acre Green,No
Http://opendatacommunities.org/id/metropolitan-district-council/leeds,Leeds City Council,31/12/2022,Adults and Health,Services For Older People - 65 And Over,Agency Payments,Nursing Home,570,28/12/2022,2212-00262,0.00,57729.54,R,Acre Green,No
Http://opendatacommunities.org/id/metropolitan-district-council/leeds,Leeds City Council,31/12/2022,Adults and Health,Services For Older People - 65 And Over,Agency Payments,Residential,580,28/12/2022,2212-00263,0.00,4180.20,R,Acre Green,No
Http://opendatacommunities.org/id/metropolitan-district-council/leeds,Leeds City Council,31/12/2022,Adults and Health,Services For Older People Under 65 P/Dis,Agency Payments,Nursing Home,570,28/12/2022,2212-00264,0.00,551.57,R,Acre Green,No
Http://opendatacommunities.org/id/metropolitan-district-council/leeds,Leeds City Council,31/12/2022,Adults and Health,Services For Older People Under 65 P/Dis,Agency Payments,Residential,580,28/12/2022,2212-00265,0.00,1892.20,R,Acre Green,No
Http://opendatacommunities.org/id/metropolitan-district-council/leeds,Leeds City Council,31/12/2022,Children and Families,Social Care,Agency Payments,Services Rendered By Other Organisations,511,02/12/2022,2212-00266,0.00,3649.53,R,Acre Wood Day Nursery,No
Http://opendatacommunities.org/id/metropolitan-district-council/leeds,Leeds City Council,31/12/2022,Children and Families,Social Care,Agency Payments,Services Rendered By Other Organisations,511,02/12/2022,2212-00267,0.00,1240.80,R,Acre Wood Day Nursery,No
Http://opendatacommunities.org/id/metropolitan-district-council/leeds,Leeds City Council,31/12/2022,Children and Families,Social Care,Agency Payments,Services Rendered By Other Organisations,511,02/12/2022,2212-00268,0.00,117.00,R,Acre Wood Day Nursery,No
Http://opendatacommunities.org/id/metropolitan-district-council/leeds,Leeds City Council,31/12/2022,Children and Families,Social Care,Agency Payments,Services Rendered By Voluntary Sector,505,28/12/2022,2212-00269,0.00,450.00,R,Acre Wood Day Nursery,No
Http://opendatacommunities.org/id/metropolitan-district-council/leeds,Leeds City Council,31/12/2022,Adults and Health,Services For Adults Under 65 Mental/Dis,Agency Payments,Fees - Level 4,520,02/12/2022,2212-00270,0.00,970.00,R,Action First Assessments Ltd,No
Http://opendatacommunities.org/id/metropolitan-district-council/leeds,Leeds City Council,31/12/2022,Adults and Health,Services For Adults Under 65 Mental/Dis,Agency Payments,Fees - Level 4,520,23/12/2022,2212-00271,0.00,2910.00,R,Action First Assessments Ltd,No
Http://opendatacommunities.org/id/metropolitan-district-council/leeds,Leeds City Council as Accountable Body,31/12/2022,Social Services Pooled Budgets,Jcs For People With Learning Disabilitie,Agency Payments,Residential,580,07/12/2022,2212-00272,0.00,10702.60,R,Action For Care Contracts Limited,No
Http://opendatacommunities.org/id/metropolitan-district-council/leeds,Leeds City Council as Accountable Body,31/12/2022,Social Services Pooled Budgets,Jcs For People With Learning Disabilitie,Agency Payments,Residential,580,28/12/2022,2212-00273,0.00,10702.60,R,Action For Care Contracts Limited,No
Http://opendatacommunities.org/id/metropolitan-district-council/leeds,Leeds City Council,31/12/2022,Children and Families,Social Care,Agency Payments,Independent Fostering Agencies,509,01/12/2022,2212-00274,0.00,4897.20,R,Action For Children Services Ltd,No
Http://opendatacommunities.org/id/metropolitan-district-council/leeds,Leeds City Council,31/12/2022,Children and Families,Social Care,Agency Payments,Independent Fostering Agencies,509,01/12/2022,2212-00275,0.00,5060.44,R,Action For Children Services Ltd,No
Http://opendatacommunities.org/id/metropolitan-district-council/leeds,Leeds City Council,31/12/2022,Adults and Health,Services For Older People - 65 And Over,Agency Payments,Payments To Voluntary Organisations,561,30/12/2022,2212-00276,0.00,45009.02,R,ACTION FOR GIPTON ELDERLY,No
Http://opendatacommunities.org/id/metropolitan-district-council/leeds,Leeds City Council,31/12/2022,City Development,Markets & City Centre Management,Supplies and Services,Publication And Promotion,267,20/12/2022,2212-00277,0.00,5995.00,R,ACTIVE HIRE (LEEDS) LTD,No
Http://opendatacommunities.org/id/metropolitan-district-council/leeds,Leeds City Council,31/12/2022,Children and Families,Social Care,Agency Payments,Services Rendered By Voluntary Sector,505,28/12/2022,2212-00278,0.00,900.00,R,Active Kids (Yeadon),No
Http://opendatacommunities.org/id/metropolitan-district-council/leeds,Leeds City Council,31/12/2022,Children and Families,Social Care,Agency Payments,Services Rendered By Voluntary Sector,505,28/12/2022,2212-00279,0.00,73.33,R,Active Kids (Yeadon),No
Http://opendatacommunities.org/id/metropolitan-district-council/leeds,Leeds City Council,31/12/2022,Children and Families,Social Care,Agency Payments,Services Rendered By Other Organisations,511,02/12/2022,2212-00280,0.00,10511.22,R,ACTIVE KIDS YEADON LLP,No
Http://opendatacommunities.org/id/metropolitan-district-council/leeds,Leeds City Council,31/12/2022,Children and Families,Social Care,Agency Payments,Services Rendered By Other Organisations,511,02/12/2022,2212-00281,0.00,800.00,R,ACTIVE KIDS YEADON LLP,No
Http://opendatacommunities.org/id/metropolitan-district-council/leeds,Leeds City Council,31/12/2022,Children and Families,Social Care,Agency Payments,Services Rendered By Other Organisations,511,02/12/2022,2212-00282,0.00,423.80,R,ACTIVE KIDS YEADON LLP,No
Http://opendatacommunities.org/id/metropolitan-district-council/leeds,Leeds City Council,31/12/2022,Children and Families,Social Care,Agency Payments,Services Rendered By Other Organisations,511,07/12/2022,2212-00283,0.00,814.61,R,ACTIVE KIDS YEADON LLP,No
Http://opendatacommunities.org/id/metropolitan-district-council/leeds,Leeds City Council,31/12/2022,Adults and Health,Services For Adults Under 65 Mental/Dis,Agency Payments,Sheltered Accommodation,569,07/12/2022,2212-00284,0.00,17848.64,R,Active Pathways,No
Http://opendatacommunities.org/id/metropolitan-district-council/leeds,Leeds City Council,31/12/2022,Adults and Health,Services For Older People - 65 And Over,Agency Payments,Sheltered Accommodation,569,07/12/2022,2212-00285,0.00,4154.84,R,Active Pathways,No
Http://opendatacommunities.org/id/metropolitan-district-council/leeds,Leeds City Council as Accountable Body,31/12/2022,Social Services Pooled Budgets,Jcs For People With Learning Disabilitie,Agency Payments,Sheltered Accommodation,569,07/12/2022,2212-00286,0.00,12452.52,R,Active Pathways,No
Http://opendatacommunities.org/id/metropolitan-district-council/leeds,Leeds City Council,31/12/2022,Adults and Health,Services For Adults Under 65 Mental/Dis,Agency Payments,Sheltered Accommodation,569,28/12/2022,2212-00287,0.00,17848.64,R,Active Pathways,No
Http://opendatacommunities.org/id/metropolitan-district-council/leeds,Leeds City Council,31/12/2022,Adults and Health,Services For Older People - 65 And Over,Agency Payments,Sheltered Accommodation,569,28/12/2022,2212-00288,0.00,4154.84,R,Active Pathways,No
Http://opendatacommunities.org/id/metropolitan-district-council/leeds,Leeds City Council as Accountable Body,31/12/2022,Social Services Pooled Budgets,Jcs For People With Learning Disabilitie,Agency Payments,Sheltered Accommodation,569,28/12/2022,2212-00289,0.00,12452.52,R,Active Pathways,No
Http://opendatacommunities.org/id/metropolitan-district-council/leeds,Leeds City Council,31/12/2022,Adults and Health,Services For Adults Under 65 Mental/Dis,Agency Payments,Residential,580,07/12/2022,2212-00290,0.00,4324.60,R,Active Pathways Limited,No
Http://opendatacommunities.org/id/metropolitan-district-council/leeds,Leeds City Council,31/12/2022,Adults and Health,Services For Adults Under 65 Mental/Dis,Agency Payments,Residential,580,28/12/2022,2212-00291,0.00,4324.60,R,Active Pathways Limited,No
Http://opendatacommunities.org/id/metropolitan-district-council/leeds,Leeds City Council,31/12/2022,Children and Families,Social Care ,Supplies and Services,Clothing & Uniforms,241,07/11/2022,2212-00292,0.00,35.99,R,Active Workwear,Yes
Http://opendatacommunities.org/id/metropolitan-district-council/leeds,Leeds City Council,31/12/2022,Communities Housing and Environment,Waste Management,Supplies and Services,Waste Disposal Charges,236,02/12/2022,2212-00293,0.00,797.65,R,Acumen Waste Services Ltd,No
Http://opendatacommunities.org/id/metropolitan-district-council/leeds,Leeds City Council,31/12/2022,Communities Housing and Environment,Waste Management,Supplies and Services,Waste Disposal Charges,236,02/12/2022,2212-00294,0.00,797.65,R,Acumen Waste Services Ltd,No
Http://opendatacommunities.org/id/metropolitan-district-council/leeds,Leeds City Council,31/12/2022,Communities Housing and Environment,Waste Management,Supplies and Services,Waste Disposal Charges,236,02/12/2022,2212-00295,0.00,862.90,R,Acumen Waste Services Ltd,No
Http://opendatacommunities.org/id/metropolitan-district-council/leeds,Leeds City Council,31/12/2022,Communities Housing and Environment,Waste Management,Supplies and Services,Waste Disposal Charges,236,02/12/2022,2212-00296,0.00,894.05,R,Acumen Waste Services Ltd,No
Http://opendatacommunities.org/id/metropolitan-district-council/leeds,Leeds City Council,31/12/2022,Communities Housing and Environment,Waste Management,Supplies and Services,Recycling & Reuse Charges,234,08/12/2022,2212-00297,0.00,9449.28,R,Acumen Waste Services Ltd,No
Http://opendatacommunities.org/id/metropolitan-district-council/leeds,Leeds City Council,31/12/2022,Communities Housing and Environment,Waste Management,Supplies and Services,Recycling & Reuse Charges,234,09/12/2022,2212-00298,0.00,9697.68,R,Acumen Waste Services Ltd,No
Http://opendatacommunities.org/id/metropolitan-district-council/leeds,Leeds City Council,31/12/2022,Communities Housing and Environment,Waste Management,Supplies and Services,Recycling & Reuse Charges,234,16/12/2022,2212-00299,0.00,10798.56,R,Acumen Waste Services Ltd,No
Http://opendatacommunities.org/id/metropolitan-district-council/leeds,Leeds City Council,31/12/2022,Communities Housing and Environment,Waste Management,Supplies and Services,Recycling & Reuse Charges,234,28/12/2022,2212-00300,0.00,7765.92,R,Acumen Waste Services Ltd,No
Http://opendatacommunities.org/id/metropolitan-district-council/leeds,Leeds City Council,31/12/2022,Communities Housing and Environment,Waste Management,Supplies and Services,Recycling & Reuse Charges,234,30/12/2022,2212-00301,0.00,3515.76,R,Acumen Waste Services Ltd,No
Http://opendatacommunities.org/id/metropolitan-district-council/leeds,Leeds City Council,31/12/2022,Communities Housing and Environment,Waste Management,Supplies and Services,Waste Disposal Charges,236,30/12/2022,2212-00302,0.00,741.10,R,Acumen Waste Services Ltd,No
Http://opendatacommunities.org/id/metropolitan-district-council/leeds,Leeds City Council,31/12/2022,Communities Housing and Environment,Waste Management,Supplies and Services,Waste Disposal Charges,236,30/12/2022,2212-00303,0.00,275.00,R,Acumen Waste Services Ltd,No
Http://opendatacommunities.org/id/metropolitan-district-council/leeds,Leeds City Council,31/12/2022,Communities Housing and Environment,Waste Management,Supplies and Services,Waste Disposal Charges,236,30/12/2022,2212-00304,0.00,922.20,R,Acumen Waste Services Ltd,No
Http://opendatacommunities.org/id/metropolitan-district-council/leeds,Leeds City Council,31/12/2022,Communities Housing and Environment,Waste Management,Supplies and Services,Waste Disposal Charges,236,30/12/2022,2212-00305,0.00,275.00,R,Acumen Waste Services Ltd,No
Http://opendatacommunities.org/id/metropolitan-district-council/leeds,Leeds City Council,31/12/2022,Communities Housing and Environment,Waste Management,Supplies and Services,Waste Disposal Charges,236,30/12/2022,2212-00306,0.00,275.00,R,Acumen Waste Services Ltd,No
Http://opendatacommunities.org/id/metropolitan-district-council/leeds,Leeds City Council,31/12/2022,Communities Housing and Environment,Waste Management,Supplies and Services,Waste Disposal Charges,236,30/12/2022,2212-00307,0.00,822.40,R,Acumen Waste Services Ltd,No
Http://opendatacommunities.org/id/metropolitan-district-council/leeds,Leeds City Council,31/12/2022,Communities Housing and Environment,Waste Management,Supplies and Services,Waste Disposal Charges,236,30/12/2022,2212-00308,0.00,275.00,R,Acumen Waste Services Ltd,No
Http://opendatacommunities.org/id/metropolitan-district-council/leeds,Leeds City Council,31/12/2022,Communities Housing and Environment,Waste Management,Supplies and Services,Waste Disposal Charges,236,30/12/2022,2212-00309,0.00,1088.55,R,Acumen Waste Services Ltd,No
Http://opendatacommunities.org/id/metropolitan-district-council/leeds,Leeds City Council,31/12/2022,Communities Housing and Environment,Waste Management,Supplies and Services,Waste Disposal Charges,236,30/12/2022,2212-00310,0.00,275.00,R,Acumen Waste Services Ltd,No
Http://opendatacommunities.org/id/metropolitan-district-council/leeds,Leeds City Council,31/12/2022,Communities Housing and Environment,Waste Management,Supplies and Services,Waste Disposal Charges,236,30/12/2022,2212-00311,0.00,799.95,R,Acumen Waste Services Ltd,No
Http://opendatacommunities.org/id/metropolitan-district-council/leeds,Leeds City Council,31/12/2022,Communities Housing and Environment,Waste Management,Supplies and Services,Waste Disposal Charges,236,30/12/2022,2212-00312,0.00,275.00,R,Acumen Waste Services Ltd,No
Http://opendatacommunities.org/id/metropolitan-district-council/leeds,Leeds City Council,31/12/2022,Communities Housing and Environment,Waste Management,Supplies and Services,Waste Disposal Charges,236,30/12/2022,2212-00313,0.00,275.00,R,Acumen Waste Services Ltd,No
Http://opendatacommunities.org/id/metropolitan-district-council/leeds,Leeds City Council,31/12/2022,Communities Housing and Environment,Waste Management,Supplies and Services,Waste Disposal Charges,236,30/12/2022,2212-00314,0.00,1949.75,R,Acumen Waste Services Ltd,No
Http://opendatacommunities.org/id/metropolitan-district-council/leeds,Leeds City Council,31/12/2022,Communities Housing and Environment,Parks and Countryside ,Supplies and Services,Office Consumables,210,24/11/2022,2212-00315,0.00,499.20,R,Acushnet Europe Ltd,Yes
Http://opendatacommunities.org/id/metropolitan-district-council/leeds,Leeds City Council,31/12/2022,Resources,Shared Services,Supplies and Services,Other Hired And Contracted Services,265,16/12/2022,2212-00316,0.00,1497.00,R,AD3 Envelope Printers Limited,No
Http://opendatacommunities.org/id/metropolitan-district-council/leeds,Leeds City Council,31/12/2022,Resources,Shared Services,Supplies and Services,Operational Materials,205,23/12/2022,2212-00317,0.00,283.50,R,AD3 Envelope Printers Limited,No
Http://opendatacommunities.org/id/metropolitan-district-council/leeds,Leeds City Council,31/12/2022,Resources,Shared Services,Supplies and Services,Other Hired And Contracted Services,265,23/12/2022,2212-00318,0.00,629.25,R,AD3 Envelope Printers Limited,No
Http://opendatacommunities.org/id/metropolitan-district-council/leeds,Leeds City Council,31/12/2022,Resources,Shared Services,Supplies and Services,Other Hired And Contracted Services,265,30/12/2022,2212-00319,0.00,412.25,R,AD3 Envelope Printers Limited,No
Http://opendatacommunities.org/id/metropolitan-district-council/leeds,Leeds City Council,31/12/2022,Resources,Shared Services,Supplies and Services,Other Hired And Contracted Services,265,30/12/2022,2212-00320,0.00,353.00,R,AD3 Envelope Printers Limited,No
Http://opendatacommunities.org/id/metropolitan-district-council/leeds,Leeds City Council,31/12/2022,Communities Housing and Environment,Strategic Housing Partnership & Support,Supplies and Services,Other Hired And Contracted Services,265,16/12/2022,2212-00321,0.00,2817.31,R,Adair Paxton LLP,No
Http://opendatacommunities.org/id/metropolitan-district-council/leeds,Leeds City Council,31/12/2022,Children and Families,Social Care,Transport,Fuel (Non LCC Supplies),321,22/12/2022,2212-00322,0.00,20.00,R,REDACTED PERSONAL DATA,No
Http://opendatacommunities.org/id/metropolitan-district-council/leeds,Leeds City Council,31/12/2022,Children and Families,Social Care,Appropriations,Leaving Care Allowances,634,22/12/2022,2212-00323,0.00,20.00,R,REDACTED PERSONAL DATA,No
Http://opendatacommunities.org/id/metropolitan-district-council/leeds,Leeds City Council,31/12/2022,Children and Families,Social Care,Agency Payments,Allowances,546,20/12/2022,2212-00324,0.00,263.69,R,REDACTED PERSONAL DATA,No
Http://opendatacommunities.org/id/metropolitan-district-council/leeds,Leeds City Council,31/12/2022,Children and Families,Social Care,Appropriations,Leaving Care Allowances,634,20/12/2022,2212-00325,0.00,263.69,R,REDACTED PERSONAL DATA,No
Http://opendatacommunities.org/id/metropolitan-district-council/leeds,Leeds City Council,31/12/2022,Children and Families,Social Care,Internal Recharges,Legal Disbursements,411,15/12/2022,2212-00326,0.00,342.00,R,Adam Oates Radiology Services Ltd,No
Http://opendatacommunities.org/id/metropolitan-district-council/leeds,Leeds City Council,31/12/2022,Children and Families,Social Care,Agency Payments,Contact,548,02/12/2022,2212-00327,0.00,9.00,R,REDACTED PERSONAL DATA,No
Http://opendatacommunities.org/id/metropolitan-district-council/leeds,Leeds City Council,31/12/2022,Children and Families,Social Care,Agency Payments,Contact,548,09/12/2022,2212-00328,0.00,9.00,R,REDACTED PERSONAL DATA,No
Http://opendatacommunities.org/id/metropolitan-district-council/leeds,Leeds City Council,31/12/2022,Children and Families,Social Care,Agency Payments,Contact,548,16/12/2022,2212-00329,0.00,9.00,R,REDACTED PERSONAL DATA,No
Http://opendatacommunities.org/id/metropolitan-district-council/leeds,Leeds City Council,31/12/2022,Children and Families,Social Care,Agency Payments,Contact,548,23/12/2022,2212-00330,0.00,9.00,R,REDACTED PERSONAL DATA,No
Http://opendatacommunities.org/id/metropolitan-district-council/leeds,Leeds City Council,31/12/2022,Children and Families,Social Care,Agency Payments,Contact,548,30/12/2022,2212-00331,0.00,9.00,R,REDACTED PERSONAL DATA,No
Http://opendatacommunities.org/id/metropolitan-district-council/leeds,Leeds City Council,31/12/2022,Children and Families,Social Care,Agency Payments,Contact,548,30/12/2022,2212-00332,0.00,9.00,R,REDACTED PERSONAL DATA,No
Http://opendatacommunities.org/id/metropolitan-district-council/leeds,Leeds City Council,31/12/2022,Communities Housing and Environment,Strategic Housing Partnership & Support,Capital,CONSTRUCTION,3,23/12/2022,2212-00333,0.00,4000.00,C,Adam'S Gas Services,No
Http://opendatacommunities.org/id/metropolitan-district-council/leeds,Leeds City Council,31/12/2022,Strategic Landlord,Housing Management,Supplies and Services,Grants To Voluntary Organisations,293,30/12/2022,2212-00334,0.00,200.00,R,ADEL CRAG COMMUNITY ASSOCIATION,No
Http://opendatacommunities.org/id/metropolitan-district-council/leeds,Leeds City Council,31/12/2022,Children and Families,Social Care,Agency Payments,Services Rendered By Voluntary Sector,505,02/12/2022,2212-00335,0.00,6474.51,R,ADEL PRE SCHOOL,No
Http://opendatacommunities.org/id/metropolitan-district-council/leeds,Leeds City Council,31/12/2022,Children and Families,Social Care,Agency Payments,Services Rendered By Voluntary Sector,505,02/12/2022,2212-00336,0.00,248.40,R,ADEL PRE SCHOOL,No
Http://opendatacommunities.org/id/metropolitan-district-council/leeds,Leeds City Council,31/12/2022,Children and Families,Social Care,Agency Payments,Services Rendered By Voluntary Sector,505,02/12/2022,2212-00337,0.00,198.00,R,ADEL PRE SCHOOL,No
Http://opendatacommunities.org/id/metropolitan-district-council/leeds,Leeds City Council,31/12/2022,Children and Families,Social Care,Agency Payments,Services Rendered By Voluntary Sector,505,07/12/2022,2212-00338,0.00,5451.63,R,ADEL PRE SCHOOL,No
Http://opendatacommunities.org/id/metropolitan-district-council/leeds,Leeds City Council,31/12/2022,Children and Families,Social Care,Agency Payments,Services Rendered By Voluntary Sector,505,16/12/2022,2212-00339,0.00,146.66,R,ADEL PRE SCHOOL,No
Http://opendatacommunities.org/id/metropolitan-district-council/leeds,Leeds City Council,31/12/2022,Children and Families,Social Care,Agency Payments,Services Rendered By Voluntary Sector,505,28/12/2022,2212-00340,0.00,348.33,R,ADEL PRE SCHOOL,No
Http://opendatacommunities.org/id/metropolitan-district-council/leeds,Leeds City Council,31/12/2022,City Development,Recreation,Supplies and Services,Bought In Professional Services,277,23/12/2022,2212-00341,0.00,196.00,R,Adele Battersby,No
Http://opendatacommunities.org/id/metropolitan-district-council/leeds,Leeds City Council,31/12/2022,City Development,Recreation,Supplies and Services,Bought In Professional Services,277,23/12/2022,2212-00342,0.00,200.00,R,Adele Battersby,No
Http://opendatacommunities.org/id/metropolitan-district-council/leeds,Leeds City Council,31/12/2022,Children and Families,Social Care,Agency Payments,Services Rendered By Other Organisations,511,02/12/2022,2212-00343,0.00,699.07,R,REDACTED PERSONAL DATA,No
Http://opendatacommunities.org/id/metropolitan-district-council/leeds,Leeds City Council,31/12/2022,Children and Families,Social Care,Agency Payments,Services Rendered By Other Organisations,511,02/12/2022,2212-00344,0.00,156.00,R,REDACTED PERSONAL DATA,No
Http://opendatacommunities.org/id/metropolitan-district-council/leeds,Leeds City Council,31/12/2022,Children and Families,Social Care,Agency Payments,Services Rendered By Other Organisations,511,07/12/2022,2212-00345,0.00,271.53,R,REDACTED PERSONAL DATA,No
Http://opendatacommunities.org/id/metropolitan-district-council/leeds,Leeds City Council,31/12/2022,Resources,Commercial Services,Supplies and Services,Other Hired And Contracted Services,265,01/12/2022,2212-00346,0.00,188.53,R,REDACTED PERSONAL DATA,No
Http://opendatacommunities.org/id/metropolitan-district-council/leeds,Leeds City Council,31/12/2022,Resources,Commercial Services,Supplies and Services,Other Hired And Contracted Services,265,19/12/2022,2212-00347,0.00,192.43,R,REDACTED PERSONAL DATA,No
Http://opendatacommunities.org/id/metropolitan-district-council/leeds,Leeds City Council,31/12/2022,Children and Families,Social Care,Agency Payments,Contact,548,05/12/2022,2212-00348,0.00,32.00,R,REDACTED PERSONAL DATA,No
Http://opendatacommunities.org/id/metropolitan-district-council/leeds,Leeds City Council,31/12/2022,Resources,Commercial Services,Supplies and Services,Compensation Claims,200,21/12/2022,2212-00349,0.00,560.00,R,REDACTED PERSONAL DATA,No
Http://opendatacommunities.org/id/metropolitan-district-council/leeds,Leeds City Council,31/12/2022,Communities Housing and Environment,Communities,Supplies and Services,Other Hired And Contracted Services,265,09/12/2022,2212-00350,0.00,300.00,R,Adiam Manna,No
Http://opendatacommunities.org/id/metropolitan-district-council/leeds,Leeds City Council,31/12/2022,Children and Families,Social Care ,Agency Payments,Placement Support,550,24/11/2022,2212-00351,0.00,33.00,R,Adidaswww.Reebok.Co.Uk,Yes
Http://opendatacommunities.org/id/metropolitan-district-council/leeds,Leeds City Council,31/12/2022,Communities Housing and Environment,Community Safety ,Supplies and Services,Other Hired And Contracted Services,265,04/11/2022,2212-00352,0.00,40.80,R,Adi-Gardiner Ltd,Yes
Http://opendatacommunities.org/id/metropolitan-district-council/leeds,Leeds City Council,31/12/2022,Resources,Leeds Building Services,Supplies and Services,Operational Materials,205,23/12/2022,2212-00353,0.00,-26.24,R,ADI-Gardiner Ltd,No
Http://opendatacommunities.org/id/metropolitan-district-council/leeds,Leeds City Council,31/12/2022,Resources,Leeds Building Services,Supplies and Services,Operational Materials,205,23/12/2022,2212-00354,0.00,65.27,R,ADI-Gardiner Ltd,No
Http://opendatacommunities.org/id/metropolitan-district-council/leeds,Leeds City Council,31/12/2022,Resources,Leeds Building Services,Supplies and Services,Operational Materials,205,30/12/2022,2212-00355,0.00,9.03,R,ADI-Gardiner Ltd,No
Http://opendatacommunities.org/id/metropolitan-district-council/leeds,Leeds City Council,31/12/2022,Resources,Leeds Building Services,Supplies and Services,Operational Materials,205,30/12/2022,2212-00356,0.00,12.89,R,ADI-Gardiner Ltd,No
Http://opendatacommunities.org/id/metropolitan-district-council/leeds,Leeds City Council,31/12/2022,Resources,Leeds Building Services,Supplies and Services,Operational Materials,205,30/12/2022,2212-00357,0.00,6.64,R,ADI-Gardiner Ltd,No
Http://opendatacommunities.org/id/metropolitan-district-council/leeds,Leeds City Council,31/12/2022,Resources,Leeds Building Services,Supplies and Services,Operational Materials,205,30/12/2022,2212-00358,0.00,204.00,R,ADI-Gardiner Ltd,No
Http://opendatacommunities.org/id/metropolitan-district-council/leeds,Leeds City Council,31/12/2022,Resources,Leeds Building Services,Supplies and Services,Operational Materials,205,30/12/2022,2212-00359,0.00,12.89,R,ADI-Gardiner Ltd,No
Http://opendatacommunities.org/id/metropolitan-district-council/leeds,Leeds City Council,31/12/2022,Resources,Leeds Building Services,Supplies and Services,Operational Materials,205,30/12/2022,2212-00360,0.00,7.63,R,ADI-Gardiner Ltd,No
Http://opendatacommunities.org/id/metropolitan-district-council/leeds,Leeds City Council,31/12/2022,Resources,Leeds Building Services,Supplies and Services,Operational Materials,205,30/12/2022,2212-00361,0.00,17.80,R,ADI-Gardiner Ltd,No
Http://opendatacommunities.org/id/metropolitan-district-council/leeds,Leeds City Council,31/12/2022,Children and Families,Social Care ,Supplies and Services,Bought In Professional Services,277,07/11/2022,2212-00362,0.00,89.00,R,Admin-Pal.Co.Uk,Yes
Http://opendatacommunities.org/id/metropolitan-district-council/leeds,Leeds City Council,31/12/2022,Insurance,Insurance,Supplies and Services,Insurance Claims,248,16/12/2022,2212-00363,0.00,216.00,R,Admiral Law,No
Http://opendatacommunities.org/id/metropolitan-district-council/leeds,Leeds City Council,31/12/2022,City Development,Libraries Arts & Heritage ,Supplies and Services,Computer Software & Equipment,214,07/11/2022,2212-00364,0.00,1006.32,R,Adobe *products,Yes
Http://opendatacommunities.org/id/metropolitan-district-council/leeds,Leeds City Council,31/12/2022,City Development,Libraries Arts & Heritage ,Supplies and Services,Computer Software & Equipment,214,08/11/2022,2212-00365,0.00,43.32,R,Adobe Creative Cloud,Yes
Http://opendatacommunities.org/id/metropolitan-district-council/leeds,Leeds City Council,31/12/2022,Children and Families,Social Care,Agency Payments,Independent Fostering Agencies,509,02/12/2022,2212-00366,0.00,3751.00,R,Adolescent And Childrens Trust,No
Http://opendatacommunities.org/id/metropolitan-district-council/leeds,Leeds City Council,31/12/2022,Children and Families,Social Care,Agency Payments,Independent Fostering Agencies,509,02/12/2022,2212-00367,0.00,3565.00,R,Adolescent And Childrens Trust,No
Http://opendatacommunities.org/id/metropolitan-district-council/leeds,Leeds City Council,31/12/2022,Children and Families,Social Care,Agency Payments,Independent Fostering Agencies,509,02/12/2022,2212-00368,0.00,3565.00,R,Adolescent And Childrens Trust,No
Http://opendatacommunities.org/id/metropolitan-district-council/leeds,Leeds City Council,31/12/2022,Children and Families,Social Care,Agency Payments,Independent Fostering Agencies,509,02/12/2022,2212-00369,0.00,3751.00,R,Adolescent And Childrens Trust,No
Http://opendatacommunities.org/id/metropolitan-district-council/leeds,Leeds City Council,31/12/2022,Children and Families,Social Care,Agency Payments,Independent Fostering Agencies,509,02/12/2022,2212-00370,0.00,3751.00,R,Adolescent And Childrens Trust,No
Http://opendatacommunities.org/id/metropolitan-district-council/leeds,Leeds City Council,31/12/2022,Children and Families,Social Care,Agency Payments,Independent Fostering Agencies,509,02/12/2022,2212-00371,0.00,3551.67,R,Adolescent And Childrens Trust,No
Http://opendatacommunities.org/id/metropolitan-district-council/leeds,Leeds City Council,31/12/2022,Children and Families,Social Care,Agency Payments,Independent Fostering Agencies,509,02/12/2022,2212-00372,0.00,3751.00,R,Adolescent And Childrens Trust,No
Http://opendatacommunities.org/id/metropolitan-district-council/leeds,Leeds City Council,31/12/2022,Children and Families,Social Care,Agency Payments,Independent Fostering Agencies,509,02/12/2022,2212-00373,0.00,2875.00,R,Adolescent And Childrens Trust,No
Http://opendatacommunities.org/id/metropolitan-district-council/leeds,Leeds City Council,31/12/2022,Children and Families,Social Care,Agency Payments,Independent Fostering Agencies,509,02/12/2022,2212-00374,0.00,3658.00,R,Adolescent And Childrens Trust,No
Http://opendatacommunities.org/id/metropolitan-district-council/leeds,Leeds City Council,31/12/2022,Children and Families,Social Care,Agency Payments,Independent Fostering Agencies,509,02/12/2022,2212-00375,0.00,3658.00,R,Adolescent And Childrens Trust,No
Http://opendatacommunities.org/id/metropolitan-district-council/leeds,Leeds City Council,31/12/2022,Children and Families,Social Care,Agency Payments,Independent Fostering Agencies,509,02/12/2022,2212-00376,0.00,3830.67,R,Adolescent And Childrens Trust,No
Http://opendatacommunities.org/id/metropolitan-district-council/leeds,Leeds City Council,31/12/2022,Children and Families,Social Care,Agency Payments,Independent Fostering Agencies,509,02/12/2022,2212-00377,0.00,3534.00,R,Adolescent And Childrens Trust,No
Http://opendatacommunities.org/id/metropolitan-district-council/leeds,Leeds City Council,31/12/2022,Children and Families,Social Care,Agency Payments,Independent Fostering Agencies,509,08/12/2022,2212-00378,0.00,1710.00,R,Adolescent And Childrens Trust,No
Http://opendatacommunities.org/id/metropolitan-district-council/leeds,Leeds City Council,31/12/2022,Children and Families,Social Care,Agency Payments,Independent Fostering Agencies,509,08/12/2022,2212-00379,0.00,1710.00,R,Adolescent And Childrens Trust,No
Http://opendatacommunities.org/id/metropolitan-district-council/leeds,Leeds City Council,31/12/2022,Adults and Health,Services For Adults Under 65 Mental/Dis,Agency Payments,Home Care,568,07/12/2022,2212-00380,0.00,410.25,R,Adopt Healthcare Ltd,No
Http://opendatacommunities.org/id/metropolitan-district-council/leeds,Leeds City Council,31/12/2022,Adults and Health,Services For Adults Under 65 Mental/Dis,Agency Payments,Home Care,568,07/12/2022,2212-00381,0.00,250.50,R,Adopt Healthcare Ltd,No
Http://opendatacommunities.org/id/metropolitan-district-council/leeds,Leeds City Council,31/12/2022,Adults and Health,Services For Adults Under 65 Mental/Dis,Agency Payments,Home Care,568,07/12/2022,2212-00382,0.00,148.50,R,Adopt Healthcare Ltd,No
Http://opendatacommunities.org/id/metropolitan-district-council/leeds,Leeds City Council,31/12/2022,Adults and Health,Services For Adults Under 65 Mental/Dis,Agency Payments,Home Care,568,14/12/2022,2212-00383,0.00,410.25,R,Adopt Healthcare Ltd,No
Http://opendatacommunities.org/id/metropolitan-district-council/leeds,Leeds City Council,31/12/2022,Adults and Health,Services For Adults Under 65 Mental/Dis,Agency Payments,Home Care,568,14/12/2022,2212-00384,0.00,250.50,R,Adopt Healthcare Ltd,No
Http://opendatacommunities.org/id/metropolitan-district-council/leeds,Leeds City Council,31/12/2022,Adults and Health,Services For Adults Under 65 Mental/Dis,Agency Payments,Home Care,568,14/12/2022,2212-00385,0.00,99.00,R,Adopt Healthcare Ltd,No
Http://opendatacommunities.org/id/metropolitan-district-council/leeds,Leeds City Council,31/12/2022,Adults and Health,Services For Adults Under 65 Mental/Dis,Agency Payments,Home Care,568,21/12/2022,2212-00386,0.00,115.50,R,Adopt Healthcare Ltd,No
Http://opendatacommunities.org/id/metropolitan-district-council/leeds,Leeds City Council,31/12/2022,Adults and Health,Services For Adults Under 65 Mental/Dis,Agency Payments,Home Care,568,28/12/2022,2212-00387,0.00,410.25,R,Adopt Healthcare Ltd,No
Http://opendatacommunities.org/id/metropolitan-district-council/leeds,Leeds City Council,31/12/2022,Adults and Health,Services For Adults Under 65 Mental/Dis,Agency Payments,Home Care,568,28/12/2022,2212-00388,0.00,115.50,R,Adopt Healthcare Ltd,No
Http://opendatacommunities.org/id/metropolitan-district-council/leeds,Leeds City Council,31/12/2022,Children and Families,Social Care,Agency Payments,Placement Support,550,13/12/2022,2212-00389,0.00,20.00,R,REDACTED PERSONAL DATA,No
Http://opendatacommunities.org/id/metropolitan-district-council/leeds,Leeds City Council,31/12/2022,Children and Families,Social Care,Agency Payments,Placement Support,550,16/12/2022,2212-00390,0.00,20.00,R,REDACTED PERSONAL DATA,No
Http://opendatacommunities.org/id/metropolitan-district-council/leeds,Leeds City Council,31/12/2022,Children and Families,Social Care,Agency Payments,Placement Support,550,23/12/2022,2212-00391,0.00,20.00,R,REDACTED PERSONAL DATA,No
Http://opendatacommunities.org/id/metropolitan-district-council/leeds,Leeds City Council,31/12/2022,Children and Families,Social Care,Agency Payments,Placement Support,550,30/12/2022,2212-00392,0.00,20.00,R,REDACTED PERSONAL DATA,No
Http://opendatacommunities.org/id/metropolitan-district-council/leeds,Leeds City Council,31/12/2022,Children and Families,Social Care,Agency Payments,Placement Support,550,30/12/2022,2212-00393,0.00,20.00,R,REDACTED PERSONAL DATA,No
Http://opendatacommunities.org/id/metropolitan-district-council/leeds,Leeds City Council as Accountable Body,31/12/2022,Social Services Pooled Budgets,Jcs For People With Learning Disabilitie,Agency Payments,Residential,580,09/12/2022,2212-00394,0.00,2609.36,R,ADRIAN HOUSE,No
Http://opendatacommunities.org/id/metropolitan-district-council/leeds,Leeds City Council,31/12/2022,Children and Families,Social Care,Agency Payments,Placement Support,550,02/12/2022,2212-00395,0.00,319.24,R,REDACTED PERSONAL DATA,No
Http://opendatacommunities.org/id/metropolitan-district-council/leeds,Leeds City Council,31/12/2022,Children and Families,Social Care,Agency Payments,Placement Support,550,02/12/2022,2212-00396,0.00,36.25,R,REDACTED PERSONAL DATA,No
Http://opendatacommunities.org/id/metropolitan-district-council/leeds,Leeds City Council,31/12/2022,Children and Families,Social Care,Agency Payments,Placement Support,550,09/12/2022,2212-00397,0.00,319.24,R,REDACTED PERSONAL DATA,No
Http://opendatacommunities.org/id/metropolitan-district-council/leeds,Leeds City Council,31/12/2022,Children and Families,Social Care,Agency Payments,Placement Support,550,20/12/2022,2212-00398,0.00,460.86,R,REDACTED PERSONAL DATA,No
Http://opendatacommunities.org/id/metropolitan-district-council/leeds,Leeds City Council,31/12/2022,Children and Families,Social Care,Agency Payments,Placement Support,550,20/12/2022,2212-00399,0.00,527.38,R,REDACTED PERSONAL DATA,No
Http://opendatacommunities.org/id/metropolitan-district-council/leeds,Leeds City Council,31/12/2022,Children and Families,Social Care,Agency Payments,Placement Support,550,23/12/2022,2212-00400,0.00,159.62,R,REDACTED PERSONAL DATA,No
Http://opendatacommunities.org/id/metropolitan-district-council/leeds,Leeds City Council,31/12/2022,Children and Families,Social Care,Agency Payments,Placement Support,550,30/12/2022,2212-00401,0.00,159.62,R,REDACTED PERSONAL DATA,No
Http://opendatacommunities.org/id/metropolitan-district-council/leeds,Leeds City Council,31/12/2022,Children and Families,Social Care,Agency Payments,Placement Support,550,30/12/2022,2212-00402,0.00,159.62,R,REDACTED PERSONAL DATA,No
Http://opendatacommunities.org/id/metropolitan-district-council/leeds,Leeds City Council,31/12/2022,City Development,Libraries Arts & Heritage ,Supplies and Services,Advertising,211,31/10/2022,2212-00403,0.00,273.97,R,Ads*227d2kxxe2,Yes
Http://opendatacommunities.org/id/metropolitan-district-council/leeds,Leeds City Council,31/12/2022,City Development,Libraries Arts & Heritage ,Supplies and Services,Advertising,211,13/11/2022,2212-00404,0.00,424.54,R,Ads*275sbkpye2,Yes
Http://opendatacommunities.org/id/metropolitan-district-council/leeds,Leeds City Council,31/12/2022,City Development,Libraries Arts & Heritage ,Supplies and Services,Advertising,211,31/10/2022,2212-00405,0.00,224.91,R,Ads*2l4b3kfhb2,Yes
Http://opendatacommunities.org/id/metropolitan-district-council/leeds,Leeds City Council,31/12/2022,City Development,Libraries Arts & Heritage ,Supplies and Services,Advertising,211,06/11/2022,2212-00406,0.00,4.52,R,Ads*68jg9gb492,Yes
Http://opendatacommunities.org/id/metropolitan-district-council/leeds,Leeds City Council,31/12/2022,Adults and Health,Public Health ,Supplies and Services,Publication And Promotion,267,15/11/2022,2212-00407,0.00,157.14,R,Ads*g7jdahxr52,Yes
Http://opendatacommunities.org/id/metropolitan-district-council/leeds,Leeds City Council,31/12/2022,City Development,Libraries Arts & Heritage ,Supplies and Services,Advertising,211,02/11/2022,2212-00408,0.00,360.00,R,Ads*gxrxbk3ze2,Yes
Http://opendatacommunities.org/id/metropolitan-district-council/leeds,Leeds City Council,31/12/2022,Children and Families,Social Care ,Supplies and Services,Advertising,211,07/11/2022,2212-00409,0.00,300.00,R,Ads*lr7x4lxmf2,Yes
Http://opendatacommunities.org/id/metropolitan-district-council/leeds,Leeds City Council,31/12/2022,Children and Families,Social Care ,Supplies and Services,Advertising,211,11/11/2022,2212-00410,0.00,27.35,R,Ads*pecphjfmf2,Yes
Http://opendatacommunities.org/id/metropolitan-district-council/leeds,Leeds City Council,31/12/2022,City Development,Recreation,Supplies and Services,External Audit Fees,261,20/12/2022,2212-00411,0.00,135.00,R,ADVANCE STOCKS LTD,No
Http://opendatacommunities.org/id/metropolitan-district-council/leeds,Leeds City Council,31/12/2022,Children and Families,Social Care,Internal Recharges,Legal Disbursements,411,01/12/2022,2212-00412,0.00,99.00,R,ADVANCED CHILD CARE ASSESSMENTS LTD,No
Http://opendatacommunities.org/id/metropolitan-district-council/leeds,Leeds City Council,31/12/2022,Children and Families,Social Care,Internal Recharges,Legal Disbursements,411,06/12/2022,2212-00413,0.00,38.50,R,ADVANCED CHILD CARE ASSESSMENTS LTD,No
Http://opendatacommunities.org/id/metropolitan-district-council/leeds,Leeds City Council as Accountable Body,31/12/2022,Social Services Pooled Budgets,Jcs For People With Learning Disabilitie,Agency Payments,Home Care,568,09/12/2022,2212-00414,0.00,822.00,R,Advantage Healthcare Ltd,No
Http://opendatacommunities.org/id/metropolitan-district-council/leeds,Leeds City Council as Accountable Body,31/12/2022,Social Services Pooled Budgets,Jcs For People With Learning Disabilitie,Agency Payments,Home Care,568,23/12/2022,2212-00415,0.00,8144.40,R,Advantage Healthcare Ltd,No
Http://opendatacommunities.org/id/metropolitan-district-council/leeds,Leeds City Council,31/12/2022,Adults and Health,Services For Older People - 65 And Over,Agency Payments,Payments To Voluntary Organisations,561,02/12/2022,2212-00416,0.00,101941.67,R,Advonet,No
Http://opendatacommunities.org/id/metropolitan-district-council/leeds,Leeds City Council,31/12/2022,Adults and Health,Services For Older People - 65 And Over,Agency Payments,Payments To Voluntary Organisations,561,02/12/2022,2212-00417,0.00,101941.67,R,Advonet,No
Http://opendatacommunities.org/id/metropolitan-district-council/leeds,Leeds City Council,31/12/2022,City Development,Highways,Capital,OTHER COSTS,7,01/12/2022,2212-00418,0.00,317.50,C,Aecom Limited,No
Http://opendatacommunities.org/id/metropolitan-district-council/leeds,Leeds City Council,31/12/2022,City Development,Highways,Capital,OTHER COSTS,7,15/12/2022,2212-00419,0.00,57733.77,C,Aecom Limited,No
Http://opendatacommunities.org/id/metropolitan-district-council/leeds,Leeds City Council,31/12/2022,City Development,Planning & Sustainable Development,Supplies and Services,Other Hired And Contracted Services,265,21/12/2022,2212-00420,0.00,16750.94,R,Aecom Limited,No
Http://opendatacommunities.org/id/metropolitan-district-council/leeds,Leeds City Council,31/12/2022,City Development,Highways,Capital,OTHER COSTS,7,29/12/2022,2212-00421,0.00,81250.47,C,Aecom Limited,No
Http://opendatacommunities.org/id/metropolitan-district-council/leeds,Leeds City Council,31/12/2022,Adults and Health,Services For Adults Under 65 Mental/Dis,Agency Payments,Home Care,568,02/12/2022,2212-00422,0.00,747.60,R,Aegis Care Solutions Ltd,No
Http://opendatacommunities.org/id/metropolitan-district-council/leeds,Leeds City Council,31/12/2022,Adults and Health,Services For Adults Under 65 Mental/Dis,Agency Payments,Home Care,568,02/12/2022,2212-00423,0.00,594.00,R,Aegis Care Solutions Ltd,No
Http://opendatacommunities.org/id/metropolitan-district-council/leeds,Leeds City Council,31/12/2022,Adults and Health,Services For Adults Under 65 Mental/Dis,Agency Payments,Home Care,568,02/12/2022,2212-00424,0.00,1223.90,R,Aegis Care Solutions Ltd,No
Http://opendatacommunities.org/id/metropolitan-district-council/leeds,Leeds City Council,31/12/2022,Adults and Health,Services For Adults Under 65 Mental/Dis,Agency Payments,Home Care,568,02/12/2022,2212-00425,0.00,4574.40,R,Aegis Care Solutions Ltd,No
Http://opendatacommunities.org/id/metropolitan-district-council/leeds,Leeds City Council,31/12/2022,Adults and Health,Services For Adults Under 65 Mental/Dis,Agency Payments,Home Care,568,02/12/2022,2212-00426,0.00,1315.50,R,Aegis Care Solutions Ltd,No
Http://opendatacommunities.org/id/metropolitan-district-council/leeds,Leeds City Council,31/12/2022,Adults and Health,Services For Adults Under 65 Mental/Dis,Agency Payments,Home Care,568,02/12/2022,2212-00427,0.00,1438.20,R,Aegis Care Solutions Ltd,No
Http://opendatacommunities.org/id/metropolitan-district-council/leeds,Leeds City Council,31/12/2022,Adults and Health,Services For Adults Under 65 Mental/Dis,Agency Payments,Home Care,568,02/12/2022,2212-00428,0.00,1315.50,R,Aegis Care Solutions Ltd,No
Http://opendatacommunities.org/id/metropolitan-district-council/leeds,Leeds City Council,31/12/2022,Adults and Health,Services For Adults Under 65 Mental/Dis,Agency Payments,Home Care,568,02/12/2022,2212-00429,0.00,1706.00,R,Aegis Care Solutions Ltd,No
Http://opendatacommunities.org/id/metropolitan-district-council/leeds,Leeds City Council,31/12/2022,Adults and Health,Services For Adults Under 65 Mental/Dis,Agency Payments,Home Care,568,02/12/2022,2212-00430,0.00,1441.90,R,Aegis Care Solutions Ltd,No
Http://opendatacommunities.org/id/metropolitan-district-council/leeds,Leeds City Council,31/12/2022,Adults and Health,Services For Adults Under 65 Mental/Dis,Agency Payments,Home Care,568,02/12/2022,2212-00431,0.00,1143.60,R,Aegis Care Solutions Ltd,No
Http://opendatacommunities.org/id/metropolitan-district-council/leeds,Leeds City Council,31/12/2022,Adults and Health,Services For Adults Under 65 Mental/Dis,Agency Payments,Home Care,568,02/12/2022,2212-00432,0.00,284.80,R,Aegis Care Solutions Ltd,No
Http://opendatacommunities.org/id/metropolitan-district-council/leeds,Leeds City Council,31/12/2022,Adults and Health,Services For Adults Under 65 Mental/Dis,Agency Payments,Home Care,568,07/12/2022,2212-00433,0.00,819.60,R,Aegis Care Solutions Ltd,No
Http://opendatacommunities.org/id/metropolitan-district-council/leeds,Leeds City Council,31/12/2022,Adults and Health,Services For Older People - 65 And Over,Agency Payments,Home Care,568,07/12/2022,2212-00434,0.00,58997.66,R,Aegis Care Solutions Ltd,No
Http://opendatacommunities.org/id/metropolitan-district-council/leeds,Leeds City Council,31/12/2022,Adults and Health,Services For Older People - 65 And Over,Agency Payments,HCAIT Community Support,575,07/12/2022,2212-00435,0.00,589.68,R,Aegis Care Solutions Ltd,No
Http://opendatacommunities.org/id/metropolitan-district-council/leeds,Leeds City Council,31/12/2022,Adults and Health,Services For Older People - 65 And Over,Agency Payments,HCAIT Other,577,07/12/2022,2212-00436,0.00,4049.90,R,Aegis Care Solutions Ltd,No
Http://opendatacommunities.org/id/metropolitan-district-council/leeds,Leeds City Council,31/12/2022,Adults and Health,Services For Older People Under 65 P/Dis,Agency Payments,Home Care,568,07/12/2022,2212-00437,0.00,9544.03,R,Aegis Care Solutions Ltd,No
Http://opendatacommunities.org/id/metropolitan-district-council/leeds,Leeds City Council as Accountable Body,31/12/2022,Social Services Pooled Budgets,Jcs For People With Learning Disabilitie,Agency Payments,Home Care,568,07/12/2022,2212-00438,0.00,2458.80,R,Aegis Care Solutions Ltd,No
Http://opendatacommunities.org/id/metropolitan-district-council/leeds,Leeds City Council,31/12/2022,Adults and Health,Services For Adults Under 65 Mental/Dis,Agency Payments,Home Care,568,09/12/2022,2212-00439,0.00,320.40,R,Aegis Care Solutions Ltd,No
Http://opendatacommunities.org/id/metropolitan-district-council/leeds,Leeds City Council,31/12/2022,Adults and Health,Services For Adults Under 65 Mental/Dis,Agency Payments,Home Care,568,09/12/2022,2212-00440,0.00,427.20,R,Aegis Care Solutions Ltd,No
Http://opendatacommunities.org/id/metropolitan-district-council/leeds,Leeds City Council,31/12/2022,Adults and Health,Services For Adults Under 65 Mental/Dis,Agency Payments,Home Care,568,30/12/2022,2212-00441,0.00,118.80,R,Aegis Care Solutions Ltd,No
Http://opendatacommunities.org/id/metropolitan-district-council/leeds,Leeds City Council,31/12/2022,Adults and Health,Services For Adults Under 65 Mental/Dis,Agency Payments,Home Care,568,30/12/2022,2212-00442,0.00,1184.60,R,Aegis Care Solutions Ltd,No
Http://opendatacommunities.org/id/metropolitan-district-council/leeds,Leeds City Council,31/12/2022,Adults and Health,Services For Adults Under 65 Mental/Dis,Agency Payments,Home Care,568,30/12/2022,2212-00443,0.00,4400.00,R,Aegis Care Solutions Ltd,No
Http://opendatacommunities.org/id/metropolitan-district-council/leeds,Leeds City Council,31/12/2022,Adults and Health,Services For Adults Under 65 Mental/Dis,Agency Payments,Home Care,568,30/12/2022,2212-00444,0.00,1362.95,R,Aegis Care Solutions Ltd,No
Http://opendatacommunities.org/id/metropolitan-district-council/leeds,Leeds City Council,31/12/2022,Adults and Health,Services For Adults Under 65 Mental/Dis,Agency Payments,Home Care,568,30/12/2022,2212-00445,0.00,1220.50,R,Aegis Care Solutions Ltd,No
Http://opendatacommunities.org/id/metropolitan-district-council/leeds,Leeds City Council,31/12/2022,Adults and Health,Services For Adults Under 65 Mental/Dis,Agency Payments,Home Care,568,30/12/2022,2212-00446,0.00,1576.00,R,Aegis Care Solutions Ltd,No
Http://opendatacommunities.org/id/metropolitan-district-council/leeds,Leeds City Council,31/12/2022,Adults and Health,Services For Adults Under 65 Mental/Dis,Agency Payments,Home Care,568,30/12/2022,2212-00447,0.00,1382.80,R,Aegis Care Solutions Ltd,No
Http://opendatacommunities.org/id/metropolitan-district-council/leeds,Leeds City Council,31/12/2022,Adults and Health,Services For Adults Under 65 Mental/Dis,Agency Payments,Home Care,568,30/12/2022,2212-00448,0.00,1100.00,R,Aegis Care Solutions Ltd,No
Http://opendatacommunities.org/id/metropolitan-district-council/leeds,Leeds City Council,31/12/2022,Adults and Health,Services For Adults Under 65 Mental/Dis,Agency Payments,Home Care,568,30/12/2022,2212-00449,0.00,320.40,R,Aegis Care Solutions Ltd,No
Http://opendatacommunities.org/id/metropolitan-district-council/leeds,Leeds City Council,31/12/2022,Adults and Health,Services For Adults Under 65 Mental/Dis,Agency Payments,Home Care,568,30/12/2022,2212-00450,0.00,427.20,R,Aegis Care Solutions Ltd,No
Http://opendatacommunities.org/id/metropolitan-district-council/leeds,Leeds City Council,31/12/2022,City Development,Libraries Arts & Heritage,Supplies and Services,Operational Furniture And Equipment,203,09/12/2022,2212-00451,0.00,1140.00,R,Aesg Ltd,No
Http://opendatacommunities.org/id/metropolitan-district-council/leeds,Leeds City Council,31/12/2022,City Development,Libraries Arts & Heritage,Supplies and Services,Operational Furniture And Equipment,203,15/12/2022,2212-00452,0.00,452.40,R,Aesg Ltd,No
Http://opendatacommunities.org/id/metropolitan-district-council/leeds,Leeds City Council,31/12/2022,City Development,Libraries Arts & Heritage,Supplies and Services,Other Hired And Contracted Services,265,30/12/2022,2212-00453,0.00,975.00,R,Aesg Ltd,No
Http://opendatacommunities.org/id/metropolitan-district-council/leeds,Leeds City Council as Accountable Body,31/12/2022,Social Services Pooled Budgets,Jcs For People With Learning Disabilitie,Agency Payments,Day Centre,564,02/12/2022,2212-00454,0.00,11765.94,R,Affinity Trust,No
Http://opendatacommunities.org/id/metropolitan-district-council/leeds,Leeds City Council as Accountable Body,31/12/2022,Social Services Pooled Budgets,Jcs For People With Learning Disabilitie,Agency Payments,Day Centre,564,02/12/2022,2212-00455,0.00,9142.77,R,Affinity Trust,No
Http://opendatacommunities.org/id/metropolitan-district-council/leeds,Leeds City Council as Accountable Body,31/12/2022,Social Services Pooled Budgets,Jcs For People With Learning Disabilitie,Agency Payments,Day Centre,564,02/12/2022,2212-00456,0.00,-4044.00,R,Affinity Trust,No
Http://opendatacommunities.org/id/metropolitan-district-council/leeds,Leeds City Council,31/12/2022,Adults and Health,Assessment And Care Management,Agency Payments,Home Care,568,21/12/2022,2212-00457,0.00,141.92,R,Affinity Trust,No
Http://opendatacommunities.org/id/metropolitan-district-council/leeds,Leeds City Council,31/12/2022,Adults and Health,Services For Adults Under 65 Mental/Dis,Agency Payments,Home Care,568,21/12/2022,2212-00458,0.00,425.76,R,Affinity Trust,No
Http://opendatacommunities.org/id/metropolitan-district-council/leeds,Leeds City Council,31/12/2022,Adults and Health,Services For Adults Under 65 Mental/Dis,Agency Payments,HCAIT Community Support,575,21/12/2022,2212-00459,0.00,354.80,R,Affinity Trust,No
Http://opendatacommunities.org/id/metropolitan-district-council/leeds,Leeds City Council,31/12/2022,Adults and Health,Services For Older People - 65 And Over,Agency Payments,HCAIT Community Support,575,21/12/2022,2212-00460,0.00,638.64,R,Affinity Trust,No
Http://opendatacommunities.org/id/metropolitan-district-council/leeds,Leeds City Council,31/12/2022,Adults and Health,Services For Older People Under 65 P/Dis,Agency Payments,Home Care,568,21/12/2022,2212-00461,0.00,851.52,R,Affinity Trust,No
Http://opendatacommunities.org/id/metropolitan-district-council/leeds,Leeds City Council,31/12/2022,Adults and Health,Services For Older People Under 65 P/Dis,Agency Payments,HCAIT Community Support,575,21/12/2022,2212-00462,0.00,780.56,R,Affinity Trust,No
Http://opendatacommunities.org/id/metropolitan-district-council/leeds,Leeds City Council as Accountable Body,31/12/2022,Social Services Pooled Budgets,Jcs For People With Learning Disabilitie,Agency Payments,Day Centre,564,23/12/2022,2212-00463,0.00,1263.60,R,Affinity Trust,No
Http://opendatacommunities.org/id/metropolitan-district-council/leeds,Leeds City Council as Accountable Body,31/12/2022,Social Services Pooled Budgets,Jcs For People With Learning Disabilitie,Agency Payments,Day Centre,564,23/12/2022,2212-00464,0.00,315.90,R,Affinity Trust,No
Http://opendatacommunities.org/id/metropolitan-district-council/leeds,Leeds City Council as Accountable Body,31/12/2022,Social Services Pooled Budgets,Jcs For People With Learning Disabilitie,Agency Payments,Day Centre,564,23/12/2022,2212-00465,0.00,1263.60,R,Affinity Trust,No
Http://opendatacommunities.org/id/metropolitan-district-council/leeds,Leeds City Council as Accountable Body,31/12/2022,Social Services Pooled Budgets,Jcs For People With Learning Disabilitie,Agency Payments,Sheltered Accommodation,569,07/12/2022,2212-00466,0.00,117970.84,R,Affinity Trust North Divisional Office,No
Http://opendatacommunities.org/id/metropolitan-district-council/leeds,Leeds City Council as Accountable Body,31/12/2022,Social Services Pooled Budgets,Jcs For People With Learning Disabilitie,Agency Payments,Sheltered Accommodation,569,28/12/2022,2212-00467,0.00,177456.76,R,Affinity Trust North Divisional Office,No
Http://opendatacommunities.org/id/metropolitan-district-council/leeds,Leeds City Council,31/12/2022,Communities Housing and Environment,Parks and Countryside ,Transport,Hire Of Movable Plant & Machinery,315,03/11/2022,2212-00468,0.00,4750.00,R,Afi Uplift,Yes
Http://opendatacommunities.org/id/metropolitan-district-council/leeds,Leeds City Council,31/12/2022,Communities Housing and Environment,Parks and Countryside ,Transport,Hire Of Movable Plant & Machinery,315,28/11/2022,2212-00469,0.00,2280.00,R,Afi Uplift,Yes
Http://opendatacommunities.org/id/metropolitan-district-council/leeds,Leeds City Council,31/12/2022,Adults and Health,Services For Older People - 65 And Over,Agency Payments,Payments To Voluntary Organisations,561,30/12/2022,2212-00470,0.00,9539.75,R,Age Uk Leeds,No
Http://opendatacommunities.org/id/metropolitan-district-council/leeds,Leeds City Council,31/12/2022,City Development,Highways,Supplies and Services,Operational Materials,205,29/12/2022,2212-00471,0.00,5951.60,R,AGGREGATE INDUSTRIES UK LTD,No
Http://opendatacommunities.org/id/metropolitan-district-council/leeds,Leeds City Council,31/12/2022,City Development,Highways,Supplies and Services,Operational Materials,205,30/12/2022,2212-00472,0.00,3381.52,R,AGGREGATE INDUSTRIES UK LTD,No
Http://opendatacommunities.org/id/metropolitan-district-council/leeds,Leeds City Council,31/12/2022,City Development,Highways,Supplies and Services,Operational Materials,205,30/12/2022,2212-00473,0.00,4099.27,R,AGGREGATE INDUSTRIES UK LTD,No
Http://opendatacommunities.org/id/metropolitan-district-council/leeds,Leeds City Council,31/12/2022,Communities Housing and Environment,Customer Access,Supplies and Services,Bought In Professional Services,277,07/12/2022,2212-00474,0.00,13.50,R,Agnieszka J Collier,No
Http://opendatacommunities.org/id/metropolitan-district-council/leeds,Leeds City Council,31/12/2022,Communities Housing and Environment,Customer Access,Supplies and Services,Bought In Professional Services,277,07/12/2022,2212-00475,0.00,27.00,R,Agnieszka J Collier,No
Http://opendatacommunities.org/id/metropolitan-district-council/leeds,Leeds City Council,31/12/2022,Communities Housing and Environment,Customer Access,Supplies and Services,Bought In Professional Services,277,14/12/2022,2212-00476,0.00,13.50,R,Agnieszka J Collier,No
Http://opendatacommunities.org/id/metropolitan-district-council/leeds,Leeds City Council,31/12/2022,Communities Housing and Environment,Customer Access,Supplies and Services,Bought In Professional Services,277,21/12/2022,2212-00477,0.00,27.00,R,Agnieszka J Collier,No
Http://opendatacommunities.org/id/metropolitan-district-council/leeds,Leeds City Council,31/12/2022,City Development,Recreation ,Supplies and Services,Operational Furniture And Equipment,203,25/11/2022,2212-00478,0.00,275.50,R,Agpc Hygiene Ltd,Yes
Http://opendatacommunities.org/id/metropolitan-district-council/leeds,Leeds City Council,31/12/2022,City Development,Recreation,Premises,Grounds Maintenance Work,111,16/12/2022,2212-00479,0.00,609.86,R,Agrigem Ltd,No
Http://opendatacommunities.org/id/metropolitan-district-council/leeds,Leeds City Council,31/12/2022,Communities Housing and Environment,Parks and Countryside ,Supplies and Services,Operational Materials,205,14/11/2022,2212-00480,0.00,63.27,R,Agriline Products Ltd,Yes
Http://opendatacommunities.org/id/metropolitan-district-council/leeds,Leeds City Council,31/12/2022,Communities Housing and Environment,Parks and Countryside,Supplies and Services,Operational Materials,205,16/12/2022,2212-00481,0.00,1354.81,R,Agrovista UK Ltd,No
Http://opendatacommunities.org/id/metropolitan-district-council/leeds,Leeds City Council,31/12/2022,City Development,Asset Management,Capital,OTHER COSTS,7,30/12/2022,2212-00482,0.00,10000.00,C,Ahead Partnership Ltd,No
Http://opendatacommunities.org/id/metropolitan-district-council/leeds,Leeds City Council as Accountable Body,31/12/2022,Social Services Pooled Budgets,Leeds Community Equip Store Pooled Budgt,Supplies and Services,Other Equipment,203,20/12/2022,2212-00483,0.00,-288.00,R,AIDAPT BATHROOMS LTD,No
Http://opendatacommunities.org/id/metropolitan-district-council/leeds,Leeds City Council as Accountable Body,31/12/2022,Social Services Pooled Budgets,Leeds Community Equip Store Pooled Budgt,Supplies and Services,Other Equipment,203,20/12/2022,2212-00484,0.00,2868.00,R,AIDAPT BATHROOMS LTD,No
Http://opendatacommunities.org/id/metropolitan-district-council/leeds,Leeds City Council,31/12/2022,Adults and Health,Services For Older People - 65 And Over,Supplies and Services,Operational Furniture And Equipment,203,20/12/2022,2212-00485,0.00,396.00,R,AIDAPT BATHROOMS LTD,No
Http://opendatacommunities.org/id/metropolitan-district-council/leeds,Leeds City Council as Accountable Body,31/12/2022,Social Services Pooled Budgets,Leeds Community Equip Store Pooled Budgt,Supplies and Services,Other Equipment,203,20/12/2022,2212-00486,0.00,5100.00,R,AIDAPT BATHROOMS LTD,No
Http://opendatacommunities.org/id/metropolitan-district-council/leeds,Leeds City Council as Accountable Body,31/12/2022,Social Services Pooled Budgets,Leeds Community Equip Store Pooled Budgt,Supplies and Services,Other Equipment,203,20/12/2022,2212-00487,0.00,4110.00,R,AIDAPT BATHROOMS LTD,No
Http://opendatacommunities.org/id/metropolitan-district-council/leeds,Leeds City Council as Accountable Body,31/12/2022,Social Services Pooled Budgets,Leeds Community Equip Store Pooled Budgt,Supplies and Services,Other Equipment,203,20/12/2022,2212-00488,0.00,260.00,R,AIDAPT BATHROOMS LTD,No
Http://opendatacommunities.org/id/metropolitan-district-council/leeds,Leeds City Council as Accountable Body,31/12/2022,Social Services Pooled Budgets,Leeds Community Equip Store Pooled Budgt,Supplies and Services,Other Equipment,203,20/12/2022,2212-00489,0.00,3888.00,R,AIDAPT BATHROOMS LTD,No
Http://opendatacommunities.org/id/metropolitan-district-council/leeds,Leeds City Council as Accountable Body,31/12/2022,Social Services Pooled Budgets,Leeds Community Equip Store Pooled Budgt,Supplies and Services,Other Equipment,203,30/12/2022,2212-00490,0.00,175.00,R,AIDAPT BATHROOMS LTD,No
Http://opendatacommunities.org/id/metropolitan-district-council/leeds,Leeds City Council,31/12/2022,Children and Families,Social Care,Appropriations,Leaving Care Allowances,634,14/12/2022,2212-00491,0.00,50.00,R,REDACTED PERSONAL DATA,No
Http://opendatacommunities.org/id/metropolitan-district-council/leeds,Leeds City Council,31/12/2022,Children and Families,Social Care,Appropriations,Leaving Care Allowances,634,13/12/2022,2212-00492,0.00,50.00,R,REDACTED PERSONAL DATA,No
Http://opendatacommunities.org/id/metropolitan-district-council/leeds,Leeds City Council,31/12/2022,Resources,Leeds Building Services,Supplies and Services,Operational Furniture And Equipment,203,16/12/2022,2212-00493,0.00,1887.42,R,Air Conditioning Accessories,No
Http://opendatacommunities.org/id/metropolitan-district-council/leeds,Leeds City Council,31/12/2022,Resources,Leeds Building Services,Supplies and Services,Operational Furniture And Equipment,203,16/12/2022,2212-00494,0.00,708.03,R,Air Conditioning Accessories,No
Http://opendatacommunities.org/id/metropolitan-district-council/leeds,Leeds City Council,31/12/2022,Resources,Leeds Building Services,Supplies and Services,Operational Materials,205,22/12/2022,2212-00495,0.00,389.60,R,Air Conditioning Accessories,No
Http://opendatacommunities.org/id/metropolitan-district-council/leeds,Leeds City Council,31/12/2022,Communities Housing and Environment,Environmental Health,Supplies and Services,Other Hired And Contracted Services,265,02/12/2022,2212-00496,0.00,11.75,R,AIR LIQUIDE UK,No
Http://opendatacommunities.org/id/metropolitan-district-council/leeds,Leeds City Council,31/12/2022,Communities Housing and Environment,Environmental Health,Supplies and Services,Other Hired And Contracted Services,265,02/12/2022,2212-00497,0.00,11.75,R,AIR LIQUIDE UK,No
Http://opendatacommunities.org/id/metropolitan-district-council/leeds,Leeds City Council,31/12/2022,Communities Housing and Environment,Environmental Health,Supplies and Services,Other Hired And Contracted Services,265,02/12/2022,2212-00498,0.00,18.16,R,AIR LIQUIDE UK,No
Http://opendatacommunities.org/id/metropolitan-district-council/leeds,Leeds City Council,31/12/2022,Communities Housing and Environment,Environmental Health,Supplies and Services,Other Hired And Contracted Services,265,02/12/2022,2212-00499,0.00,94.00,R,AIR LIQUIDE UK,No
Http://opendatacommunities.org/id/metropolitan-district-council/leeds,Leeds City Council,31/12/2022,Communities Housing and Environment,Environmental Health,Supplies and Services,Other Hired And Contracted Services,265,30/12/2022,2212-00500,0.00,11.75,R,AIR LIQUIDE UK,No
Http://opendatacommunities.org/id/metropolitan-district-council/leeds,Leeds City Council,31/12/2022,Communities Housing and Environment,Environmental Health,Supplies and Services,Other Hired And Contracted Services,265,30/12/2022,2212-00501,0.00,11.75,R,AIR LIQUIDE UK,No
Http://opendatacommunities.org/id/metropolitan-district-council/leeds,Leeds City Council,31/12/2022,Communities Housing and Environment,Environmental Health,Supplies and Services,Other Hired And Contracted Services,265,30/12/2022,2212-00502,0.00,18.16,R,AIR LIQUIDE UK,No
Http://opendatacommunities.org/id/metropolitan-district-council/leeds,Leeds City Council,31/12/2022,Communities Housing and Environment,Environmental Health,Supplies and Services,Other Hired And Contracted Services,265,30/12/2022,2212-00503,0.00,94.00,R,AIR LIQUIDE UK,No
Http://opendatacommunities.org/id/metropolitan-district-council/leeds,Leeds City Council,31/12/2022,Communities Housing and Environment,Parks and Countryside,Supplies and Services,Other Hired And Contracted Services,265,09/12/2022,2212-00504,0.00,180.00,R,Aire Valley Tree Services Ltd,No
Http://opendatacommunities.org/id/metropolitan-district-council/leeds,Leeds City Council,31/12/2022,Communities Housing and Environment,Parks and Countryside,Supplies and Services,Other Hired And Contracted Services,265,29/12/2022,2212-00505,0.00,1654.00,R,Aire Valley Tree Services Ltd,No
Http://opendatacommunities.org/id/metropolitan-district-council/leeds,Leeds City Council,31/12/2022,Adults and Health,Services For Older People - 65 And Over,Agency Payments,Residential Care Dementia,571,07/12/2022,2212-00506,0.00,56628.78,R,Aire View Residential Home,No
Http://opendatacommunities.org/id/metropolitan-district-council/leeds,Leeds City Council,31/12/2022,Adults and Health,Services For Older People - 65 And Over,Agency Payments,Residential,580,07/12/2022,2212-00507,0.00,23450.04,R,Aire View Residential Home,No
Http://opendatacommunities.org/id/metropolitan-district-council/leeds,Leeds City Council,31/12/2022,Adults and Health,Services For Older People - 65 And Over,Agency Payments,Residential Care Dementia,571,28/12/2022,2212-00508,0.00,77831.89,R,Aire View Residential Home,No
Http://opendatacommunities.org/id/metropolitan-district-council/leeds,Leeds City Council,31/12/2022,Adults and Health,Services For Older People - 65 And Over,Agency Payments,Residential,580,28/12/2022,2212-00509,0.00,8901.03,R,Aire View Residential Home,No
Http://opendatacommunities.org/id/metropolitan-district-council/leeds,Leeds City Council,31/12/2022,Resources,Commercial Services,Supplies and Services,Operational Furniture And Equipment,203,01/12/2022,2212-00510,0.00,1464.00,R,AIREDALE CATERING EQUIPMENT LTD,No
Http://opendatacommunities.org/id/metropolitan-district-council/leeds,Leeds City Council,31/12/2022,Resources,Commercial Services,Supplies and Services,Operational Furniture And Equipment,203,01/12/2022,2212-00511,0.00,2217.00,R,AIREDALE CATERING EQUIPMENT LTD,No
Http://opendatacommunities.org/id/metropolitan-district-council/leeds,Leeds City Council,31/12/2022,Resources,Commercial Services,Supplies and Services,Operational Furniture And Equipment,203,23/12/2022,2212-00512,0.00,2850.00,R,AIREDALE CATERING EQUIPMENT LTD,No
Http://opendatacommunities.org/id/metropolitan-district-council/leeds,Leeds City Council,31/12/2022,Resources,Commercial Services,Premises,Fixtures & Fittings,131,23/12/2022,2212-00513,0.00,22276.00,R,AIREDALE CATERING EQUIPMENT LTD,No
Http://opendatacommunities.org/id/metropolitan-district-council/leeds,Leeds City Council,31/12/2022,Children and Families,Social Care,Supplies and Services,Operational Furniture And Equipment,203,28/12/2022,2212-00514,0.00,2550.00,R,AIREDALE CATERING EQUIPMENT LTD,No
Http://opendatacommunities.org/id/metropolitan-district-council/leeds,Leeds City Council,31/12/2022,Adults and Health,Services For Older People - 65 And Over,Agency Payments,Residential Care Dementia,571,07/12/2022,2212-00515,0.00,21298.12,R,Airedale Residential Home,No
Http://opendatacommunities.org/id/metropolitan-district-council/leeds,Leeds City Council,31/12/2022,Adults and Health,Services For Older People - 65 And Over,Agency Payments,Residential,580,07/12/2022,2212-00516,0.00,32207.85,R,Airedale Residential Home,No
Http://opendatacommunities.org/id/metropolitan-district-council/leeds,Leeds City Council,31/12/2022,Adults and Health,Services For Older People - 65 And Over,Agency Payments,Residential Care Dementia,571,28/12/2022,2212-00517,0.00,-1713.90,R,Airedale Residential Home,No
Http://opendatacommunities.org/id/metropolitan-district-council/leeds,Leeds City Council,31/12/2022,Adults and Health,Services For Older People - 65 And Over,Agency Payments,Residential,580,28/12/2022,2212-00518,0.00,20672.20,R,Airedale Residential Home,No
Http://opendatacommunities.org/id/metropolitan-district-council/leeds,Leeds City Council,31/12/2022,Communities Housing and Environment,Environmental Health,Supplies and Services,Other Hired And Contracted Services,265,09/12/2022,2212-00519,0.00,237.83,R,Aireworth Vets,No
Http://opendatacommunities.org/id/metropolitan-district-council/leeds,Leeds City Council,31/12/2022,Communities Housing and Environment,Environmental Health,Supplies and Services,Other Hired And Contracted Services,265,30/12/2022,2212-00520,0.00,285.72,R,Aireworth Vets,No
Http://opendatacommunities.org/id/metropolitan-district-council/leeds,Leeds City Council,31/12/2022,Adults and Health,Services For Adults Under 65 Learn/Dis ,Transport,Public Transport Expenses,310,31/10/2022,2212-00521,0.00,42.35,R,Airpay 43967965-Amber Car,Yes
Http://opendatacommunities.org/id/metropolitan-district-council/leeds,Leeds City Council,31/12/2022,Adults and Health,Services For Adults Under 65 Learn/Dis ,Transport,Public Transport Expenses,310,31/10/2022,2212-00522,0.00,44.45,R,Airpay 43967971-Amber Car,Yes
Http://opendatacommunities.org/id/metropolitan-district-council/leeds,Leeds City Council,31/12/2022,Children and Families,Social Care ,Transport,Public Transport Expenses,310,01/11/2022,2212-00523,0.00,20.25,R,Airpay 44030092-Amber Car,Yes
Http://opendatacommunities.org/id/metropolitan-district-council/leeds,Leeds City Council,31/12/2022,Children and Families,Social Care ,Transport,Public Transport Expenses,310,03/11/2022,2212-00524,0.00,15.12,R,Airpay 44056180-Amber Car,Yes
Http://opendatacommunities.org/id/metropolitan-district-council/leeds,Leeds City Council,31/12/2022,Children and Families,Social Care ,Transport,Public Transport Expenses,310,06/11/2022,2212-00525,0.00,17.85,R,Airpay 44103243-Amber Car,Yes
Http://opendatacommunities.org/id/metropolitan-district-council/leeds,Leeds City Council,31/12/2022,Children and Families,Social Care ,Transport,Public Transport Expenses,310,11/11/2022,2212-00526,0.00,21.15,R,Airpay 44163301-Amber Car,Yes
Http://opendatacommunities.org/id/metropolitan-district-council/leeds,Leeds City Council,31/12/2022,Children and Families,Social Care ,Transport,Public Transport Expenses,310,15/11/2022,2212-00527,0.00,5.71,R,Airpay 44232390-Amber Car,Yes
Http://opendatacommunities.org/id/metropolitan-district-council/leeds,Leeds City Council,31/12/2022,Children and Families,Social Care ,Transport,Public Transport Expenses,310,16/11/2022,2212-00528,0.00,9.12,R,Airpay 44236108-Amber Car,Yes
Http://opendatacommunities.org/id/metropolitan-district-council/leeds,Leeds City Council,31/12/2022,Children and Families,Social Care ,Transport,Public Transport Expenses,310,16/11/2022,2212-00529,0.00,9.12,R,Airpay 44245982-Amber Car,Yes
Http://opendatacommunities.org/id/metropolitan-district-council/leeds,Leeds City Council,31/12/2022,Children and Families,Social Care ,Transport,Public Transport Expenses,310,23/11/2022,2212-00530,0.00,5.04,R,Airpay 44351510-Amber Car,Yes
Http://opendatacommunities.org/id/metropolitan-district-council/leeds,Leeds City Council,31/12/2022,Children and Families,Social Care ,Transport,Public Transport Expenses,310,25/11/2022,2212-00531,0.00,16.55,R,Airpay 44376958-Amber Car,Yes
Http://opendatacommunities.org/id/metropolitan-district-council/leeds,Leeds City Council,31/12/2022,Children and Families,Social Care ,Transport,Public Transport Expenses,310,25/11/2022,2212-00532,0.00,16.35,R,Airpay 44382190-Amber Car,Yes
Http://opendatacommunities.org/id/metropolitan-district-council/leeds,Leeds City Council,31/12/2022,Children and Families,Social Care ,Transport,Public Transport Expenses,310,28/11/2022,2212-00533,0.00,16.05,R,Airpay 44424911-Amber Car,Yes
Http://opendatacommunities.org/id/metropolitan-district-council/leeds,Leeds City Council,31/12/2022,Children and Families,Social Care ,Transport,Public Transport Expenses,310,28/11/2022,2212-00534,0.00,17.54,R,Airpay 44429803-Amber Car,Yes
Http://opendatacommunities.org/id/metropolitan-district-council/leeds,Leeds City Council,31/12/2022,Adults and Health,Services For Adults Under 65 Mental/Dis,Agency Payments,Fees - Level 4,520,02/12/2022,2212-00535,0.00,175.00,R,AIT Mitra Limited,No
Http://opendatacommunities.org/id/metropolitan-district-council/leeds,Leeds City Council,31/12/2022,Adults and Health,Services For Adults Under 65 Mental/Dis,Agency Payments,Fees - Level 4,520,02/12/2022,2212-00536,0.00,175.00,R,AIT Mitra Limited,No
Http://opendatacommunities.org/id/metropolitan-district-council/leeds,Leeds City Council,31/12/2022,Adults and Health,Services For Adults Under 65 Mental/Dis,Agency Payments,Fees - Level 4,520,08/12/2022,2212-00537,0.00,175.00,R,AIT Mitra Limited,No
Http://opendatacommunities.org/id/metropolitan-district-council/leeds,Leeds City Council,31/12/2022,Adults and Health,Services For Adults Under 65 Mental/Dis,Agency Payments,Fees - Level 4,520,08/12/2022,2212-00538,0.00,175.00,R,AIT Mitra Limited,No
Http://opendatacommunities.org/id/metropolitan-district-council/leeds,Leeds City Council,31/12/2022,Adults and Health,Services For Adults Under 65 Mental/Dis,Agency Payments,Fees - Level 4,520,09/12/2022,2212-00539,0.00,175.00,R,AIT Mitra Limited,No
Http://opendatacommunities.org/id/metropolitan-district-council/leeds,Leeds City Council,31/12/2022,Adults and Health,Services For Adults Under 65 Mental/Dis,Agency Payments,Fees - Level 4,520,23/12/2022,2212-00540,0.00,175.00,R,AIT Mitra Limited,No
Http://opendatacommunities.org/id/metropolitan-district-council/leeds,Leeds City Council,31/12/2022,Adults and Health,Services For Adults Under 65 Mental/Dis,Agency Payments,Fees - Level 4,520,23/12/2022,2212-00541,0.00,175.00,R,AIT Mitra Limited,No
Http://opendatacommunities.org/id/metropolitan-district-council/leeds,Leeds City Council,31/12/2022,Adults and Health,Services For Adults Under 65 Mental/Dis,Agency Payments,Fees - Level 4,520,23/12/2022,2212-00542,0.00,175.00,R,AIT Mitra Limited,No
Http://opendatacommunities.org/id/metropolitan-district-council/leeds,Leeds City Council,31/12/2022,Adults and Health,Services For Adults Under 65 Mental/Dis,Agency Payments,Fees - Level 4,520,23/12/2022,2212-00543,0.00,175.00,R,AIT Mitra Limited,No
Http://opendatacommunities.org/id/metropolitan-district-council/leeds,Leeds City Council,31/12/2022,Adults and Health,Services For Adults Under 65 Mental/Dis,Agency Payments,Fees - Level 4,520,29/12/2022,2212-00544,0.00,175.00,R,AIT Mitra Limited,No
Http://opendatacommunities.org/id/metropolitan-district-council/leeds,Leeds City Council as Accountable Body,31/12/2022,Social Services Pooled Budgets,Jcs For People With Learning Disabilitie,Agency Payments,Residential,580,07/12/2022,2212-00545,0.00,7082.20,R,AITCH care homes,No
Http://opendatacommunities.org/id/metropolitan-district-council/leeds,Leeds City Council as Accountable Body,31/12/2022,Social Services Pooled Budgets,Jcs For People With Learning Disabilitie,Agency Payments,Residential,580,28/12/2022,2212-00546,0.00,7082.20,R,AITCH care homes,No
Http://opendatacommunities.org/id/metropolitan-district-council/leeds,Leeds City Council,31/12/2022,City Development,Highways,External Income,Work Done / Services Provided,931,23/12/2022,2212-00547,0.00,5250.00,R,Aj Bell Platinum,No
Http://opendatacommunities.org/id/metropolitan-district-council/leeds,Leeds City Council,31/12/2022,Resources,Leeds Building Services,Supplies and Services,Operational Furniture And Equipment,203,01/12/2022,2212-00548,0.00,31.87,R,AJM FIXINGS & POWER TOOLS LTD,No
Http://opendatacommunities.org/id/metropolitan-district-council/leeds,Leeds City Council,31/12/2022,Resources,Leeds Building Services,Premises,Cleaning Maintenance & Toiletries,127,01/12/2022,2212-00549,0.00,23.50,R,AJM FIXINGS & POWER TOOLS LTD,No
Http://opendatacommunities.org/id/metropolitan-district-council/leeds,Leeds City Council,31/12/2022,Resources,Leeds Building Services,Supplies and Services,Operational Furniture And Equipment,203,02/12/2022,2212-00550,0.00,155.88,R,AJM FIXINGS & POWER TOOLS LTD,No
Http://opendatacommunities.org/id/metropolitan-district-council/leeds,Leeds City Council,31/12/2022,Resources,Leeds Building Services,Supplies and Services,Operational Furniture And Equipment,203,02/12/2022,2212-00551,0.00,3606.50,R,AJM FIXINGS & POWER TOOLS LTD,No
Http://opendatacommunities.org/id/metropolitan-district-council/leeds,Leeds City Council,31/12/2022,Resources,Leeds Building Services,Premises,Cleaning Maintenance & Toiletries,127,02/12/2022,2212-00552,0.00,215.00,R,AJM FIXINGS & POWER TOOLS LTD,No
Http://opendatacommunities.org/id/metropolitan-district-council/leeds,Leeds City Council,31/12/2022,Resources,Leeds Building Services,Supplies and Services,Operational Furniture And Equipment,203,02/12/2022,2212-00553,0.00,324.95,R,AJM FIXINGS & POWER TOOLS LTD,No
Http://opendatacommunities.org/id/metropolitan-district-council/leeds,Leeds City Council,31/12/2022,Resources,Leeds Building Services,Premises,Cleaning Maintenance & Toiletries,127,02/12/2022,2212-00554,0.00,252.00,R,AJM FIXINGS & POWER TOOLS LTD,No
Http://opendatacommunities.org/id/metropolitan-district-council/leeds,Leeds City Council,31/12/2022,Resources,Leeds Building Services,Premises,Cleaning Maintenance & Toiletries,127,05/12/2022,2212-00555,0.00,438.58,R,AJM FIXINGS & POWER TOOLS LTD,No
Http://opendatacommunities.org/id/metropolitan-district-council/leeds,Leeds City Council,31/12/2022,Resources,Leeds Building Services,Supplies and Services,Operational Furniture And Equipment,203,06/12/2022,2212-00556,0.00,173.95,R,AJM FIXINGS & POWER TOOLS LTD,No
Http://opendatacommunities.org/id/metropolitan-district-council/leeds,Leeds City Council,31/12/2022,Resources,Leeds Building Services,Premises,Cleaning Maintenance & Toiletries,127,06/12/2022,2212-00557,0.00,480.00,R,AJM FIXINGS & POWER TOOLS LTD,No
Http://opendatacommunities.org/id/metropolitan-district-council/leeds,Leeds City Council,31/12/2022,Resources,Leeds Building Services,Supplies and Services,Operational Furniture And Equipment,203,06/12/2022,2212-00558,0.00,299.00,R,AJM FIXINGS & POWER TOOLS LTD,No
Http://opendatacommunities.org/id/metropolitan-district-council/leeds,Leeds City Council,31/12/2022,Resources,Leeds Building Services,Premises,Cleaning Maintenance & Toiletries,127,06/12/2022,2212-00559,0.00,290.50,R,AJM FIXINGS & POWER TOOLS LTD,No
Http://opendatacommunities.org/id/metropolitan-district-council/leeds,Leeds City Council,31/12/2022,Resources,Leeds Building Services,Supplies and Services,Operational Furniture And Equipment,203,06/12/2022,2212-00560,0.00,618.19,R,AJM FIXINGS & POWER TOOLS LTD,No
Http://opendatacommunities.org/id/metropolitan-district-council/leeds,Leeds City Council,31/12/2022,Resources,Leeds Building Services,Premises,Cleaning Maintenance & Toiletries,127,06/12/2022,2212-00561,0.00,1692.00,R,AJM FIXINGS & POWER TOOLS LTD,No
Http://opendatacommunities.org/id/metropolitan-district-council/leeds,Leeds City Council,31/12/2022,Resources,Leeds Building Services,Supplies and Services,Operational Furniture And Equipment,203,08/12/2022,2212-00562,0.00,256.00,R,AJM FIXINGS & POWER TOOLS LTD,No
Http://opendatacommunities.org/id/metropolitan-district-council/leeds,Leeds City Council,31/12/2022,Resources,Leeds Building Services,Supplies and Services,Operational Furniture And Equipment,203,08/12/2022,2212-00563,0.00,67.00,R,AJM FIXINGS & POWER TOOLS LTD,No
Http://opendatacommunities.org/id/metropolitan-district-council/leeds,Leeds City Council,31/12/2022,Resources,Leeds Building Services,Supplies and Services,Operational Furniture And Equipment,203,08/12/2022,2212-00564,0.00,73.23,R,AJM FIXINGS & POWER TOOLS LTD,No
Http://opendatacommunities.org/id/metropolitan-district-council/leeds,Leeds City Council,31/12/2022,Resources,Leeds Building Services,Premises,Cleaning Maintenance & Toiletries,127,08/12/2022,2212-00565,0.00,31.60,R,AJM FIXINGS & POWER TOOLS LTD,No
Http://opendatacommunities.org/id/metropolitan-district-council/leeds,Leeds City Council,31/12/2022,Resources,Leeds Building Services,Supplies and Services,Operational Furniture And Equipment,203,08/12/2022,2212-00566,0.00,435.46,R,AJM FIXINGS & POWER TOOLS LTD,No
Http://opendatacommunities.org/id/metropolitan-district-council/leeds,Leeds City Council,31/12/2022,Resources,Leeds Building Services,Supplies and Services,Operational Furniture And Equipment,203,08/12/2022,2212-00567,0.00,52.99,R,AJM FIXINGS & POWER TOOLS LTD,No
Http://opendatacommunities.org/id/metropolitan-district-council/leeds,Leeds City Council,31/12/2022,Resources,Leeds Building Services,Supplies and Services,Operational Furniture And Equipment,203,08/12/2022,2212-00568,0.00,28.75,R,AJM FIXINGS & POWER TOOLS LTD,No
Http://opendatacommunities.org/id/metropolitan-district-council/leeds,Leeds City Council,31/12/2022,Resources,Leeds Building Services,Premises,Cleaning Maintenance & Toiletries,127,08/12/2022,2212-00569,0.00,288.00,R,AJM FIXINGS & POWER TOOLS LTD,No
Http://opendatacommunities.org/id/metropolitan-district-council/leeds,Leeds City Council,31/12/2022,Resources,Leeds Building Services,Supplies and Services,Operational Furniture And Equipment,203,09/12/2022,2212-00570,0.00,694.80,R,AJM FIXINGS & POWER TOOLS LTD,No
Http://opendatacommunities.org/id/metropolitan-district-council/leeds,Leeds City Council,31/12/2022,Resources,Leeds Building Services,Supplies and Services,Operational Furniture And Equipment,203,09/12/2022,2212-00571,0.00,359.16,R,AJM FIXINGS & POWER TOOLS LTD,No
Http://opendatacommunities.org/id/metropolitan-district-council/leeds,Leeds City Council,31/12/2022,Resources,Leeds Building Services,Supplies and Services,Operational Furniture And Equipment,203,09/12/2022,2212-00572,0.00,84.00,R,AJM FIXINGS & POWER TOOLS LTD,No
Http://opendatacommunities.org/id/metropolitan-district-council/leeds,Leeds City Council,31/12/2022,Resources,Leeds Building Services,Supplies and Services,Operational Furniture And Equipment,203,09/12/2022,2212-00573,0.00,260.00,R,AJM FIXINGS & POWER TOOLS LTD,No
Http://opendatacommunities.org/id/metropolitan-district-council/leeds,Leeds City Council,31/12/2022,Resources,Leeds Building Services,Supplies and Services,Operational Furniture And Equipment,203,09/12/2022,2212-00574,0.00,187.98,R,AJM FIXINGS & POWER TOOLS LTD,No
Http://opendatacommunities.org/id/metropolitan-district-council/leeds,Leeds City Council,31/12/2022,Resources,Leeds Building Services,Premises,Cleaning Maintenance & Toiletries,127,09/12/2022,2212-00575,0.00,179.50,R,AJM FIXINGS & POWER TOOLS LTD,No
Http://opendatacommunities.org/id/metropolitan-district-council/leeds,Leeds City Council,31/12/2022,Resources,Leeds Building Services,Supplies and Services,Operational Furniture And Equipment,203,09/12/2022,2212-00576,0.00,158.00,R,AJM FIXINGS & POWER TOOLS LTD,No
Http://opendatacommunities.org/id/metropolitan-district-council/leeds,Leeds City Council,31/12/2022,Resources,Leeds Building Services,Premises,Cleaning Maintenance & Toiletries,127,09/12/2022,2212-00577,0.00,279.00,R,AJM FIXINGS & POWER TOOLS LTD,No
Http://opendatacommunities.org/id/metropolitan-district-council/leeds,Leeds City Council,31/12/2022,Resources,Leeds Building Services,Supplies and Services,Operational Furniture And Equipment,203,09/12/2022,2212-00578,0.00,212.25,R,AJM FIXINGS & POWER TOOLS LTD,No
Http://opendatacommunities.org/id/metropolitan-district-council/leeds,Leeds City Council,31/12/2022,Resources,Leeds Building Services,Supplies and Services,Operational Furniture And Equipment,203,09/12/2022,2212-00579,0.00,95.00,R,AJM FIXINGS & POWER TOOLS LTD,No
Http://opendatacommunities.org/id/metropolitan-district-council/leeds,Leeds City Council,31/12/2022,Resources,Leeds Building Services,Supplies and Services,Operational Furniture And Equipment,203,13/12/2022,2212-00580,0.00,19.99,R,AJM FIXINGS & POWER TOOLS LTD,No
Http://opendatacommunities.org/id/metropolitan-district-council/leeds,Leeds City Council,31/12/2022,Resources,Leeds Building Services,Supplies and Services,Operational Furniture And Equipment,203,13/12/2022,2212-00581,0.00,584.95,R,AJM FIXINGS & POWER TOOLS LTD,No
Http://opendatacommunities.org/id/metropolitan-district-council/leeds,Leeds City Council,31/12/2022,Resources,Leeds Building Services,Supplies and Services,Operational Furniture And Equipment,203,13/12/2022,2212-00582,0.00,359.16,R,AJM FIXINGS & POWER TOOLS LTD,No
Http://opendatacommunities.org/id/metropolitan-district-council/leeds,Leeds City Council,31/12/2022,Resources,Leeds Building Services,Supplies and Services,Operational Furniture And Equipment,203,13/12/2022,2212-00583,0.00,22.95,R,AJM FIXINGS & POWER TOOLS LTD,No
Http://opendatacommunities.org/id/metropolitan-district-council/leeds,Leeds City Council,31/12/2022,Resources,Leeds Building Services,Supplies and Services,Operational Furniture And Equipment,203,13/12/2022,2212-00584,0.00,436.65,R,AJM FIXINGS & POWER TOOLS LTD,No
Http://opendatacommunities.org/id/metropolitan-district-council/leeds,Leeds City Council,31/12/2022,Resources,Leeds Building Services,Supplies and Services,Operational Furniture And Equipment,203,15/12/2022,2212-00585,0.00,210.00,R,AJM FIXINGS & POWER TOOLS LTD,No
Http://opendatacommunities.org/id/metropolitan-district-council/leeds,Leeds City Council,31/12/2022,Resources,Leeds Building Services,Supplies and Services,Operational Furniture And Equipment,203,15/12/2022,2212-00586,0.00,635.00,R,AJM FIXINGS & POWER TOOLS LTD,No
Http://opendatacommunities.org/id/metropolitan-district-council/leeds,Leeds City Council,31/12/2022,Resources,Leeds Building Services,Supplies and Services,Operational Furniture And Equipment,203,15/12/2022,2212-00587,0.00,143.75,R,AJM FIXINGS & POWER TOOLS LTD,No
Http://opendatacommunities.org/id/metropolitan-district-council/leeds,Leeds City Council,31/12/2022,Resources,Leeds Building Services,Supplies and Services,Operational Furniture And Equipment,203,15/12/2022,2212-00588,0.00,25.39,R,AJM FIXINGS & POWER TOOLS LTD,No
Http://opendatacommunities.org/id/metropolitan-district-council/leeds,Leeds City Council,31/12/2022,Resources,Leeds Building Services,Supplies and Services,Operational Furniture And Equipment,203,15/12/2022,2212-00589,0.00,149.00,R,AJM FIXINGS & POWER TOOLS LTD,No
Http://opendatacommunities.org/id/metropolitan-district-council/leeds,Leeds City Council,31/12/2022,Resources,Leeds Building Services,Supplies and Services,Operational Furniture And Equipment,203,15/12/2022,2212-00590,0.00,59.40,R,AJM FIXINGS & POWER TOOLS LTD,No
Http://opendatacommunities.org/id/metropolitan-district-council/leeds,Leeds City Council,31/12/2022,Resources,Leeds Building Services,Supplies and Services,Operational Furniture And Equipment,203,16/12/2022,2212-00591,0.00,260.00,R,AJM FIXINGS & POWER TOOLS LTD,No
Http://opendatacommunities.org/id/metropolitan-district-council/leeds,Leeds City Council,31/12/2022,Resources,Leeds Building Services,Supplies and Services,Operational Furniture And Equipment,203,16/12/2022,2212-00592,0.00,94.00,R,AJM FIXINGS & POWER TOOLS LTD,No
Http://opendatacommunities.org/id/metropolitan-district-council/leeds,Leeds City Council,31/12/2022,Resources,Leeds Building Services,Supplies and Services,Operational Furniture And Equipment,203,16/12/2022,2212-00593,0.00,163.61,R,AJM FIXINGS & POWER TOOLS LTD,No
Http://opendatacommunities.org/id/metropolitan-district-council/leeds,Leeds City Council,31/12/2022,Resources,Leeds Building Services,Supplies and Services,Operational Furniture And Equipment,203,16/12/2022,2212-00594,0.00,43.00,R,AJM FIXINGS & POWER TOOLS LTD,No
Http://opendatacommunities.org/id/metropolitan-district-council/leeds,Leeds City Council,31/12/2022,Resources,Leeds Building Services,Supplies and Services,Operational Furniture And Equipment,203,16/12/2022,2212-00595,0.00,308.00,R,AJM FIXINGS & POWER TOOLS LTD,No
Http://opendatacommunities.org/id/metropolitan-district-council/leeds,Leeds City Council,31/12/2022,Resources,Leeds Building Services,Supplies and Services,Operational Furniture And Equipment,203,16/12/2022,2212-00596,0.00,134.70,R,AJM FIXINGS & POWER TOOLS LTD,No
Http://opendatacommunities.org/id/metropolitan-district-council/leeds,Leeds City Council,31/12/2022,Resources,Leeds Building Services,Supplies and Services,Operational Furniture And Equipment,203,21/12/2022,2212-00597,0.00,269.40,R,AJM FIXINGS & POWER TOOLS LTD,No
Http://opendatacommunities.org/id/metropolitan-district-council/leeds,Leeds City Council,31/12/2022,Resources,Leeds Building Services,Supplies and Services,Operational Furniture And Equipment,203,21/12/2022,2212-00598,0.00,152.34,R,AJM FIXINGS & POWER TOOLS LTD,No
Http://opendatacommunities.org/id/metropolitan-district-council/leeds,Leeds City Council,31/12/2022,Resources,Leeds Building Services,Supplies and Services,Operational Furniture And Equipment,203,21/12/2022,2212-00599,0.00,320.00,R,AJM FIXINGS & POWER TOOLS LTD,No
Http://opendatacommunities.org/id/metropolitan-district-council/leeds,Leeds City Council,31/12/2022,Resources,Leeds Building Services,Supplies and Services,Operational Furniture And Equipment,203,21/12/2022,2212-00600,0.00,66.19,R,AJM FIXINGS & POWER TOOLS LTD,No
Http://opendatacommunities.org/id/metropolitan-district-council/leeds,Leeds City Council,31/12/2022,Resources,Leeds Building Services,Premises,Cleaning Maintenance & Toiletries,127,21/12/2022,2212-00601,0.00,95.00,R,AJM FIXINGS & POWER TOOLS LTD,No
Http://opendatacommunities.org/id/metropolitan-district-council/leeds,Leeds City Council,31/12/2022,Resources,Leeds Building Services,Supplies and Services,Operational Furniture And Equipment,203,21/12/2022,2212-00602,0.00,198.00,R,AJM FIXINGS & POWER TOOLS LTD,No
Http://opendatacommunities.org/id/metropolitan-district-council/leeds,Leeds City Council,31/12/2022,Resources,Leeds Building Services,Supplies and Services,Operational Furniture And Equipment,203,21/12/2022,2212-00603,0.00,46.00,R,AJM FIXINGS & POWER TOOLS LTD,No
Http://opendatacommunities.org/id/metropolitan-district-council/leeds,Leeds City Council,31/12/2022,Resources,Leeds Building Services,Supplies and Services,Operational Furniture And Equipment,203,21/12/2022,2212-00604,0.00,40.82,R,AJM FIXINGS & POWER TOOLS LTD,No
Http://opendatacommunities.org/id/metropolitan-district-council/leeds,Leeds City Council,31/12/2022,Resources,Leeds Building Services,Premises,Cleaning Maintenance & Toiletries,127,22/12/2022,2212-00605,0.00,542.79,R,AJM FIXINGS & POWER TOOLS LTD,No
Http://opendatacommunities.org/id/metropolitan-district-council/leeds,Leeds City Council,31/12/2022,Resources,Leeds Building Services,Supplies and Services,Operational Furniture And Equipment,203,22/12/2022,2212-00606,0.00,35.07,R,AJM FIXINGS & POWER TOOLS LTD,No
Http://opendatacommunities.org/id/metropolitan-district-council/leeds,Leeds City Council,31/12/2022,Resources,Leeds Building Services,Supplies and Services,Operational Furniture And Equipment,203,22/12/2022,2212-00607,0.00,59.98,R,AJM FIXINGS & POWER TOOLS LTD,No
Http://opendatacommunities.org/id/metropolitan-district-council/leeds,Leeds City Council,31/12/2022,Resources,Leeds Building Services,Premises,Cleaning Maintenance & Toiletries,127,22/12/2022,2212-00608,0.00,847.80,R,AJM FIXINGS & POWER TOOLS LTD,No
Http://opendatacommunities.org/id/metropolitan-district-council/leeds,Leeds City Council,31/12/2022,Resources,Leeds Building Services,Supplies and Services,Operational Furniture And Equipment,203,23/12/2022,2212-00609,0.00,634.24,R,AJM FIXINGS & POWER TOOLS LTD,No
Http://opendatacommunities.org/id/metropolitan-district-council/leeds,Leeds City Council,31/12/2022,Resources,Leeds Building Services,Supplies and Services,Operational Furniture And Equipment,203,23/12/2022,2212-00610,0.00,177.73,R,AJM FIXINGS & POWER TOOLS LTD,No
Http://opendatacommunities.org/id/metropolitan-district-council/leeds,Leeds City Council,31/12/2022,Resources,Leeds Building Services,Supplies and Services,Operational Furniture And Equipment,203,23/12/2022,2212-00611,0.00,25.39,R,AJM FIXINGS & POWER TOOLS LTD,No
Http://opendatacommunities.org/id/metropolitan-district-council/leeds,Leeds City Council,31/12/2022,Resources,Leeds Building Services,Supplies and Services,Operational Furniture And Equipment,203,23/12/2022,2212-00612,0.00,359.16,R,AJM FIXINGS & POWER TOOLS LTD,No
Http://opendatacommunities.org/id/metropolitan-district-council/leeds,Leeds City Council,31/12/2022,Resources,Leeds Building Services,Supplies and Services,Operational Furniture And Equipment,203,23/12/2022,2212-00613,0.00,142.00,R,AJM FIXINGS & POWER TOOLS LTD,No
Http://opendatacommunities.org/id/metropolitan-district-council/leeds,Leeds City Council,31/12/2022,Resources,Leeds Building Services,Supplies and Services,Operational Furniture And Equipment,203,23/12/2022,2212-00614,0.00,359.16,R,AJM FIXINGS & POWER TOOLS LTD,No
Http://opendatacommunities.org/id/metropolitan-district-council/leeds,Leeds City Council,31/12/2022,Resources,Leeds Building Services,Supplies and Services,Operational Furniture And Equipment,203,23/12/2022,2212-00615,0.00,43.00,R,AJM FIXINGS & POWER TOOLS LTD,No
Http://opendatacommunities.org/id/metropolitan-district-council/leeds,Leeds City Council,31/12/2022,Resources,Leeds Building Services,Premises,Cleaning Maintenance & Toiletries,127,29/12/2022,2212-00616,0.00,783.20,R,AJM FIXINGS & POWER TOOLS LTD,No
Http://opendatacommunities.org/id/metropolitan-district-council/leeds,Leeds City Council,31/12/2022,Resources,Leeds Building Services,Supplies and Services,Operational Furniture And Equipment,203,29/12/2022,2212-00617,0.00,618.16,R,AJM FIXINGS & POWER TOOLS LTD,No
Http://opendatacommunities.org/id/metropolitan-district-council/leeds,Leeds City Council,31/12/2022,Resources,Leeds Building Services,Supplies and Services,Operational Furniture And Equipment,203,29/12/2022,2212-00618,0.00,354.79,R,AJM FIXINGS & POWER TOOLS LTD,No
Http://opendatacommunities.org/id/metropolitan-district-council/leeds,Leeds City Council,31/12/2022,Resources,Leeds Building Services,Supplies and Services,Operational Furniture And Equipment,203,30/12/2022,2212-00619,0.00,315.12,R,AJM FIXINGS & POWER TOOLS LTD,No
Http://opendatacommunities.org/id/metropolitan-district-council/leeds,Leeds City Council,31/12/2022,Resources,Leeds Building Services,Supplies and Services,Operational Furniture And Equipment,203,30/12/2022,2212-00620,0.00,719.00,R,AJM FIXINGS & POWER TOOLS LTD,No
Http://opendatacommunities.org/id/metropolitan-district-council/leeds,Leeds City Council,31/12/2022,Resources,Leeds Building Services,Premises,Cleaning Maintenance & Toiletries,127,30/12/2022,2212-00621,0.00,445.27,R,AJM FIXINGS & POWER TOOLS LTD,No
Http://opendatacommunities.org/id/metropolitan-district-council/leeds,Leeds City Council,31/12/2022,Resources,Leeds Building Services,Supplies and Services,Operational Furniture And Equipment,203,30/12/2022,2212-00622,0.00,1811.10,R,AJM FIXINGS & POWER TOOLS LTD,No
Http://opendatacommunities.org/id/metropolitan-district-council/leeds,Leeds City Council,31/12/2022,Resources,Leeds Building Services,Supplies and Services,Operational Furniture And Equipment,203,30/12/2022,2212-00623,0.00,59.73,R,AJM FIXINGS & POWER TOOLS LTD,No
Http://opendatacommunities.org/id/metropolitan-district-council/leeds,Leeds City Council,31/12/2022,Communities Housing and Environment,Strategic Housing Partnership & Support,Capital,CONSTRUCTION,3,23/12/2022,2212-00624,0.00,3500.00,C,AKR Construction Ltd,No
Http://opendatacommunities.org/id/metropolitan-district-council/leeds,Leeds City Council,31/12/2022,Adults and Health,Services For Older People - 65 And Over,Agency Payments,Payments To Voluntary Organisations,561,30/12/2022,2212-00625,0.00,2700.00,R,Al Khidmat Centre,No
Http://opendatacommunities.org/id/metropolitan-district-council/leeds,Leeds City Council,31/12/2022,Children and Families,Social Care ,Appropriations,Leaving Care Grants,635,02/11/2022,2212-00626,0.00,37.95,R,Al Murad,Yes
Http://opendatacommunities.org/id/metropolitan-district-council/leeds,Leeds City Council,31/12/2022,City Development,Libraries Arts & Heritage,Supplies and Services,Other Hired And Contracted Services,265,28/12/2022,2212-00627,0.00,31.00,R,ALAA Enterprises,No
Http://opendatacommunities.org/id/metropolitan-district-council/leeds,Leeds City Council,31/12/2022,City Development,Recreation,External Income,Sporting & Other Recreational Fees,928,13/12/2022,2212-00628,0.00,60.00,R,REDACTED PERSONAL DATA,No
Http://opendatacommunities.org/id/metropolitan-district-council/leeds,Leeds City Council,31/12/2022,Communities Housing and Environment,Parks and Countryside ,Supplies and Services,Operational Materials,205,29/11/2022,2212-00629,0.00,29945.20,R,Alba Trees Plc,Yes
Http://opendatacommunities.org/id/metropolitan-district-council/leeds,Leeds City Council,31/12/2022,Communities Housing and Environment,Parks and Countryside ,Supplies and Services,Operational Materials,205,29/11/2022,2212-00630,0.00,32754.85,R,Alba Trees Plc,Yes
Http://opendatacommunities.org/id/metropolitan-district-council/leeds,Leeds City Council as Accountable Body,31/12/2022,Social Services Pooled Budgets,Leeds Community Equip Store Pooled Budgt,Supplies and Services,Other Equipment,203,02/12/2022,2212-00631,0.00,594.00,R,ALBION ELECTRIC STORES LTD,No
Http://opendatacommunities.org/id/metropolitan-district-council/leeds,Leeds City Council as Accountable Body,31/12/2022,Social Services Pooled Budgets,Leeds Community Equip Store Pooled Budgt,Supplies and Services,Other Equipment,203,09/12/2022,2212-00632,0.00,54.45,R,ALBION ELECTRIC STORES LTD,No
Http://opendatacommunities.org/id/metropolitan-district-council/leeds,Leeds City Council,31/12/2022,Communities Housing and Environment,Communities,Supplies and Services,Computer Software & Equipment,214,09/12/2022,2212-00633,0.00,1228.33,R,Alcium Software Ltd,No
Http://opendatacommunities.org/id/metropolitan-district-council/leeds,Leeds City Council,31/12/2022,Resources,Technology,Supplies and Services,Computer Software & Equipment,214,29/12/2022,2212-00634,0.00,13931.00,R,Alcium Software Ltd,No
Http://opendatacommunities.org/id/metropolitan-district-council/leeds,Leeds City Council,31/12/2022,Adults and Health,Public Health ,Supplies and Services,Operational Materials,205,08/11/2022,2212-00635,0.00,575.70,R,Aldi,Yes
Http://opendatacommunities.org/id/metropolitan-district-council/leeds,Leeds City Council,31/12/2022,Children and Families,Social Care ,Supplies and Services,Food & Drink,231,25/11/2022,2212-00636,0.00,3.32,R,Aldi 10 779,Yes
Http://opendatacommunities.org/id/metropolitan-district-council/leeds,Leeds City Council,31/12/2022,Children and Families,Social Care ,Supplies and Services,Food & Drink,231,03/11/2022,2212-00637,0.00,35.87,R,Aldi 103 779,Yes
Http://opendatacommunities.org/id/metropolitan-district-council/leeds,Leeds City Council,31/12/2022,Children and Families,Social Care ,Supplies and Services,Food & Drink,231,24/11/2022,2212-00638,0.00,23.22,R,Aldi 103 779,Yes
Http://opendatacommunities.org/id/metropolitan-district-council/leeds,Leeds City Council,31/12/2022,Children and Families,Social Care ,Appropriations,Young Peoples Activities,652,31/10/2022,2212-00639,0.00,9.80,R,Aldi 40 779,Yes
Http://opendatacommunities.org/id/metropolitan-district-council/leeds,Leeds City Council,31/12/2022,Children and Families,Social Care ,Supplies and Services,Food & Drink,231,07/11/2022,2212-00640,0.00,2.47,R,Aldi 40 779,Yes
Http://opendatacommunities.org/id/metropolitan-district-council/leeds,Leeds City Council,31/12/2022,Children and Families,Social Care ,Supplies and Services,Food & Drink,231,08/11/2022,2212-00641,0.00,8.92,R,Aldi 40 779,Yes
Http://opendatacommunities.org/id/metropolitan-district-council/leeds,Leeds City Council,31/12/2022,Children and Families,Social Care ,Supplies and Services,Food & Drink,231,05/11/2022,2212-00642,0.00,13.74,R,Aldi 49 779,Yes
Http://opendatacommunities.org/id/metropolitan-district-council/leeds,Leeds City Council,31/12/2022,Children and Families,Social Care ,Appropriations,Leaving Care Allowances,634,16/11/2022,2212-00643,0.00,47.23,R,Aldi 49 779,Yes
Http://opendatacommunities.org/id/metropolitan-district-council/leeds,Leeds City Council,31/12/2022,Children and Families,Social Care ,Agency Payments,Section 17,551,08/11/2022,2212-00644,0.00,21.93,R,Aldi 71 779,Yes
Http://opendatacommunities.org/id/metropolitan-district-council/leeds,Leeds City Council,31/12/2022,Children and Families,Social Care ,Appropriations,Leaving Care Allowances,634,09/11/2022,2212-00645,0.00,24.82,R,Aldi 71 779,Yes
Http://opendatacommunities.org/id/metropolitan-district-council/leeds,Leeds City Council,31/12/2022,Children and Families,Social Care ,Agency Payments,Section 17,551,29/11/2022,2212-00646,0.00,44.52,R,Aldi 71 779,Yes
Http://opendatacommunities.org/id/metropolitan-district-council/leeds,Leeds City Council,31/12/2022,Communities Housing and Environment,Communities ,Supplies and Services,Food & Drink,231,25/11/2022,2212-00647,0.00,160.28,R,Aldi 779117,Yes
Http://opendatacommunities.org/id/metropolitan-district-council/leeds,Leeds City Council,31/12/2022,Adults and Health,Services For Older People - 65 And Over ,Supplies and Services,General Amenity For Clients/Residents,285,25/11/2022,2212-00648,0.00,7.74,R,Aldi 779-90,Yes
Http://opendatacommunities.org/id/metropolitan-district-council/leeds,Leeds City Council,31/12/2022,Children and Families,Social Care ,Appropriations,Leaving Care Allowances,634,10/11/2022,2212-00649,0.00,49.36,R,Aldi 82 779,Yes
Http://opendatacommunities.org/id/metropolitan-district-council/leeds,Leeds City Council,31/12/2022,Children and Families,Social Care ,Supplies and Services,Food & Drink,231,08/11/2022,2212-00650,0.00,20.81,R,Aldi 85 779,Yes
Http://opendatacommunities.org/id/metropolitan-district-council/leeds,Leeds City Council,31/12/2022,Children and Families,Social Care ,Supplies and Services,Food & Drink,231,11/11/2022,2212-00651,0.00,20.83,R,Aldi 85 779,Yes
Http://opendatacommunities.org/id/metropolitan-district-council/leeds,Leeds City Council,31/12/2022,Children and Families,Social Care ,Supplies and Services,Food & Drink,231,15/11/2022,2212-00652,0.00,22.57,R,Aldi 85 779,Yes
Http://opendatacommunities.org/id/metropolitan-district-council/leeds,Leeds City Council,31/12/2022,Children and Families,Social Care ,Supplies and Services,Crockery Cutlery & Utensils,221,16/11/2022,2212-00653,0.00,8.32,R,Aldi 85 779,Yes
Http://opendatacommunities.org/id/metropolitan-district-council/leeds,Leeds City Council,31/12/2022,Children and Families,Social Care ,Supplies and Services,Food & Drink,231,16/11/2022,2212-00654,0.00,31.65,R,Aldi 85 779,Yes
Http://opendatacommunities.org/id/metropolitan-district-council/leeds,Leeds City Council,31/12/2022,Children and Families,Social Care ,Supplies and Services,Food & Drink,231,29/11/2022,2212-00655,0.00,31.70,R,Aldi 85 779,Yes
Http://opendatacommunities.org/id/metropolitan-district-council/leeds,Leeds City Council,31/12/2022,Children and Families,Social Care ,Supplies and Services,Food & Drink,231,10/11/2022,2212-00656,0.00,4.75,R,Aldi 88 779,Yes
Http://opendatacommunities.org/id/metropolitan-district-council/leeds,Leeds City Council,31/12/2022,Children and Families,Social Care ,Supplies and Services,Food & Drink,231,11/11/2022,2212-00657,0.00,49.22,R,Aldi 88 779,Yes
Http://opendatacommunities.org/id/metropolitan-district-council/leeds,Leeds City Council,31/12/2022,Children and Families,Social Care ,Supplies and Services,Food & Drink,231,05/11/2022,2212-00658,0.00,44.97,R,Aldi 89 779,Yes
Http://opendatacommunities.org/id/metropolitan-district-council/leeds,Leeds City Council,31/12/2022,Children and Families,Social Care ,Supplies and Services,Food & Drink,231,07/11/2022,2212-00659,0.00,138.24,R,Aldi 89 779,Yes
Http://opendatacommunities.org/id/metropolitan-district-council/leeds,Leeds City Council,31/12/2022,Children and Families,Social Care ,Supplies and Services,Food & Drink,231,14/11/2022,2212-00660,0.00,172.32,R,Aldi 89 779,Yes
Http://opendatacommunities.org/id/metropolitan-district-council/leeds,Leeds City Council,31/12/2022,Children and Families,Social Care ,Supplies and Services,Food & Drink,231,18/11/2022,2212-00661,0.00,7.91,R,Aldi 89 779,Yes
Http://opendatacommunities.org/id/metropolitan-district-council/leeds,Leeds City Council,31/12/2022,Children and Families,Social Care ,Supplies and Services,Food & Drink,231,21/11/2022,2212-00662,0.00,204.54,R,Aldi 89 779,Yes
Http://opendatacommunities.org/id/metropolitan-district-council/leeds,Leeds City Council,31/12/2022,Children and Families,Social Care ,Supplies and Services,Food & Drink,231,23/11/2022,2212-00663,0.00,6.86,R,Aldi 89 779,Yes
Http://opendatacommunities.org/id/metropolitan-district-council/leeds,Leeds City Council,31/12/2022,Children and Families,Social Care ,Supplies and Services,Food & Drink,231,27/11/2022,2212-00664,0.00,3.30,R,Aldi 89 779,Yes
Http://opendatacommunities.org/id/metropolitan-district-council/leeds,Leeds City Council,31/12/2022,Children and Families,Social Care ,Supplies and Services,Food & Drink,231,05/11/2022,2212-00665,0.00,55.74,R,Aldi Stores,Yes
Http://opendatacommunities.org/id/metropolitan-district-council/leeds,Leeds City Council,31/12/2022,Children and Families,Social Care ,Appropriations,Leaving Care Grants,635,07/11/2022,2212-00666,0.00,36.98,R,Aldi Stores,Yes
Http://opendatacommunities.org/id/metropolitan-district-council/leeds,Leeds City Council,31/12/2022,Children and Families,Social Care ,Supplies and Services,Food & Drink,231,08/11/2022,2212-00667,0.00,11.38,R,Aldi Stores,Yes
Http://opendatacommunities.org/id/metropolitan-district-council/leeds,Leeds City Council,31/12/2022,City Development,Recreation ,Supplies and Services,Operational Furniture And Equipment,203,10/11/2022,2212-00668,0.00,7.56,R,Aldi Stores,Yes
Http://opendatacommunities.org/id/metropolitan-district-council/leeds,Leeds City Council,31/12/2022,Children and Families,Social Care ,Supplies and Services,Food & Drink,231,22/11/2022,2212-00669,0.00,21.80,R,Aldi Stores,Yes
Http://opendatacommunities.org/id/metropolitan-district-council/leeds,Leeds City Council,31/12/2022,Children and Families,Social Care ,Appropriations,Leaving Care Allowances,634,23/11/2022,2212-00670,0.00,46.40,R,Aldi Stores,Yes
Http://opendatacommunities.org/id/metropolitan-district-council/leeds,Leeds City Council,31/12/2022,Children and Families,Social Care ,Supplies and Services,Food & Drink,231,29/11/2022,2212-00671,0.00,10.28,R,Aldi Stores,Yes
Http://opendatacommunities.org/id/metropolitan-district-council/leeds,Leeds City Council,31/12/2022,Communities Housing and Environment,Communities ,Supplies and Services,'Well Being' Large Grants Projects,230,29/11/2022,2212-00672,0.00,2.60,R,Aldi Stores,Yes
Http://opendatacommunities.org/id/metropolitan-district-council/leeds,Leeds City Council,31/12/2022,Communities Housing and Environment,Customer Access,Supplies and Services,Bought In Professional Services,277,21/12/2022,2212-00673,0.00,18.00,R,Alena Zueva,No
Http://opendatacommunities.org/id/metropolitan-district-council/leeds,Leeds City Council,31/12/2022,Children and Families,Social Care,Appropriations,Leaving Care Allowances,634,12/12/2022,2212-00674,0.00,50.00,R,REDACTED PERSONAL DATA,No
Http://opendatacommunities.org/id/metropolitan-district-council/leeds,Leeds City Council,31/12/2022,Children and Families,Social Care,Supplies and Services,General Amenity For Clients/Residents,285,02/12/2022,2212-00675,0.00,27.00,R,REDACTED PERSONAL DATA,No
Http://opendatacommunities.org/id/metropolitan-district-council/leeds,Leeds City Council,31/12/2022,Children and Families,Social Care,Supplies and Services,General Amenity For Clients/Residents,285,23/12/2022,2212-00676,0.00,25.00,R,REDACTED PERSONAL DATA,No
Http://opendatacommunities.org/id/metropolitan-district-council/leeds,Leeds City Council,31/12/2022,Children and Families,Learning,Supplies and Services,Bought In Professional Services,277,23/12/2022,2212-00677,0.00,1634.00,R,Alex Quigley Consultancy Limited,No
Http://opendatacommunities.org/id/metropolitan-district-council/leeds,Leeds City Council,31/12/2022,Resources,Commercial Services,Supplies and Services,Other Hired And Contracted Services,265,02/12/2022,2212-00678,0.00,140.00,R,ALEX WAGG,No
Http://opendatacommunities.org/id/metropolitan-district-council/leeds,Leeds City Council,31/12/2022,Resources,Commercial Services,Supplies and Services,Other Hired And Contracted Services,265,02/12/2022,2212-00679,0.00,140.00,R,ALEX WAGG,No
Http://opendatacommunities.org/id/metropolitan-district-council/leeds,Leeds City Council,31/12/2022,Resources,Commercial Services,Supplies and Services,Other Hired And Contracted Services,265,02/12/2022,2212-00680,0.00,70.00,R,ALEX WAGG,No
Http://opendatacommunities.org/id/metropolitan-district-council/leeds,Leeds City Council,31/12/2022,Resources,Commercial Services,Supplies and Services,Other Hired And Contracted Services,265,02/12/2022,2212-00681,0.00,100.00,R,ALEX WAGG,No
Http://opendatacommunities.org/id/metropolitan-district-council/leeds,Leeds City Council,31/12/2022,Resources,Commercial Services,Supplies and Services,Other Hired And Contracted Services,265,02/12/2022,2212-00682,0.00,140.00,R,ALEX WAGG,No
Http://opendatacommunities.org/id/metropolitan-district-council/leeds,Leeds City Council,31/12/2022,Resources,Commercial Services,Supplies and Services,Other Hired And Contracted Services,265,09/12/2022,2212-00683,0.00,70.00,R,ALEX WAGG,No
Http://opendatacommunities.org/id/metropolitan-district-council/leeds,Leeds City Council,31/12/2022,Resources,Commercial Services,Supplies and Services,Other Hired And Contracted Services,265,09/12/2022,2212-00684,0.00,120.00,R,ALEX WAGG,No
Http://opendatacommunities.org/id/metropolitan-district-council/leeds,Leeds City Council,31/12/2022,Resources,Commercial Services,Supplies and Services,Other Hired And Contracted Services,265,09/12/2022,2212-00685,0.00,70.00,R,ALEX WAGG,No
Http://opendatacommunities.org/id/metropolitan-district-council/leeds,Leeds City Council,31/12/2022,Resources,Commercial Services,Supplies and Services,Other Hired And Contracted Services,265,09/12/2022,2212-00686,0.00,70.00,R,ALEX WAGG,No
Http://opendatacommunities.org/id/metropolitan-district-council/leeds,Leeds City Council,31/12/2022,Resources,Commercial Services,Supplies and Services,Other Hired And Contracted Services,265,09/12/2022,2212-00687,0.00,70.00,R,ALEX WAGG,No
Http://opendatacommunities.org/id/metropolitan-district-council/leeds,Leeds City Council,31/12/2022,Resources,Commercial Services,Supplies and Services,Other Hired And Contracted Services,265,09/12/2022,2212-00688,0.00,70.00,R,ALEX WAGG,No
Http://opendatacommunities.org/id/metropolitan-district-council/leeds,Leeds City Council,31/12/2022,Resources,Commercial Services,Supplies and Services,Other Hired And Contracted Services,265,09/12/2022,2212-00689,0.00,140.00,R,ALEX WAGG,No
Http://opendatacommunities.org/id/metropolitan-district-council/leeds,Leeds City Council,31/12/2022,Resources,Commercial Services,Supplies and Services,Other Hired And Contracted Services,265,09/12/2022,2212-00690,0.00,60.00,R,ALEX WAGG,No
Http://opendatacommunities.org/id/metropolitan-district-council/leeds,Leeds City Council,31/12/2022,Resources,Commercial Services,Transport,Vehicle Spares,345,09/12/2022,2212-00691,0.00,80.00,R,ALEX WAGG,No
Http://opendatacommunities.org/id/metropolitan-district-council/leeds,Leeds City Council,31/12/2022,Resources,Commercial Services,Supplies and Services,Other Hired And Contracted Services,265,21/12/2022,2212-00692,0.00,210.45,R,ALEX WAGG,No
Http://opendatacommunities.org/id/metropolitan-district-council/leeds,Leeds City Council,31/12/2022,Resources,Commercial Services,Supplies and Services,Other Hired And Contracted Services,265,21/12/2022,2212-00693,0.00,100.00,R,ALEX WAGG,No
Http://opendatacommunities.org/id/metropolitan-district-council/leeds,Leeds City Council,31/12/2022,Resources,Commercial Services,Supplies and Services,Other Hired And Contracted Services,265,21/12/2022,2212-00694,0.00,460.00,R,ALEX WAGG,No
Http://opendatacommunities.org/id/metropolitan-district-council/leeds,Leeds City Council,31/12/2022,Resources,Commercial Services,Supplies and Services,Other Hired And Contracted Services,265,21/12/2022,2212-00695,0.00,260.00,R,ALEX WAGG,No
Http://opendatacommunities.org/id/metropolitan-district-council/leeds,Leeds City Council,31/12/2022,Resources,Commercial Services,Supplies and Services,Other Hired And Contracted Services,265,23/12/2022,2212-00696,0.00,490.00,R,ALEX WAGG,No
Http://opendatacommunities.org/id/metropolitan-district-council/leeds,Leeds City Council,31/12/2022,Resources,Commercial Services,Supplies and Services,Other Hired And Contracted Services,265,23/12/2022,2212-00697,0.00,350.00,R,ALEX WAGG,No
Http://opendatacommunities.org/id/metropolitan-district-council/leeds,Leeds City Council,31/12/2022,Resources,Commercial Services,Supplies and Services,Other Hired And Contracted Services,265,23/12/2022,2212-00698,0.00,630.00,R,ALEX WAGG,No
Http://opendatacommunities.org/id/metropolitan-district-council/leeds,Leeds City Council,31/12/2022,Resources,Commercial Services,Supplies and Services,Other Hired And Contracted Services,265,30/12/2022,2212-00699,0.00,70.00,R,ALEX WAGG,No
Http://opendatacommunities.org/id/metropolitan-district-council/leeds,Leeds City Council,31/12/2022,Children and Families,Social Care,Appropriations,Direct Payments,626,09/12/2022,2212-00700,0.00,3249.15,R,REDACTED PERSONAL DATA,No
Http://opendatacommunities.org/id/metropolitan-district-council/leeds,Leeds City Council,31/12/2022,Adults and Health,Services For Older People - 65 And Over,Agency Payments,Residential Care Dementia,571,07/12/2022,2212-00701,0.00,14632.92,R,ALEXANDER RESIDENTIAL HOME,No
Http://opendatacommunities.org/id/metropolitan-district-council/leeds,Leeds City Council,31/12/2022,Adults and Health,Services For Older People - 65 And Over,Agency Payments,Residential,580,07/12/2022,2212-00702,0.00,20142.34,R,ALEXANDER RESIDENTIAL HOME,No
Http://opendatacommunities.org/id/metropolitan-district-council/leeds,Leeds City Council,31/12/2022,Adults and Health,Services For Older People - 65 And Over,Agency Payments,Residential Care Dementia,571,28/12/2022,2212-00703,0.00,26142.28,R,ALEXANDER RESIDENTIAL HOME,No
Http://opendatacommunities.org/id/metropolitan-district-council/leeds,Leeds City Council,31/12/2022,Adults and Health,Services For Older People - 65 And Over,Agency Payments,Residential,580,28/12/2022,2212-00704,0.00,20826.52,R,ALEXANDER RESIDENTIAL HOME,No
Http://opendatacommunities.org/id/metropolitan-district-council/leeds,Leeds City Council,31/12/2022,Children and Families,Social Care,Supplies and Services,Conference Meetings,253,05/12/2022,2212-00705,0.00,66.00,R,REDACTED PERSONAL DATA,No
Http://opendatacommunities.org/id/metropolitan-district-council/leeds,Leeds City Council,31/12/2022,Children and Families,Social Care,Supplies and Services,Food & Drink,231,05/12/2022,2212-00706,0.00,37.90,R,REDACTED PERSONAL DATA,No
Http://opendatacommunities.org/id/metropolitan-district-council/leeds,Leeds City Council,31/12/2022,Children and Families,Social Care,Supplies and Services,Food & Drink,231,13/12/2022,2212-00707,0.00,19.87,R,REDACTED PERSONAL DATA,No
Http://opendatacommunities.org/id/metropolitan-district-council/leeds,Leeds City Council,31/12/2022,Children and Families,Social Care,Transport,External Hire -Occasional,304,13/12/2022,2212-00708,0.00,35.80,R,REDACTED PERSONAL DATA,No
Http://opendatacommunities.org/id/metropolitan-district-council/leeds,Leeds City Council,31/12/2022,Communities Housing and Environment,Customer Access,Supplies and Services,Bought In Professional Services,277,21/12/2022,2212-00709,0.00,18.00,R,Alexandra Costenco,No
Http://opendatacommunities.org/id/metropolitan-district-council/leeds,Leeds City Council,31/12/2022,Communities Housing and Environment,Customer Access,Supplies and Services,Bought In Professional Services,277,21/12/2022,2212-00710,0.00,18.00,R,Alexandra Costenco,No
Http://opendatacommunities.org/id/metropolitan-district-council/leeds,Leeds City Council,31/12/2022,Adults and Health,Services For Older People - 65 And Over,Agency Payments,Residential Care Dementia,571,07/12/2022,2212-00711,0.00,4701.24,R,ALEXANDRA COURT,No
Http://opendatacommunities.org/id/metropolitan-district-council/leeds,Leeds City Council,31/12/2022,Adults and Health,Services For Older People - 65 And Over,Agency Payments,Residential,580,07/12/2022,2212-00712,0.00,6420.46,R,ALEXANDRA COURT,No
Http://opendatacommunities.org/id/metropolitan-district-council/leeds,Leeds City Council,31/12/2022,Adults and Health,Services For Older People - 65 And Over,Agency Payments,Residential Care Dementia,571,28/12/2022,2212-00713,0.00,5705.39,R,ALEXANDRA COURT,No
Http://opendatacommunities.org/id/metropolitan-district-council/leeds,Leeds City Council,31/12/2022,Adults and Health,Services For Older People - 65 And Over,Agency Payments,Residential,580,28/12/2022,2212-00714,0.00,6808.40,R,ALEXANDRA COURT,No
Http://opendatacommunities.org/id/metropolitan-district-council/leeds,Leeds City Council,31/12/2022,Children and Families,Social Care,Agency Payments,Services Rendered By Other Organisations,511,02/12/2022,2212-00715,0.00,233.02,R,REDACTED PERSONAL DATA,No
Http://opendatacommunities.org/id/metropolitan-district-council/leeds,Leeds City Council,31/12/2022,Children and Families,Social Care,Agency Payments,Services Rendered By Other Organisations,511,02/12/2022,2212-00716,0.00,46.80,R,REDACTED PERSONAL DATA,No
Http://opendatacommunities.org/id/metropolitan-district-council/leeds,Leeds City Council,31/12/2022,Communities Housing and Environment,Parks and Countryside,Supplies and Services,Operational Furniture And Equipment,203,07/12/2022,2212-00717,0.00,4980.00,R,Alfred Bagnall & Sons (Leeds) Ltd,No
Http://opendatacommunities.org/id/metropolitan-district-council/leeds,Leeds City Council,31/12/2022,Communities Housing and Environment,Parks and Countryside,Supplies and Services,Operational Materials,205,07/12/2022,2212-00718,0.00,1917.50,R,Alfred Bagnall & Sons (Leeds) Ltd,No
Http://opendatacommunities.org/id/metropolitan-district-council/leeds,Leeds City Council,31/12/2022,Communities Housing and Environment,Parks and Countryside,Supplies and Services,Operational Furniture And Equipment,203,07/12/2022,2212-00719,0.00,2270.00,R,Alfred Bagnall & Sons (Leeds) Ltd,No
Http://opendatacommunities.org/id/metropolitan-district-council/leeds,Leeds City Council,31/12/2022,Resources,Leeds Building Services,Supplies and Services,Other Hired And Contracted Services,265,09/12/2022,2212-00720,0.00,4580.18,R,Alfred Bagnall & Sons (Leeds) Ltd,No
Http://opendatacommunities.org/id/metropolitan-district-council/leeds,Leeds City Council,31/12/2022,City Development,Libraries Arts & Heritage,Supplies and Services,Bought In Professional Services,277,16/12/2022,2212-00721,0.00,11026.38,R,Alfred Bagnall & Sons (Leeds) Ltd,No
Http://opendatacommunities.org/id/metropolitan-district-council/leeds,Leeds City Council,31/12/2022,Resources,Leeds Building Services,Supplies and Services,Other Hired And Contracted Services,265,16/12/2022,2212-00722,0.00,22489.47,R,Alfred Bagnall & Sons (Leeds) Ltd,No
Http://opendatacommunities.org/id/metropolitan-district-council/leeds,Leeds City Council,31/12/2022,Resources,Leeds Building Services,Supplies and Services,Other Hired And Contracted Services,265,21/12/2022,2212-00723,0.00,700.00,R,Alfred Bagnall & Sons (Leeds) Ltd,No
Http://opendatacommunities.org/id/metropolitan-district-council/leeds,Leeds City Council,31/12/2022,Resources,Leeds Building Services,Supplies and Services,Other Hired And Contracted Services,265,21/12/2022,2212-00724,0.00,350.00,R,Alfred Bagnall & Sons (Leeds) Ltd,No
Http://opendatacommunities.org/id/metropolitan-district-council/leeds,Leeds City Council,31/12/2022,Resources,Leeds Building Services,Supplies and Services,Other Hired And Contracted Services,265,21/12/2022,2212-00725,0.00,350.00,R,Alfred Bagnall & Sons (Leeds) Ltd,No
Http://opendatacommunities.org/id/metropolitan-district-council/leeds,Leeds City Council,31/12/2022,Resources,Leeds Building Services,Supplies and Services,Other Hired And Contracted Services,265,21/12/2022,2212-00726,0.00,190.00,R,Alfred Bagnall & Sons (Leeds) Ltd,No
Http://opendatacommunities.org/id/metropolitan-district-council/leeds,Leeds City Council,31/12/2022,Resources,Leeds Building Services,Supplies and Services,Other Hired And Contracted Services,265,21/12/2022,2212-00727,0.00,3436.00,R,Alfred Bagnall & Sons (Leeds) Ltd,No
Http://opendatacommunities.org/id/metropolitan-district-council/leeds,Leeds City Council,31/12/2022,Resources,Leeds Building Services,Supplies and Services,Other Hired And Contracted Services,265,21/12/2022,2212-00728,0.00,685.00,R,Alfred Bagnall & Sons (Leeds) Ltd,No
Http://opendatacommunities.org/id/metropolitan-district-council/leeds,Leeds City Council,31/12/2022,Strategic Landlord,Property and Contracts,Premises,HRA Major Repairs,107,21/12/2022,2212-00729,0.00,1927.03,R,Alfred Bagnall & Sons (Leeds) Ltd,No
Http://opendatacommunities.org/id/metropolitan-district-council/leeds,Leeds City Council,31/12/2022,Resources,Leeds Building Services,Supplies and Services,Other Hired And Contracted Services,265,28/12/2022,2212-00730,0.00,4230.00,R,Alfred Bagnall & Sons (Leeds) Ltd,No
Http://opendatacommunities.org/id/metropolitan-district-council/leeds,Leeds City Council,31/12/2022,Resources,Leeds Building Services,Supplies and Services,Other Hired And Contracted Services,265,28/12/2022,2212-00731,0.00,750.00,R,Alfred Bagnall & Sons (Leeds) Ltd,No
Http://opendatacommunities.org/id/metropolitan-district-council/leeds,Leeds City Council,31/12/2022,Resources,Leeds Building Services,Supplies and Services,Other Hired And Contracted Services,265,28/12/2022,2212-00732,0.00,150.00,R,Alfred Bagnall & Sons (Leeds) Ltd,No
Http://opendatacommunities.org/id/metropolitan-district-council/leeds,Leeds City Council,31/12/2022,Resources,Leeds Building Services,Supplies and Services,Other Hired And Contracted Services,265,28/12/2022,2212-00733,0.00,503.78,R,Alfred Bagnall & Sons (Leeds) Ltd,No
Http://opendatacommunities.org/id/metropolitan-district-council/leeds,Leeds City Council,31/12/2022,Communities Housing and Environment,Customer Access,Supplies and Services,Bought In Professional Services,277,07/12/2022,2212-00734,0.00,54.20,R,Ali Pourakaberian,No
Http://opendatacommunities.org/id/metropolitan-district-council/leeds,Leeds City Council,31/12/2022,Communities Housing and Environment,Customer Access,Supplies and Services,Bought In Professional Services,277,07/12/2022,2212-00735,0.00,9.00,R,Ali Pourakaberian,No
Http://opendatacommunities.org/id/metropolitan-district-council/leeds,Leeds City Council,31/12/2022,Communities Housing and Environment,Customer Access,Supplies and Services,Bought In Professional Services,277,07/12/2022,2212-00736,0.00,27.00,R,Ali Pourakaberian,No
Http://opendatacommunities.org/id/metropolitan-district-council/leeds,Leeds City Council,31/12/2022,Communities Housing and Environment,Customer Access,Supplies and Services,Bought In Professional Services,277,21/12/2022,2212-00737,0.00,31.50,R,Ali Pourakaberian,No
Http://opendatacommunities.org/id/metropolitan-district-council/leeds,Leeds City Council,31/12/2022,City Development,Support Services,Supplies and Services,Other Hired And Contracted Services,265,14/12/2022,2212-00738,0.00,60.00,R,Alice Lane,No
Http://opendatacommunities.org/id/metropolitan-district-council/leeds,Leeds City Council,31/12/2022,City Development,Recreation,Supplies and Services,Non-Recurring Grants,227,01/12/2022,2212-00739,0.00,125.00,R,REDACTED PERSONAL DATA,No
Http://opendatacommunities.org/id/metropolitan-district-council/leeds,Leeds City Council,31/12/2022,City Development,Recreation,Supplies and Services,Bought In Professional Services,277,01/12/2022,2212-00740,0.00,60.00,R,Alice M Richardson,No
Http://opendatacommunities.org/id/metropolitan-district-council/leeds,Leeds City Council,31/12/2022,City Development,Recreation,Supplies and Services,Bought In Professional Services,277,01/12/2022,2212-00741,0.00,80.00,R,Alice M Richardson,No
Http://opendatacommunities.org/id/metropolitan-district-council/leeds,Leeds City Council,31/12/2022,City Development,Recreation,Supplies and Services,Bought In Professional Services,277,30/12/2022,2212-00742,0.00,80.00,R,Alice M Richardson,No
Http://opendatacommunities.org/id/metropolitan-district-council/leeds,Leeds City Council,31/12/2022,City Development,Recreation,Supplies and Services,Bought In Professional Services,277,30/12/2022,2212-00743,0.00,80.00,R,Alice M Richardson,No
Http://opendatacommunities.org/id/metropolitan-district-council/leeds,Leeds City Council,31/12/2022,City Development,Economic Development,Capital,CONSTRUCTION,3,07/12/2022,2212-00744,0.00,175.00,C,Alice Rose Needham,No
Http://opendatacommunities.org/id/metropolitan-district-council/leeds,Leeds City Council,31/12/2022,Children and Families,Social Care,Agency Payments,Placement Support,550,15/12/2022,2212-00745,0.00,50.00,R,REDACTED PERSONAL DATA,No
Http://opendatacommunities.org/id/metropolitan-district-council/leeds,Leeds City Council,31/12/2022,Children and Families,Social Care,Agency Payments,Allowances,546,23/12/2022,2212-00746,0.00,216.76,R,Alicia Kellett,No
Http://opendatacommunities.org/id/metropolitan-district-council/leeds,Leeds City Council,31/12/2022,Communities Housing and Environment,Car Parking Services,External Income,Penalties Fines & Car Parking Charges,934,02/12/2022,2212-00747,0.00,30.00,R,REDACTED PERSONAL DATA,No
Http://opendatacommunities.org/id/metropolitan-district-council/leeds,Leeds City Council,31/12/2022,City Development,Recreation,External Income,Sporting & Other Recreational Fees,928,16/12/2022,2212-00748,0.00,134.50,R,REDACTED PERSONAL DATA,No
Http://opendatacommunities.org/id/metropolitan-district-council/leeds,Leeds City Council,31/12/2022,Children and Families,Social Care,Agency Payments,Contact,548,02/12/2022,2212-00749,0.00,10.40,R,REDACTED PERSONAL DATA,No
Http://opendatacommunities.org/id/metropolitan-district-council/leeds,Leeds City Council,31/12/2022,Children and Families,Social Care,Agency Payments,Contact,548,09/12/2022,2212-00750,0.00,10.40,R,REDACTED PERSONAL DATA,No
Http://opendatacommunities.org/id/metropolitan-district-council/leeds,Leeds City Council,31/12/2022,Children and Families,Social Care,Agency Payments,Contact,548,16/12/2022,2212-00751,0.00,10.40,R,REDACTED PERSONAL DATA,No
Http://opendatacommunities.org/id/metropolitan-district-council/leeds,Leeds City Council,31/12/2022,Children and Families,Social Care,Agency Payments,Contact,548,23/12/2022,2212-00752,0.00,10.40,R,REDACTED PERSONAL DATA,No
Http://opendatacommunities.org/id/metropolitan-district-council/leeds,Leeds City Council,31/12/2022,Children and Families,Social Care,Agency Payments,Contact,548,30/12/2022,2212-00753,0.00,10.40,R,REDACTED PERSONAL DATA,No
Http://opendatacommunities.org/id/metropolitan-district-council/leeds,Leeds City Council,31/12/2022,Children and Families,Social Care,Agency Payments,Contact,548,30/12/2022,2212-00754,0.00,10.40,R,REDACTED PERSONAL DATA,No
Http://opendatacommunities.org/id/metropolitan-district-council/leeds,Leeds City Council,31/12/2022,Children and Families,Social Care,Agency Payments,Services Rendered By Other Organisations,511,02/12/2022,2212-00755,0.00,1398.15,R,REDACTED PERSONAL DATA,No
Http://opendatacommunities.org/id/metropolitan-district-council/leeds,Leeds City Council,31/12/2022,Communities Housing and Environment,Benefits Wlefare and Poverty,Supplies and Services,Grant Related Expenditure,290,28/12/2022,2212-00756,0.00,70.00,R,REDACTED PERSONAL DATA,No
Http://opendatacommunities.org/id/metropolitan-district-council/leeds,Leeds City Council,31/12/2022,Strategic Landlord,Property and Contracts,Internal Recharges,Legal Disbursements,411,07/12/2022,2212-00757,0.00,817.67,R,Alison Law Solicitors,No
Http://opendatacommunities.org/id/metropolitan-district-council/leeds,Leeds City Council,31/12/2022,Resources,Commercial Services,Supplies and Services,Other Hired And Contracted Services,265,19/12/2022,2212-00758,0.00,411.60,R,REDACTED PERSONAL DATA,No
Http://opendatacommunities.org/id/metropolitan-district-council/leeds,Leeds City Council,31/12/2022,Strategic Accounts,Miscellaneous,Supplies and Services,Non-Recurring Grants,227,19/12/2022,2212-00759,0.00,380.00,R,All Stars Badminton Club,No
Http://opendatacommunities.org/id/metropolitan-district-council/leeds,Leeds City Council,31/12/2022,Strategic Accounts,Miscellaneous,Supplies and Services,Non-Recurring Grants,227,28/12/2022,2212-00760,0.00,175.00,R,All Stars Badminton Club,No
Http://opendatacommunities.org/id/metropolitan-district-council/leeds,Leeds City Council,31/12/2022,Children and Families,Social Care,Agency Payments,Services Rendered By Other Organisations,511,02/12/2022,2212-00761,0.00,22769.53,R,All Stars Childcare,No
Http://opendatacommunities.org/id/metropolitan-district-council/leeds,Leeds City Council,31/12/2022,Children and Families,Social Care,Agency Payments,Services Rendered By Other Organisations,511,02/12/2022,2212-00762,0.00,839.15,R,All Stars Childcare,No
Http://opendatacommunities.org/id/metropolitan-district-council/leeds,Leeds City Council,31/12/2022,Children and Families,Social Care,Agency Payments,Services Rendered By Other Organisations,511,07/12/2022,2212-00763,0.00,3509.10,R,All Stars Childcare,No
Http://opendatacommunities.org/id/metropolitan-district-council/leeds,Leeds City Council as Accountable Body,31/12/2022,Social Services Pooled Budgets,Jcs For People With Learning Disabilitie,Agency Payments,Sheltered Accommodation,569,07/12/2022,2212-00764,0.00,22863.72,R,Allerton Avenue,No
Http://opendatacommunities.org/id/metropolitan-district-council/leeds,Leeds City Council as Accountable Body,31/12/2022,Social Services Pooled Budgets,Jcs For People With Learning Disabilitie,Agency Payments,Sheltered Accommodation,569,28/12/2022,2212-00765,0.00,22863.72,R,Allerton Avenue,No
Http://opendatacommunities.org/id/metropolitan-district-council/leeds,Leeds City Council,31/12/2022,Strategic Accounts,Miscellaneous,Supplies and Services,Non-Recurring Grants,227,05/12/2022,2212-00766,0.00,300.00,R,Allerton Bywater Parish Council,No
Http://opendatacommunities.org/id/metropolitan-district-council/leeds,Leeds City Council,31/12/2022,Strategic Accounts,Miscellaneous,Supplies and Services,Non-Recurring Grants,227,12/12/2022,2212-00767,0.00,300.00,R,Allerton Bywater Senior Citizens,No
Http://opendatacommunities.org/id/metropolitan-district-council/leeds,Leeds City Council,31/12/2022,Resources,Leeds Building Services,Supplies and Services,Other Hired And Contracted Services,265,21/12/2022,2212-00768,0.00,1373.60,R,Allerton Damp-Proofing Ltd,No
Http://opendatacommunities.org/id/metropolitan-district-council/leeds,Leeds City Council,31/12/2022,Adults and Health,Services For Older People - 65 And Over,Agency Payments,Nursing Care Dementia,574,07/12/2022,2212-00769,0.00,9432.70,R,ALLERTON PARK N H,No
Http://opendatacommunities.org/id/metropolitan-district-council/leeds,Leeds City Council,31/12/2022,Adults and Health,Services For Older People - 65 And Over,Agency Payments,Nursing Care Dementia,574,28/12/2022,2212-00770,0.00,17334.36,R,ALLERTON PARK N H,No
Http://opendatacommunities.org/id/metropolitan-district-council/leeds,Leeds City Council,31/12/2022,Communities Housing and Environment,Parks and Countryside ,Supplies and Services,Operational Materials,205,21/11/2022,2212-00771,0.00,9.20,R,Allflex UK Group Ltd,Yes
Http://opendatacommunities.org/id/metropolitan-district-council/leeds,Leeds City Council,31/12/2022,Resources,Commercial Services,Transport,Vehicle Spares,345,07/12/2022,2212-00772,0.00,-11.92,R,Alliance Automotive UK CV LTD,No
Http://opendatacommunities.org/id/metropolitan-district-council/leeds,Leeds City Council,31/12/2022,Resources,Commercial Services,Transport,Vehicle Spares,345,07/12/2022,2212-00773,0.00,148.60,R,Alliance Automotive UK CV LTD,No
Http://opendatacommunities.org/id/metropolitan-district-council/leeds,Leeds City Council,31/12/2022,Resources,Commercial Services,Transport,Vehicle Spares,345,07/12/2022,2212-00774,0.00,54.88,R,Alliance Automotive UK CV LTD,No
Http://opendatacommunities.org/id/metropolitan-district-council/leeds,Leeds City Council,31/12/2022,Resources,Commercial Services,Transport,Vehicle Spares,345,07/12/2022,2212-00775,0.00,27.60,R,Alliance Automotive UK CV LTD,No
Http://opendatacommunities.org/id/metropolitan-district-council/leeds,Leeds City Council,31/12/2022,Resources,Commercial Services,Transport,Vehicle Spares,345,07/12/2022,2212-00776,0.00,100.52,R,Alliance Automotive UK CV LTD,No
Http://opendatacommunities.org/id/metropolitan-district-council/leeds,Leeds City Council,31/12/2022,Resources,Commercial Services,Transport,Vehicle Spares,345,07/12/2022,2212-00777,0.00,658.73,R,Alliance Automotive UK CV LTD,No
Http://opendatacommunities.org/id/metropolitan-district-council/leeds,Leeds City Council,31/12/2022,Resources,Commercial Services,Transport,Vehicle Spares,345,07/12/2022,2212-00778,0.00,37.95,R,Alliance Automotive UK CV LTD,No
Http://opendatacommunities.org/id/metropolitan-district-council/leeds,Leeds City Council,31/12/2022,Resources,Commercial Services,Transport,Vehicle Spares,345,09/12/2022,2212-00779,0.00,120.48,R,Alliance Automotive UK CV LTD,No
Http://opendatacommunities.org/id/metropolitan-district-council/leeds,Leeds City Council,31/12/2022,Resources,Commercial Services,Transport,Vehicle Spares,345,09/12/2022,2212-00780,0.00,71.02,R,Alliance Automotive UK CV LTD,No
Http://opendatacommunities.org/id/metropolitan-district-council/leeds,Leeds City Council,31/12/2022,Resources,Commercial Services,Transport,Vehicle Spares,345,09/12/2022,2212-00781,0.00,434.36,R,Alliance Automotive UK CV LTD,No
